FILE,Service Area Categorisation,Service Division Categorisation,Responsible Unit,Unit Code,Expenses Type,Expenses Sub Type,Expense  Code,Detailed Expenses Type,Transaction No,Amount,Invoice Date,Capital/Revenue,Supplier Name
2012 - MAY,Central Services,Fully rechargeable Overheads,Local Involvement Network               ,A01039,Third Party Payments          ,Private Contractors           ,EH10,Contract Payments,1,"8,342.91",5/4/2012,R,MERTON VOLUNTARY SERV COUNCIL 
2012 - MAY,Cultural Env Reg&Plan Services,Comm. Safety (Crime Reduction),CCTV                                    ,A01200,Supplies & Services           ,Comms and Computing           ,DG15,Network Maintenance,2,800,4/1/2012,R,VIRGIN MEDIA PAYMENTS LTD     
2012 - MAY,Adult Social Care,Other Adult Services,DAAT Commissioning                      ,A01300,Third Party Payments          ,Private Contractors           ,EH02,Miscellaneous Hired Services,3,"4,000.00",5/3/2012,R,OTTAWAY STRATEGIC MANAGEMENT  
2012 - MAY,Adult Social Care,Other Adult Services,DAAT Commissioning                      ,A01300,Third Party Payments          ,Private Contractors           ,EH02,Miscellaneous Hired Services,4,"7,700.00",3/15/2012,R,REDACTED
2012 - MAY,Adult Social Care,Other Adult Services,Access and Engagement                   ,A01302,Third Party Payments          ,Private Contractors           ,EH02,Miscellaneous Hired Services,5,"9,749.78",3/19/2012,R,ETHNIC MINORITY CENTRE        
2012 - MAY,Adult Social Care,Other Adult Services,Access and Engagement                   ,A01302,Third Party Payments          ,Private Contractors           ,EH02,Miscellaneous Hired Services,6,"1,856.25",4/10/2012,R,COMM.DRUG SERV.FOR SOUTHLONDON
2012 - MAY,Adult Social Care,Other Adult Services,Access and Engagement                   ,A01302,Third Party Payments          ,Private Contractors           ,EH02,Miscellaneous Hired Services,7,"41,048.00",4/4/2012,R,CRI                           
2012 - MAY,Adult Social Care,Other Adult Services,Retention in Drug Treatmt Srvs          ,A01303,Third Party Payments          ,Private Contractors           ,EH02,Miscellaneous Hired Services,8,"4,500.00",4/10/2012,R,COMM.DRUG SERV.FOR SOUTHLONDON
2012 - MAY,Adult Social Care,Other Adult Services,Retention in Drug Treatmt Srvs          ,A01303,Third Party Payments          ,Private Contractors           ,EH02,Miscellaneous Hired Services,9,"58,112.25",4/10/2012,R,COMM.DRUG SERV.FOR SOUTHLONDON
2012 - MAY,Adult Social Care,Other Adult Services,Retention in Drug Treatmt Srvs          ,A01303,Third Party Payments          ,Private Contractors           ,EH02,Miscellaneous Hired Services,10,"5,100.00",4/30/2012,R,CIDARIS CONSULTING LIMITED    
2012 - MAY,Adult Social Care,Other Adult Services,Retention in Drug Treatmt Srvs          ,A01303,Third Party Payments          ,Private Contractors           ,EH02,Miscellaneous Hired Services,11,"6,300.00",5/18/2012,R,CIDARIS CONSULTING LIMITED    
2012 - MAY,Central Services,Fully rechargeable Overheads,STATUTORY MARKETING & COMM          ,A02018,Supplies & Services           ,Services                      ,DF02,Misc Advertising/Publicity,12,831.6,5/5/2012,R,NEWSQUEST (LONDON)LTD         
2012 - MAY,Central Services,Fully rechargeable Overheads,STATUTORY MARKETING & COMM          ,A02018,Supplies & Services           ,Services                      ,DF02,Misc Advertising/Publicity,13,831.6,5/19/2012,R,NEWSQUEST (LONDON)LTD         
2012 - MAY,Central Services,Fully rechargeable Overheads,NON-STATUTORY MARKETING & COMM ,A02019,Supplies & Services           ,Services                      ,DF02,Misc Advertising/Publicity,14,537.5,4/23/2012,R,JCDECAUX UNITED KINGDOM       
2012 - MAY,Central Services,Fully rechargeable Overheads,NON-STATUTORY MARKETING & COMM ,A02019,Supplies & Services           ,Services                      ,DF02,Misc Advertising/Publicity,15,537.5,4/23/2012,R,JCDECAUX UNITED KINGDOM       
2012 - MAY,Central Services,Fully rechargeable Overheads,NON-STATUTORY MARKETING & COMM ,A02019,Supplies & Services           ,Services                      ,DF02,Misc Advertising/Publicity,16,537.5,5/22/2012,R,JCDECAUX UNITED KINGDOM       
2012 - MAY,Central Services,Fully rechargeable Overheads,NON-STATUTORY MARKETING & COMM ,A02019,Supplies & Services           ,Services                      ,DF35,Graphic Design,17,"1,890.00",4/27/2012,R,THE BIG IDEA (MARK BUCKINGHAM)
2012 - MAY,Central Services,Fully rechargeable Overheads,NON-STATUTORY MARKETING & COMM ,A02019,Supplies & Services           ,Services                      ,DF35,Graphic Design,18,"2,205.00",4/27/2012,R,THE BIG IDEA (MARK BUCKINGHAM)
2012 - MAY,Central Services,Democ' Representation & Mgt,Members Allowances                      ,A02020,Supplies & Services           ,Services                      ,DF04,Miscellaneous Expenses,19,"2,100.00",5/2/2012,R,INFORMATION COMMISSIONER      
2012 - MAY,Central Services,Fully rechargeable Overheads,Democratic Services                     ,A02023,Employees                     ,Direct Employee Expenses      ,AA17,Agency Staff & Casual Paymts,20,"1,752.00",5/14/2012,R,REDACTED
2012 - MAY,Central Services,Fully rechargeable Overheads,Press and Public Relations.             ,A02026,Employees                     ,Direct Employee Expenses      ,AA17,Agency Staff & Casual Paymts,21,"2,080.00",4/16/2012,R,PUBLIC SELECT                 
2012 - MAY,Central Services,Fully rechargeable Overheads,Press and Public Relations.             ,A02026,Employees                     ,Direct Employee Expenses      ,AA17,Agency Staff & Casual Paymts,22,"1,130.00",4/23/2012,R,HAYS RECRUITING EXPERTS       
2012 - MAY,Central Services,Fully rechargeable Overheads,Press and Public Relations.             ,A02026,Employees                     ,Direct Employee Expenses      ,AA17,Agency Staff & Casual Paymts,23,"2,600.00",4/29/2012,R,PUBLIC SELECT                 
2012 - MAY,Central Services,Fully rechargeable Overheads,Press and Public Relations.             ,A02026,Employees                     ,Direct Employee Expenses      ,AA17,Agency Staff & Casual Paymts,24,678,4/30/2012,R,HAYS RECRUITING EXPERTS       
2012 - MAY,Central Services,Fully rechargeable Overheads,Press and Public Relations.             ,A02026,Employees                     ,Direct Employee Expenses      ,AA17,Agency Staff & Casual Paymts,25,"1,130.00",5/9/2012,R,HAYS RECRUITING EXPERTS       
2012 - MAY,Central Services,Fully rechargeable Overheads,Press and Public Relations.             ,A02026,Employees                     ,Direct Employee Expenses      ,AA17,Agency Staff & Casual Paymts,26,791,5/15/2012,R,HAYS RECRUITING EXPERTS       
2012 - MAY,Central Services,Fully rechargeable Overheads,Press and Public Relations.             ,A02026,Employees                     ,Direct Employee Expenses      ,AA17,Agency Staff & Casual Paymts,27,"2,340.00",5/14/2012,R,PUBLIC SELECT                 
2012 - MAY,Central Services,Fully rechargeable Overheads,Press and Public Relations.             ,A02026,Employees                     ,Direct Employee Expenses      ,AA17,Agency Staff & Casual Paymts,28,"1,130.00",5/21/2012,R,HAYS RECRUITING EXPERTS       
2012 - MAY,Central Services,Fully rechargeable Overheads,Press and Public Relations.             ,A02026,Employees                     ,Direct Employee Expenses      ,AA17,Agency Staff & Casual Paymts,29,"2,600.00",5/28/2012,R,PUBLIC SELECT                 
2012 - MAY,Central Services,Fully rechargeable Overheads,Press and Public Relations.             ,A02026,Supplies & Services           ,Services                      ,DF35,Graphic Design,30,"2,520.00",5/24/2012,R,THE BIG IDEA (MARK BUCKINGHAM)
2012 - MAY,CS -Oth Operating Inc & Expend,Trading A/c Surpluses/Deficits,Prtng Jobs - Ext Agncy                  ,A03041,Supplies & Services           ,Prntng Stnry Gen Off Exp      ,DE01,External Printing,31,545,4/27/2012,R,CLIFFE ENTERPRISE             
2012 - MAY,CS -Oth Operating Inc & Expend,Trading A/c Surpluses/Deficits,Translation Services                    ,A04060,Supplies & Services           ,Services                      ,DF45,Payment of Sessional workers,32,756,4/25/2012,R,REDACTED
2012 - MAY,Central Services,Fully rechargeable Overheads,Merton Link                             ,A04070,Premises Related Expenditure  ,Cleaning and Domestic Supplies,BH03,Cleaning Services,33,"1,416.73",4/29/2012,R,DYNAMIQ CLEANING LIMITED      
2012 - MAY,Central Services,Fully rechargeable Overheads,Merton Link                             ,A04070,Supplies & Services           ,Prntng Stnry Gen Off Exp      ,DE30,General Office Expenses,34,"2,324.00",4/25/2012,R,Q-MATIC UK LTD                
2012 - MAY,Central Services,Fully rechargeable Overheads,Merton Link                             ,A04070,Supplies & Services           ,Comms and Computing           ,DG15,Network Maintenance,35,839.05,5/1/2012,R,NORTHGATE INFORMATION SOLUTION
2012 - MAY,Central Services,Gen Grants Bequest & Donations,VOLUNTARY SECTOR COORDINATION   ,A04082,Supplies & Services           ,Grants and Subscriptions      ,DJ01,Grants,36,"26,127.00",5/1/2012,R,MERTON VOLUNTARY SERV COUNCIL 
2012 - MAY,Central Services,Gen Grants Bequest & Donations,VOLUNTARY SECTOR COORDINATION   ,A04082,Supplies & Services           ,Grants and Subscriptions      ,DJ01,Grants,37,"72,200.00",5/8/2012,R,MERTON PRIORY HOMES           
2012 - MAY,Central Services,Gen Grants Bequest & Donations,VOLUNTARY SECTOR COORDINATION   ,A04082,Supplies & Services           ,Grants and Subscriptions      ,DJ01,Grants,38,"24,000.00",4/16/2012,R,AGE UK MERTON LIMITED         
2012 - MAY,Central Services,Gen Grants Bequest & Donations,VOLUNTARY SECTOR COORDINATION   ,A04082,Supplies & Services           ,Grants and Subscriptions      ,DJ01,Grants,39,"12,000.00",5/1/2012,R,MERTON VOLUNTARY SERV COUNCIL 
2012 - MAY,Central Services,Gen Grants Bequest & Donations,VOLUNTARY SECTOR COORDINATION   ,A04082,Supplies & Services           ,Grants and Subscriptions      ,DJ04,Subscriptions,40,"76,712.75",4/3/2012,R,LONDON COUNCILS               
2012 - MAY,Central Services,Registr'n Birth/Death/Marriage,Reg of B. Deaths & Ms                   ,B06143,Supplies & Services           ,Prntng Stnry Gen Off Exp      ,DE30,General Office Expenses,41,"1,735.65",3/20/2012,R,ZIPPORAH LTD                  
2012 - MAY,Central Services,Registr'n Birth/Death/Marriage,Reg of B. Deaths & Ms                   ,B06143,Supplies & Services           ,Services                      ,DF03,Consultants,42,"2,700.00",4/30/2012,R,REDQUADRANT LTD               
2012 - MAY,Central Services,Fully rechargeable Overheads,Learning and Development                ,B06146,Employees                     ,Indirect Employee Expenses    ,AB57,External Training Costs,43,"2,308.50",3/30/2012,R,OPP UNLOCKING POTENTIAL       
2012 - MAY,Central Services,Fully rechargeable Overheads,Learning and Development                ,B06146,Employees                     ,Indirect Employee Expenses    ,AB57,External Training Costs,44,"3,000.00",3/30/2012,R,REDACTED
2012 - MAY,Central Services,Fully rechargeable Overheads,Learning and Development                ,B06146,Employees                     ,Indirect Employee Expenses    ,AB57,External Training Costs,45,500,5/3/2012,R,GRANT RICHES COMM. CONSUL.    
2012 - MAY,Central Services,Fully rechargeable Overheads,Learning and Development                ,B06146,Employees                     ,Indirect Employee Expenses    ,AB57,External Training Costs,46,"1,217.50",4/18/2012,R,OPP UNLOCKING POTENTIAL       
2012 - MAY,CS -Oth Operating Inc & Expend,Trading A/c Surpluses/Deficits,CHAS Scheme                             ,B06150,Supplies & Services           ,Prntng Stnry Gen Off Exp      ,DE03,Stationery,47,"2,933.28",4/24/2012,R,OVENDEN PAPERS LTD            
2012 - MAY,CS -Oth Operating Inc & Expend,Trading A/c Surpluses/Deficits,CHAS Scheme                             ,B06150,Supplies & Services           ,Services                      ,DF88,Assessor Fees,48,"2,395.00",4/3/2012,R,HOLLYGLADE LTD T/A BEACONRISK 
2012 - MAY,CS -Oth Operating Inc & Expend,Trading A/c Surpluses/Deficits,CHAS Scheme                             ,B06150,Supplies & Services           ,Services                      ,DF88,Assessor Fees,49,"1,005.00",4/24/2012,R,REDACTED
2012 - MAY,CS -Oth Operating Inc & Expend,Trading A/c Surpluses/Deficits,CHAS Scheme                             ,B06150,Supplies & Services           ,Services                      ,DF88,Assessor Fees,50,"1,360.00",4/26/2012,R,WEST WALES SAFETY SERVICES    
2012 - MAY,CS -Oth Operating Inc & Expend,Trading A/c Surpluses/Deficits,CHAS Scheme                             ,B06150,Supplies & Services           ,Services                      ,DF88,Assessor Fees,51,"2,935.00",4/27/2012,R,ALIMOR SAFETY LTD             
2012 - MAY,CS -Oth Operating Inc & Expend,Trading A/c Surpluses/Deficits,CHAS Scheme                             ,B06150,Supplies & Services           ,Services                      ,DF88,Assessor Fees,52,"2,405.00",4/27/2012,R,REDACTED
2012 - MAY,CS -Oth Operating Inc & Expend,Trading A/c Surpluses/Deficits,CHAS Scheme                             ,B06150,Supplies & Services           ,Services                      ,DF88,Assessor Fees,53,840,4/24/2012,R,REDACTED
2012 - MAY,CS -Oth Operating Inc & Expend,Trading A/c Surpluses/Deficits,CHAS Scheme                             ,B06150,Supplies & Services           ,Services                      ,DF88,Assessor Fees,54,590,4/30/2012,R,REDACTED
2012 - MAY,CS -Oth Operating Inc & Expend,Trading A/c Surpluses/Deficits,CHAS Scheme                             ,B06150,Supplies & Services           ,Services                      ,DF88,Assessor Fees,55,625,4/28/2012,R,REDACTED
2012 - MAY,CS -Oth Operating Inc & Expend,Trading A/c Surpluses/Deficits,CHAS Scheme                             ,B06150,Supplies & Services           ,Services                      ,DF88,Assessor Fees,56,665,4/22/2012,R,REDACTED
2012 - MAY,CS -Oth Operating Inc & Expend,Trading A/c Surpluses/Deficits,CHAS Scheme                             ,B06150,Supplies & Services           ,Services                      ,DF88,Assessor Fees,57,705,4/30/2012,R,REDACTED
2012 - MAY,CS -Oth Operating Inc & Expend,Trading A/c Surpluses/Deficits,CHAS Scheme                             ,B06150,Supplies & Services           ,Services                      ,DF88,Assessor Fees,58,"1,885.00",4/26/2012,R,REDACTED
2012 - MAY,CS -Oth Operating Inc & Expend,Trading A/c Surpluses/Deficits,CHAS Scheme                             ,B06150,Supplies & Services           ,Services                      ,DF88,Assessor Fees,59,"1,040.00",4/14/2012,R,REDACTED
2012 - MAY,CS -Oth Operating Inc & Expend,Trading A/c Surpluses/Deficits,CHAS Scheme                             ,B06150,Supplies & Services           ,Services                      ,DF88,Assessor Fees,60,"1,840.00",4/30/2012,R,REDACTED
2012 - MAY,CS -Oth Operating Inc & Expend,Trading A/c Surpluses/Deficits,CHAS Scheme                             ,B06150,Supplies & Services           ,Services                      ,DF88,Assessor Fees,61,885,4/30/2012,R,REDACTED
2012 - MAY,CS -Oth Operating Inc & Expend,Trading A/c Surpluses/Deficits,CHAS Scheme                             ,B06150,Supplies & Services           ,Services                      ,DF88,Assessor Fees,62,920,4/30/2012,R,REDACTED
2012 - MAY,CS -Oth Operating Inc & Expend,Trading A/c Surpluses/Deficits,CHAS Scheme                             ,B06150,Supplies & Services           ,Services                      ,DF88,Assessor Fees,63,"2,400.00",3/31/2012,R,REDACTED
2012 - MAY,CS -Oth Operating Inc & Expend,Trading A/c Surpluses/Deficits,CHAS Scheme                             ,B06150,Supplies & Services           ,Services                      ,DF88,Assessor Fees,64,590,5/1/2012,R,REDACTED
2012 - MAY,CS -Oth Operating Inc & Expend,Trading A/c Surpluses/Deficits,CHAS Scheme                             ,B06150,Supplies & Services           ,Services                      ,DF88,Assessor Fees,65,715,4/30/2012,R,REDACTED
2012 - MAY,CS -Oth Operating Inc & Expend,Trading A/c Surpluses/Deficits,CHAS Scheme                             ,B06150,Supplies & Services           ,Services                      ,DF88,Assessor Fees,66,545,4/30/2012,R,REDACTED
2012 - MAY,CS -Oth Operating Inc & Expend,Trading A/c Surpluses/Deficits,CHAS Scheme                             ,B06150,Supplies & Services           ,Services                      ,DF88,Assessor Fees,67,"2,885.00",4/30/2012,R,SOUTH EAST HEALTH & SAFETY LTD
2012 - MAY,CS -Oth Operating Inc & Expend,Trading A/c Surpluses/Deficits,CHAS Scheme                             ,B06150,Supplies & Services           ,Services                      ,DF88,Assessor Fees,68,"2,061.76",5/1/2012,R,REDACTED
2012 - MAY,CS -Oth Operating Inc & Expend,Trading A/c Surpluses/Deficits,CHAS Scheme                             ,B06150,Supplies & Services           ,Services                      ,DF88,Assessor Fees,69,580,4/30/2012,R,REDACTED
2012 - MAY,CS -Oth Operating Inc & Expend,Trading A/c Surpluses/Deficits,CHAS Scheme                             ,B06150,Supplies & Services           ,Services                      ,DF88,Assessor Fees,70,"2,220.00",4/28/2012,R,REDACTED
2012 - MAY,CS -Oth Operating Inc & Expend,Trading A/c Surpluses/Deficits,CHAS Scheme                             ,B06150,Supplies & Services           ,Services                      ,DF88,Assessor Fees,71,880,4/30/2012,R,REDACTED
2012 - MAY,CS -Oth Operating Inc & Expend,Trading A/c Surpluses/Deficits,CHAS Scheme                             ,B06150,Supplies & Services           ,Services                      ,DF88,Assessor Fees,72,"2,520.00",4/30/2012,R,2ND NATURE SAFETY SOLUTIONS UK
2012 - MAY,CS -Oth Operating Inc & Expend,Trading A/c Surpluses/Deficits,CHAS Scheme                             ,B06150,Supplies & Services           ,Services                      ,DF88,Assessor Fees,73,"2,115.67",4/30/2012,R,REDACTED
2012 - MAY,CS -Oth Operating Inc & Expend,Trading A/c Surpluses/Deficits,CHAS Scheme                             ,B06150,Supplies & Services           ,Services                      ,DF88,Assessor Fees,74,"4,830.00",5/1/2012,R,ARC ASSOCIATES (UK)           
2012 - MAY,CS -Oth Operating Inc & Expend,Trading A/c Surpluses/Deficits,CHAS Scheme                             ,B06150,Supplies & Services           ,Services                      ,DF88,Assessor Fees,75,800,5/2/2012,R,REDACTED
2012 - MAY,CS -Oth Operating Inc & Expend,Trading A/c Surpluses/Deficits,CHAS Scheme                             ,B06150,Supplies & Services           ,Services                      ,DF88,Assessor Fees,76,"1,975.00",5/2/2012,R,MGW SAFETY SERVICES           
2012 - MAY,CS -Oth Operating Inc & Expend,Trading A/c Surpluses/Deficits,CHAS Scheme                             ,B06150,Supplies & Services           ,Services                      ,DF88,Assessor Fees,77,"1,205.00",4/28/2012,R,WOODS CONSULTANCY SERVICES LTD
2012 - MAY,CS -Oth Operating Inc & Expend,Trading A/c Surpluses/Deficits,CHAS Scheme                             ,B06150,Supplies & Services           ,Services                      ,DF88,Assessor Fees,78,"3,490.00",5/3/2012,R,REDACTED
2012 - MAY,CS -Oth Operating Inc & Expend,Trading A/c Surpluses/Deficits,CHAS Scheme                             ,B06150,Supplies & Services           ,Services                      ,DF88,Assessor Fees,79,"1,055.00",5/1/2012,R,REDACTED
2012 - MAY,CS -Oth Operating Inc & Expend,Trading A/c Surpluses/Deficits,CHAS Scheme                             ,B06150,Supplies & Services           ,Services                      ,DF88,Assessor Fees,80,"3,995.00",1/1/2012,R,STALLARD KANE ASSOCIATES LTD  
2012 - MAY,CS -Oth Operating Inc & Expend,Trading A/c Surpluses/Deficits,CHAS Scheme                             ,B06150,Supplies & Services           ,Services                      ,DF88,Assessor Fees,81,800,5/1/2012,R,REDACTED
2012 - MAY,CS -Oth Operating Inc & Expend,Trading A/c Surpluses/Deficits,CHAS Scheme                             ,B06150,Supplies & Services           ,Services                      ,DF88,Assessor Fees,82,790,5/2/2012,R,REDACTED
2012 - MAY,CS -Oth Operating Inc & Expend,Trading A/c Surpluses/Deficits,CHAS Scheme                             ,B06150,Supplies & Services           ,Services                      ,DF88,Assessor Fees,83,660,5/3/2012,R,REDACTED
2012 - MAY,CS -Oth Operating Inc & Expend,Trading A/c Surpluses/Deficits,CHAS Scheme                             ,B06150,Supplies & Services           ,Services                      ,DF88,Assessor Fees,84,"2,940.00",4/30/2012,R,REDACTED
2012 - MAY,CS -Oth Operating Inc & Expend,Trading A/c Surpluses/Deficits,CHAS Scheme                             ,B06150,Supplies & Services           ,Services                      ,DF88,Assessor Fees,85,760,5/7/2012,R,REDACTED
2012 - MAY,CS -Oth Operating Inc & Expend,Trading A/c Surpluses/Deficits,CHAS Scheme                             ,B06150,Supplies & Services           ,Services                      ,DF88,Assessor Fees,86,"2,135.00",4/30/2012,R,REDACTED
2012 - MAY,CS -Oth Operating Inc & Expend,Trading A/c Surpluses/Deficits,CHAS Scheme                             ,B06150,Supplies & Services           ,Services                      ,DF88,Assessor Fees,87,"1,005.00",4/30/2012,R,REDACTED
2012 - MAY,CS -Oth Operating Inc & Expend,Trading A/c Surpluses/Deficits,CHAS Scheme                             ,B06150,Supplies & Services           ,Services                      ,DF88,Assessor Fees,88,"2,345.00",5/14/2012,R,REDACTED
2012 - MAY,CS -Oth Operating Inc & Expend,Trading A/c Surpluses/Deficits,CHAS Scheme                             ,B06150,Supplies & Services           ,Services                      ,DF88,Assessor Fees,89,500,5/16/2012,R,REDACTED
2012 - MAY,CS -Oth Operating Inc & Expend,Trading A/c Surpluses/Deficits,CHAS Scheme                             ,B06150,Supplies & Services           ,Services                      ,DF88,Assessor Fees,90,"1,085.00",4/30/2012,R,REDACTED
2012 - MAY,CS -Oth Operating Inc & Expend,Trading A/c Surpluses/Deficits,CHAS Scheme                             ,B06150,Supplies & Services           ,Services                      ,DF88,Assessor Fees,91,630,5/11/2012,R,REDACTED
2012 - MAY,CS -Oth Operating Inc & Expend,Trading A/c Surpluses/Deficits,CHAS Scheme                             ,B06150,Supplies & Services           ,Services                      ,DF88,Assessor Fees,92,"1,200.00",5/9/2012,R,REDACTED
2012 - MAY,CS -Oth Operating Inc & Expend,Trading A/c Surpluses/Deficits,CHAS Scheme                             ,B06150,Supplies & Services           ,Services                      ,DF88,Assessor Fees,93,"3,264.72",5/8/2012,R,REDACTED
2012 - MAY,CS -Oth Operating Inc & Expend,Trading A/c Surpluses/Deficits,CHAS Scheme                             ,B06150,Supplies & Services           ,Services                      ,DF88,Assessor Fees,94,525,5/9/2012,R,REDACTED
2012 - MAY,CS -Oth Operating Inc & Expend,Trading A/c Surpluses/Deficits,CHAS Scheme                             ,B06150,Supplies & Services           ,Services                      ,DF88,Assessor Fees,95,"3,060.21",5/7/2012,R,REDACTED
2012 - MAY,CS -Oth Operating Inc & Expend,Trading A/c Surpluses/Deficits,CHAS Scheme                             ,B06150,Supplies & Services           ,Services                      ,DF88,Assessor Fees,96,500,4/30/2012,R,REDACTED
2012 - MAY,CS -Oth Operating Inc & Expend,Trading A/c Surpluses/Deficits,CHAS Scheme                             ,B06150,Supplies & Services           ,Services                      ,DF88,Assessor Fees,97,"1,400.00",5/12/2012,R,REDACTED
2012 - MAY,CS -Oth Operating Inc & Expend,Trading A/c Surpluses/Deficits,CHAS Scheme                             ,B06150,Supplies & Services           ,Services                      ,DF88,Assessor Fees,98,"2,735.00",4/24/2012,R,HOLLYGLADE LTD T/A BEACONRISK 
2012 - MAY,CS -Oth Operating Inc & Expend,Trading A/c Surpluses/Deficits,CHAS Scheme                             ,B06150,Supplies & Services           ,Services                      ,DF88,Assessor Fees,99,955,4/30/2012,R,SELECT SAFETY LIMITED         
2012 - MAY,CS -Oth Operating Inc & Expend,Trading A/c Surpluses/Deficits,CHAS Scheme                             ,B06150,Supplies & Services           ,Services                      ,DF88,Assessor Fees,100,920,5/8/2012,R,REDACTED
2012 - MAY,CS -Oth Operating Inc & Expend,Trading A/c Surpluses/Deficits,CHAS Scheme                             ,B06150,Supplies & Services           ,Services                      ,DF88,Assessor Fees,101,985,5/12/2012,R,REDACTED
2012 - MAY,CS -Oth Operating Inc & Expend,Trading A/c Surpluses/Deficits,CHAS Scheme                             ,B06150,Supplies & Services           ,Services                      ,DF88,Assessor Fees,102,"1,930.00",5/15/2012,R,REDACTED
2012 - MAY,CS -Oth Operating Inc & Expend,Trading A/c Surpluses/Deficits,CHAS Scheme                             ,B06150,Supplies & Services           ,Services                      ,DF88,Assessor Fees,103,"1,300.00",5/10/2012,R,REDACTED
2012 - MAY,CS -Oth Operating Inc & Expend,Trading A/c Surpluses/Deficits,CHAS Scheme                             ,B06150,Supplies & Services           ,Services                      ,DF88,Assessor Fees,104,955,5/21/2012,R,TERN ASSOCIATES LTD           
2012 - MAY,CS -Oth Operating Inc & Expend,Trading A/c Surpluses/Deficits,CHAS Scheme                             ,B06150,Supplies & Services           ,Expenses                      ,DH02,Conferences,105,"1,960.00",4/25/2012,R,UBM INFORMATION LTD           
2012 - MAY,,,CCTV (match funding)                    ,CE002EA,Vehicles Plant Equipment and Machinery,,D3,Equipment,106,"-8,706.91",3/14/2012,C,EUROVIA INFRASTRUCTURE LTD    
2012 - MAY,,,Disabled Facilities Grant DCLG          ,CE004RA,Other Capital Expenditure,,E1,Grants,107,"5,625.00",5/3/2012,C,FREEWAY LIFT SERVICES LTD     
2012 - MAY,,,Disabled Facilities Grant DCLG          ,CE004RA,Other Capital Expenditure,,E1,Grants,108,"5,857.00",5/9/2012,C,PREMIER ADAPTATIONS LTD       
2012 - MAY,,,Disabled Facilities Grant DCLG          ,CE004RA,Other Capital Expenditure,,E1,Grants,109,702.84,5/9/2012,C,R E SHELLEY                   
2012 - MAY,,,Disabled Facilities Grant DCLG          ,CE004RA,Other Capital Expenditure,,E1,Grants,110,"2,794.00",5/9/2012,C,ASCENDIT LIFTS LTD            
2012 - MAY,,,Disabled Facilities Grant DCLG          ,CE004RA,Other Capital Expenditure,,E1,Grants,111,"2,722.80",5/29/2012,C,CBS ADAPTATION                
2012 - MAY,,,Disabled Facilities Grant DCLG          ,CE004RA,Other Capital Expenditure,,E1,Grants,112,"5,559.00",5/29/2012,C,PREMIER ADAPTATIONS LTD       
2012 - MAY,,,Disabled Facilities Grant DCLG          ,CE004RA,Other Capital Expenditure,,E1,Grants,113,"14,351.00",5/31/2012,C,URBAN CONSTRUCTION            
2012 - MAY,,,Disabled Facilities Grant DCLG          ,CE004RA,Other Capital Expenditure,,E1,Grants,114,621,5/30/2012,C,STAYING FIRST                 
2012 - MAY,,,Disabled Facilities Grant DCLG          ,CE004RA,Other Capital Expenditure,,E1,Grants,115,"16,741.60",5/31/2012,C,URBAN CONSTRUCTION            
2012 - MAY,,,Disabled Facilities Grant DCLG          ,CE004RA,Other Capital Expenditure,,E1,Grants,116,"1,701.48",5/31/2012,C,R E SHELLEY                   
2012 - MAY,,,Disabled Facilities Grant DCLG          ,CE004RA,Other Capital Expenditure,,E1,Grants,117,"5,826.00",5/30/2012,C,REDACTED
2012 - MAY,,,Disabled Facilities Grant DCLG          ,CE004RA,Other Capital Expenditure,,E1,Grants,118,"1,549.97",5/30/2012,C,REDACTED
2012 - MAY,,,B640-Ravensbury Pk Development          ,CE009CD,New Construction Conversion and Renovation,,B4,Site Works - Contractor,119,"2,000.00",5/17/2012,C,TAYLOR BUILDING COMPANY LTD   
2012 - MAY,,,Parks Investment                        ,CE013SA,New Construction Conversion and Renovation,,B1,Design and Supervision - Consultants Fee,120,"3,000.00",4/30/2012,C,MATTHEW CHILDS DESIGN         
2012 - MAY,,,Parks Investment                        ,CE013SA,New Construction Conversion and Renovation,,B4,Site Works - Contractor,121,"1,250.00",1/19/2012,C,REDACTED
2012 - MAY,,,Parks Investment                        ,CE013SA,New Construction Conversion and Renovation,,B4,Site Works - Contractor,122,"1,450.00",5/4/2012,C,REDDINGTON & SONS             
2012 - MAY,,,Parks Investment                        ,CE013SA,New Construction Conversion and Renovation,,B4,Site Works - Contractor,123,"5,943.00",5/3/2012,C,KOI & WATER GARDENS           
2012 - MAY,,,Parks Investment                        ,CE013SA,New Construction Conversion and Renovation,,B4,Site Works - Contractor,124,"3,650.00",5/10/2012,C,REDDINGTON & SONS             
2012 - MAY,,,London Road Toilet Refurbishme          ,CE014SA,New Construction Conversion and Renovation,,B4,Site Works - Contractor,125,"3,389.00",4/18/2012,C,RITEC DECORATORS LIMITED      
2012 - MAY,,,Borough Roads Maintenance               ,CE026FA,New Construction Conversion and Renovation,,B2,Design and Supervision - Site Surveys,126,"1,529.18",3/21/2012,C,L. B. OF HAMMERSMITH & FULHAM 
2012 - MAY,,,Borough Roads Maintenance               ,CE026FA,New Construction Conversion and Renovation,,C3,Public Notices,127,970.2,4/28/2012,C,NEWSQUEST (LONDON)LTD         
2012 - MAY,,,Repairs to Footways                     ,CE029FA,New Construction Conversion and Renovation,,B4,Site Works - Contractor,128,"6,950.04",5/2/2012,C,FM CONWAY LTD                 
2012 - MAY,,,Repairs to Footways                     ,CE029FA,New Construction Conversion and Renovation,,B4,Site Works - Contractor,129,"10,000.00",5/22/2012,C,FM CONWAY LTD                 
2012 - MAY,,,Repairs to Footways                     ,CE029FA,New Construction Conversion and Renovation,,B4,Site Works - Contractor,130,"20,000.00",5/22/2012,C,FM CONWAY LTD                 
2012 - MAY,,,Repairs to Footways                     ,CE029FA,New Construction Conversion and Renovation,,B4,Site Works - Contractor,131,"10,000.00",5/22/2012,C,FM CONWAY LTD                 
2012 - MAY,,,Wimbledon Park Watersport Cent          ,CE030SB,New Construction Conversion and Renovation,,B4,Site Works - Contractor,132,"11,300.00",4/30/2012,C,LIFESTYLE WINDOW SYSTEMS      
2012 - MAY,,,Morden Park changing rooms              ,CE045AB,New Construction Conversion and Renovation,,B1,Design and Supervision - Consultants Fee,133,"3,867.00",3/14/2012,C,GROUNDWORK LONDON LTD.        
2012 - MAY,,,CPZ - Parking Management                ,CE046EA,New Construction Conversion and Renovation,,B5,Site Works - Suppliers,134,"5,460.00",4/25/2012,C,PARKEON LTD                   
2012 - MAY,,,Town Centre Investment                  ,CE061FB,New Construction Conversion and Renovation,,B4,Site Works - Contractor,135,"3,990.00",3/27/2012,C,FM CONWAY LTD                 
2012 - MAY,,,Town Centre Investment                  ,CE061FB,New Construction Conversion and Renovation,,B4,Site Works - Contractor,136,"5,000.00",3/27/2012,C,FM CONWAY LTD                 
2012 - MAY,,,Improve markings & road signs           ,CE066EA,Vehicles Plant Equipment and Machinery,,D3,Equipment,137,"9,217.52",5/2/2012,C,IMPERIAL CIVIL ENFORC.SOLUT.  
2012 - MAY,,,Improve markings & road signs           ,CE066EA,Vehicles Plant Equipment and Machinery,,D3,Equipment,138,"4,963.14",3/31/2012,C,IMPERIAL CIVIL ENFORC.SOLUT.  
2012 - MAY,,,Improve markings & road signs           ,CE066EA,Vehicles Plant Equipment and Machinery,,D5,Software,139,"40,330.00",4/25/2012,C,TRAFFIC SAFETY SYSTEMS LTD    
2012 - MAY,,,Raynes Park Street Scene                ,CE066FB,New Construction Conversion and Renovation,,B4,Site Works - Contractor,140,"9,410.00",3/27/2012,C,FM CONWAY LTD                 
2012 - MAY,,,Street scene enhancements               ,CE066FE,New Construction Conversion and Renovation,,B4,Site Works - Contractor,141,"18,179.15",3/27/2012,C,FM CONWAY LTD                 
2012 - MAY,,,Street scene enhancements               ,CE066FE,New Construction Conversion and Renovation,,B4,Site Works - Contractor,142,"18,079.00",3/27/2012,C,TAYLOR BUILDING COMPANY LTD   
2012 - MAY,,,Replacement of Fleet Vehicles           ,CE082EA,Vehicles Plant Equipment and Machinery,,D1,Vehicles,143,"9,977.35",4/25/2012,C,CITROEN LONDON WEST           
2012 - MAY,,,Replacement of Fleet Vehicles           ,CE082EA,Vehicles Plant Equipment and Machinery,,D1,Vehicles,144,"11,616.42",4/4/2012,C,KENT COUNTY COUNCIL           
2012 - MAY,,,Replacement of Fleet Vehicles           ,CE082EA,Vehicles Plant Equipment and Machinery,,D1,Vehicles,145,"11,616.42",4/4/2012,C,KENT COUNTY COUNCIL           
2012 - MAY,,,Replacement of Fleet Vehicles           ,CE082EA,Vehicles Plant Equipment and Machinery,,D1,Vehicles,146,"11,616.42",4/4/2012,C,KENT COUNTY COUNCIL           
2012 - MAY,,,Replacement of Fleet Vehicles           ,CE082EA,Vehicles Plant Equipment and Machinery,,D1,Vehicles,147,"13,679.36",4/25/2012,C,CITROEN LONDON WEST           
2012 - MAY,,,Replacement of Fleet Vehicles           ,CE082EA,Vehicles Plant Equipment and Machinery,,D1,Vehicles,148,"13,845.86",4/25/2012,C,CITROEN LONDON WEST           
2012 - MAY,,,Replacement of Fleet Vehicles           ,CE082EA,Vehicles Plant Equipment and Machinery,,D1,Vehicles,149,"9,698.83",4/25/2012,C,CITROEN LONDON WEST           
2012 - MAY,,,Replacement of Fleet Vehicles           ,CE082EA,Vehicles Plant Equipment and Machinery,,D1,Vehicles,150,"9,698.83",4/25/2012,C,CITROEN LONDON WEST           
2012 - MAY,,,Replacement of Fleet Vehicles           ,CE082EA,Vehicles Plant Equipment and Machinery,,D1,Vehicles,151,"13,994.36",4/25/2012,C,CITROEN LONDON WEST           
2012 - MAY,,,Replacement of Fleet Vehicles           ,CE082EA,Vehicles Plant Equipment and Machinery,,D1,Vehicles,152,"55,641.00",4/26/2012,C,KENT COUNTY COUNCIL           
2012 - MAY,,,Replacement of Fleet Vehicles           ,CE082EA,Vehicles Plant Equipment and Machinery,,D1,Vehicles,153,"60,295.00",4/26/2012,C,SCARAB SWEEPERS LTD           
2012 - MAY,,,Replacement of Fleet Vehicles           ,CE082EA,Vehicles Plant Equipment and Machinery,,D1,Vehicles,154,"32,950.00",4/26/2012,C,SCARAB SWEEPERS LTD           
2012 - MAY,,,Replacement of Fleet Vehicles           ,CE082EA,Vehicles Plant Equipment and Machinery,,D1,Vehicles,155,"55,641.00",5/18/2012,C,KENT COUNTY COUNCIL           
2012 - MAY,,,Replacement of Fleet Vehicles           ,CE082EA,Vehicles Plant Equipment and Machinery,,D1,Vehicles,156,"55,641.00",5/18/2012,C,KENT COUNTY COUNCIL           
2012 - MAY,,,B574 Town Centre transport imp          ,CE085FJ,New Construction Conversion and Renovation,,B4,Site Works - Contractor,157,"5,725.02",5/22/2012,C,FM CONWAY LTD                 
2012 - MAY,,,Waste Phase B - Replace RCVs            ,CE092EA,New Construction Conversion and Renovation,,B5,Site Works - Suppliers,158,"2,310.00",4/30/2012,C,BROXAP LIMITED                
2012 - MAY,,,Waste Phase B - Replace RCVs            ,CE092EA,New Construction Conversion and Renovation,,B5,Site Works - Suppliers,159,"11,850.00",5/1/2012,C,BROXAP LIMITED                
2012 - MAY,,,Waste Phase B - Replace RCVs            ,CE092EA,New Construction Conversion and Renovation,,B5,Site Works - Suppliers,160,"1,140.00",5/14/2012,C,BROXAP LIMITED                
2012 - MAY,,,Waste Phase B - Replace RCVs            ,CE092EA,New Construction Conversion and Renovation,,B5,Site Works - Suppliers,161,"2,700.00",5/14/2012,C,BROXAP LIMITED                
2012 - MAY,,,Waste Phase B - Replace RCVs            ,CE092EA,Vehicles Plant Equipment and Machinery,,D1,Vehicles,162,"38,045.00",4/24/2012,C,SCARAB SWEEPERS LTD           
2012 - MAY,,,Waste Phase B - Replace RCVs            ,CE092EA,Vehicles Plant Equipment and Machinery,,D1,Vehicles,163,"66,180.00",4/24/2012,C,SCARAB SWEEPERS LTD           
2012 - MAY,,,Waste Phase B - Replace RCVs            ,CE092EA,Vehicles Plant Equipment and Machinery,,D1,Vehicles,164,"2,000.00",4/26/2012,C,SCARAB SWEEPERS LTD           
2012 - MAY,,,Strategic corridor Mitcham              ,CE104FB,New Construction Conversion and Renovation,,B4,Site Works - Contractor,165,"2,700.65",5/22/2012,C,FM CONWAY LTD                 
2012 - MAY,,,Strategic corridor Mitcham              ,CE104FB,New Construction Conversion and Renovation,,B4,Site Works - Contractor,166,"9,523.88",5/22/2012,C,FM CONWAY LTD                 
2012 - MAY,,,Kingston/Hartfield Rd StratCor          ,CE104FC,New Construction Conversion and Renovation,,B2,Design and Supervision - Site Surveys,167,750,3/31/2012,C,REDACTED
2012 - MAY,,,Accesibility Programme                  ,CE104FD,New Construction Conversion and Renovation,,B4,Site Works - Contractor,168,"12,700.00",5/22/2012,C,FM CONWAY LTD                 
2012 - MAY,,,20MPH Zones                             ,CE104FF,New Construction Conversion and Renovation,,B4,Site Works - Contractor,169,"27,000.00",4/30/2012,C,FM CONWAY LTD                 
2012 - MAY,,,Casualty Reduction & Schools            ,CE104RA,New Construction Conversion and Renovation,,B6,Site Works - Other Costs,170,"1,942.89",5/24/2012,C,TRANSPORT FOR LONDON          
2012 - MAY,,,School & Road Safety Campaigns          ,CE104RC,New Construction Conversion and Renovation,,B1,Design and Supervision - Consultants Fee,171,"15,945.00",3/29/2012,C,SUSTRANS LIMITED              
2012 - MAY,,,School & Road Safety Campaigns          ,CE104RC,Other Capital Expenditure,,E3,Miscellaneous Capital Expenditure,172,"1,465.00",5/23/2012,C,PREMIER RIDER TRAINING        
2012 - MAY,,,School & Road Safety Campaigns          ,CE104RC,Other Capital Expenditure,,E4,TFL Other,173,760,4/30/2012,C,CASTLETON SIGNS               
2012 - MAY,,,School & Road Safety Campaigns          ,CE104RC,Other Capital Expenditure,,E4,TFL Other,174,600,5/1/2012,C,BLAKES DRIVER TRAINING        
2012 - MAY,,,School & Road Safety Campaigns          ,CE104RC,Other Capital Expenditure,,E4,TFL Other,175,500,5/21/2012,C,BLAKES DRIVER TRAINING        
2012 - MAY,,,School & Road Safety Campaigns          ,CE104RC,Other Capital Expenditure,,E4,TFL Other,176,"10,088.00",5/9/2012,C,BITE CP LTD                   
2012 - MAY,,,Road Safety & STP Marketing             ,CE104RD,New Construction Conversion and Renovation,,B1,Design and Supervision - Consultants Fee,177,996,3/29/2012,C,SUSTRANS LIMITED              
2012 - MAY,,,TFL Slippage - Corridors&Neigh          ,CE104RK,New Construction Conversion and Renovation,,B4,Site Works - Contractor,178,975.64,4/24/2012,C,MAY GURNEY LTD T/A CARTLEDGE  
2012 - MAY,,,TFL Slippage - Corridors&Neigh          ,CE104RK,New Construction Conversion and Renovation,,B4,Site Works - Contractor,179,"3,822.57",5/22/2012,C,FM CONWAY LTD                 
2012 - MAY,,,TFL Slippage - Corridors&Neigh          ,CE104RK,New Construction Conversion and Renovation,,B4,Site Works - Contractor,180,"16,809.03",5/22/2012,C,FM CONWAY LTD                 
2012 - MAY,,,TFL Slippage - Corridors&Neigh          ,CE104RK,New Construction Conversion and Renovation,,B4,Site Works - Contractor,181,"2,330.50",5/22/2012,C,FM CONWAY LTD                 
2012 - MAY,,,TFL Slippage - Corridors&Neigh          ,CE104RK,New Construction Conversion and Renovation,,B4,Site Works - Contractor,182,"14,946.45",5/22/2012,C,FM CONWAY LTD                 
2012 - MAY,,,Leisure Services Parks&OpenSp           ,CE110SA,New Construction Conversion and Renovation,,B4,Site Works - Contractor,183,"3,600.00",3/6/2012,C,TAYLOR BUILDING COMPANY LTD   
2012 - MAY,,,Leisure Services Parks&OpenSp           ,CE110SA,New Construction Conversion and Renovation,,B4,Site Works - Contractor,184,"9,968.00",5/8/2012,C,TAYLOR BUILDING COMPANY LTD   
2012 - MAY,,,Marathon Trust BMX Track                ,CE114SA,New Construction Conversion and Renovation,,B1,Design and Supervision - Consultants Fee,185,"4,924.00",5/9/2012,C,MATERIALS SCIENCE CONS. LTD   
2012 - MAY,,,Marathon Trust BMX Track                ,CE114SA,New Construction Conversion and Renovation,,B4,Site Works - Contractor,186,"18,766.25",4/19/2012,C,CLARK AND KENT CONTRACTORS    
2012 - MAY,,,Marathon Trust BMX Track                ,CE114SA,New Construction Conversion and Renovation,,B4,Site Works - Contractor,187,"11,158.75",4/19/2012,C,CLARK AND KENT CONTRACTORS    
2012 - MAY,,,Universal Cold Busters                  ,CE120RA,Other Capital Expenditure,,E1,Grants,188,"2,978.85",5/3/2012,C,CLAYDON HEATING               
2012 - MAY,,,Universal Cold Busters                  ,CE120RA,Other Capital Expenditure,,E1,Grants,189,"2,880.15",5/3/2012,C,CLAYDON HEATING               
2012 - MAY,,,Universal Cold Busters                  ,CE120RA,Other Capital Expenditure,,E1,Grants,190,"3,670.80",5/30/2012,C,GLOWARM CENTRAL HEATING LTD   
2012 - MAY,,,Universal Cold Busters                  ,CE120RA,Other Capital Expenditure,,E1,Grants,191,578.64,5/30/2012,C,CLIMATE ENERGY LTD            
2012 - MAY,,,Civic Centre refurbishment              ,CF001AB,New Construction Conversion and Renovation,,B4,Site Works - Contractor,192,"4,137.50",4/30/2012,C,KH FLOORING LTD               
2012 - MAY,,,Civic Centre refurbishment              ,CF001AB,New Construction Conversion and Renovation,,B4,Site Works - Contractor,193,"3,266.00",5/11/2012,C,RITEC DECORATORS LIMITED      
2012 - MAY,,,Civic Centre refurbishment              ,CF001AB,New Construction Conversion and Renovation,,B4,Site Works - Contractor,194,"8,161.00",5/11/2012,C,RITEC DECORATORS LIMITED      
2012 - MAY,,,Civic Centre refurbishment              ,CF001AB,New Construction Conversion and Renovation,,B4,Site Works - Contractor,195,"6,699.60",5/21/2012,C,RITEC DECORATORS LIMITED      
2012 - MAY,,,Civic Centre refurbishment              ,CF001AB,New Construction Conversion and Renovation,,B4,Site Works - Contractor,196,"5,850.00",5/23/2012,C,SSD LIMITED                   
2012 - MAY,,,Civic Centre refurbishment              ,CF001AB,New Construction Conversion and Renovation,,B4,Site Works - Contractor,197,750,5/17/2012,C,SSD LIMITED                   
2012 - MAY,,,Civic Centre refurbishment              ,CF001AB,New Construction Conversion and Renovation,,B4,Site Works - Contractor,198,"3,100.00",5/17/2012,C,SSD LIMITED                   
2012 - MAY,,,Civic Centre refurbishment              ,CF001AB,New Construction Conversion and Renovation,,B4,Site Works - Contractor,199,"4,775.00",5/17/2012,C,SSD LIMITED                   
2012 - MAY,,,Civic Centre refurbishment              ,CF001AB,Vehicles Plant Equipment and Machinery,,D3,Equipment,200,980,4/27/2012,C,NETWORK SOLUTIONS INC         
2012 - MAY,,,Civic Centre refurbishment              ,CF001AB,Vehicles Plant Equipment and Machinery,,D4,Specialist Furniture,201,"1,663.20",5/15/2012,C,UNIQUE OFFICE SOLUTIONS LTD   
2012 - MAY,,,Civic Centre refurbishment              ,CF001AB,Vehicles Plant Equipment and Machinery,,D4,Specialist Furniture,202,"3,109.14",5/15/2012,C,UNIQUE OFFICE SOLUTIONS LTD   
2012 - MAY,,,Civic Centre refurbishment              ,CF001AB,Vehicles Plant Equipment and Machinery,,D4,Specialist Furniture,203,"1,165.60",5/15/2012,C,UNIQUE OFFICE SOLUTIONS LTD   
2012 - MAY,,,Civic Centre refurbishment              ,CF001AB,Vehicles Plant Equipment and Machinery,,D4,Specialist Furniture,204,882,5/15/2012,C,UNIQUE OFFICE SOLUTIONS LTD   
2012 - MAY,,,Chaucer Centre Replace Boilers          ,CF003AA,New Construction Conversion and Renovation,,B4,Site Works - Contractor,205,"1,601.02",3/26/2012,C,C FLETCHER SONS & CO LTD      
2012 - MAY,,,Invest to Save schemes-General          ,CF003SA,New Construction Conversion and Renovation,,B4,Site Works - Contractor,206,"2,436.00",5/16/2012,C,THORLUX LIGHTING              
2012 - MAY,,,Fixed Electrical Ins. Testing           ,CF004SG,New Construction Conversion and Renovation,,B4,Site Works - Contractor,207,"3,398.28",5/17/2012,C,MORTON FAIRVIEW ELEC SERVICES 
2012 - MAY,,,Fixed Electrical Ins. Testing           ,CF004SG,New Construction Conversion and Renovation,,B4,Site Works - Contractor,208,"1,695.00",4/18/2012,C,MORTON FAIRVIEW ELEC SERVICES 
2012 - MAY,,,Gifford House Legal Move                ,CF060AB,New Construction Conversion and Renovation,,B4,Site Works - Contractor,209,883.5,3/31/2012,C,EDE'S (U.K.) LTD              
2012 - MAY,,,Resurfacing of Peel House Upper Car Park,CGH37RD,New Construction Conversion and Renovation,,2N,Capital main contractor payments,210,"1,295.97",5/2/2012,C,MAKERS CONSTRUCTION LIMITED   
2012 - MAY,,,Raynes Park Sports Pavilion             ,CS003CA,New Construction Conversion and Renovation,,B1,Design and Supervision - Consultants Fee,211,"6,225.00",5/16/2012,C,HAVERSTOCK ASSOCIATES LLP     
2012 - MAY,,,Brightwell                              ,CS004AA,New Construction Conversion and Renovation,,B4,Site Works - Contractor,212,575,4/16/2012,C,AIR SURVEYS  LIMITED          
2012 - MAY,,,Aragon expansion                        ,CS008AA,New Construction Conversion and Renovation,,B1,Design and Supervision - Consultants Fee,213,"10,120.46",3/28/2012,C,EC HARRIS LLP                 
2012 - MAY,,,Aragon expansion                        ,CS008AA,New Construction Conversion and Renovation,,B4,Site Works - Contractor,214,"50,236.82",4/19/2012,C,THOMAS SINDEN CONSTRUCTION LTD
2012 - MAY,,,St Mary's expansion                     ,CS008RA,New Construction Conversion and Renovation,,B1,Design and Supervision - Consultants Fee,215,"5,491.63",4/18/2012,C,ATKINS LIMITED                
2012 - MAY,,,St Mary's expansion                     ,CS008RA,New Construction Conversion and Renovation,,B1,Design and Supervision - Consultants Fee,216,"22,302.70",4/18/2012,C,ATKINS LIMITED                
2012 - MAY,,,St Mary's expansion                     ,CS008RA,New Construction Conversion and Renovation,,B4,Site Works - Contractor,217,"123,261.57",5/9/2012,C,R DURTNELL & SONS LTD         
2012 - MAY,,,All Saints/ South Wim YCC exp           ,CS008SB,New Construction Conversion and Renovation,,B4,Site Works - Contractor,218,"192,826.53",5/18/2012,C,GEE CONSTRUCTION LTD          
2012 - MAY,,,Benedict expansion                      ,CS009AA,New Construction Conversion and Renovation,,B4,Site Works - Contractor,219,"122,210.06",4/27/2012,C,R DURTNELL & SONS LTD         
2012 - MAY,,,Hollymount Permanent Expansion          ,CS011AA,New Construction Conversion and Renovation,,B4,Site Works - Contractor,220,"141,000.00",4/27/2012,C,R DURTNELL & SONS LTD         
2012 - MAY,,,Hollymount Permanent Expansion          ,CS011AA,New Construction Conversion and Renovation,,B6,Site Works - Other Costs,221,"4,250.00",2/29/2012,C,EDE'S (U.K.) LTD              
2012 - MAY,,,Joseph Hood Permanent Expansn           ,CS012AA,New Construction Conversion and Renovation,,B4,Site Works - Contractor,222,"195,000.00",5/8/2012,C,GEE CONSTRUCTION LTD          
2012 - MAY,,,Garden PCP                              ,CS013AA,New Construction Conversion and Renovation,,B1,Design and Supervision - Consultants Fee,223,"10,837.09",3/28/2012,C,EC HARRIS LLP                 
2012 - MAY,,,Garden PCP                              ,CS013AA,New Construction Conversion and Renovation,,B4,Site Works - Contractor,224,"65,801.39",5/4/2012,C,R DURTNELL & SONS LTD         
2012 - MAY,,,SS Peter & Paul PCP                     ,CS014RA,New Construction Conversion and Renovation,,B1,Design and Supervision - Consultants Fee,225,"8,176.05",3/23/2012,C,ATKINS LIMITED                
2012 - MAY,,,William Morris PCP                      ,CS016AA,New Construction Conversion and Renovation,,B2,Design and Supervision - Site Surveys,226,"1,488.00",4/30/2012,C,PENNINGTON CHOICES            
2012 - MAY,,,Gorringe Park expansion                 ,CS018AB,New Construction Conversion and Renovation,,B4,Site Works - Contractor,227,"137,000.00",5/3/2012,C,GEE CONSTRUCTION LTD          
2012 - MAY,,,Hillcross School Expansion              ,CS020AC,New Construction Conversion and Renovation,,B1,Design and Supervision - Consultants Fee,228,"1,130.00",5/22/2012,C,CURL LA TOURELLE ARCHITECTS   
2012 - MAY,,,Hillcross School Expansion              ,CS020AC,New Construction Conversion and Renovation,,B2,Design and Supervision - Site Surveys,229,"1,080.00",4/20/2012,C,ABN AMRO COMMERCIAL FINANCE   
2012 - MAY,,,Hillcross School Expansion              ,CS020AC,New Construction Conversion and Renovation,,B2,Design and Supervision - Site Surveys,230,"1,100.00",5/10/2012,C,ALBURY S.I LTD                
2012 - MAY,,,Hillcross School Expansion              ,CS020AC,New Construction Conversion and Renovation,,B2,Design and Supervision - Site Surveys,231,650,5/14/2012,C,THE WATERFLOW GROUP PLC       
2012 - MAY,,,Dundonald expansion                     ,CS031AC,New Construction Conversion and Renovation,,B1,Design and Supervision - Consultants Fee,232,"3,150.00",4/27/2012,C,AREA LANDSCAPE ARCHITECTS     
2012 - MAY,,,Dundonald expansion                     ,CS031AC,New Construction Conversion and Renovation,,B1,Design and Supervision - Consultants Fee,233,"3,150.00",3/30/2012,C,AREA LANDSCAPE ARCHITECTS     
2012 - MAY,,,Dundonald expansion                     ,CS031AC,New Construction Conversion and Renovation,,B2,Design and Supervision - Site Surveys,234,625,3/31/2012,C,SIMON JONES ASSOCIATES LTD    
2012 - MAY,,,St Anns - Primary                       ,CS032AB,New Construction Conversion and Renovation,,B4,Site Works - Contractor,235,680.34,5/1/2012,C,PORTAKABIN LIMITED            
2012 - MAY,,,St Anns - Primary                       ,CS032AB,New Construction Conversion and Renovation,,B5,Site Works - Suppliers,236,"3,714.23",5/4/2012,C,BOSHIRE LTD                   
2012 - MAY,,,Liberty expansion                       ,CS036AB,New Construction Conversion and Renovation,,B2,Design and Supervision - Site Surveys,237,"4,500.00",4/30/2012,C,THE WATERFLOW GROUP PLC       
2012 - MAY,,,Liberty expansion                       ,CS036AB,New Construction Conversion and Renovation,,B4,Site Works - Contractor,238,"139,269.98",5/2/2012,C,R DURTNELL & SONS LTD         
2012 - MAY,,,Singlegate expansion                    ,CS049AA,New Construction Conversion and Renovation,,B4,Site Works - Contractor,239,"206,000.00",4/20/2012,C,MANSELL CONSTRUCTION SERVICES 
2012 - MAY,,,Wimbledon Park expansion                ,CS050AA,New Construction Conversion and Renovation,,B1,Design and Supervision - Consultants Fee,240,"37,223.61",4/27/2012,C,CURL LA TOURELLE ARCHITECTS   
2012 - MAY,,,Wimbledon Park expansion                ,CS050AA,New Construction Conversion and Renovation,,B1,Design and Supervision - Consultants Fee,241,"2,400.00",4/30/2012,C,SYNERGY CPC LLP               
2012 - MAY,,,Wimbledon Park expansion                ,CS050AA,New Construction Conversion and Renovation,,B1,Design and Supervision - Consultants Fee,242,"7,483.37",5/3/2012,C,RJF LANDSCAPE CONSULTANTS     
2012 - MAY,,,Wimbledon Park expansion                ,CS050AA,New Construction Conversion and Renovation,,B1,Design and Supervision - Consultants Fee,243,"2,400.00",4/30/2012,C,SYNERGY CPC LLP               
2012 - MAY,,,Wimbledon Park expansion                ,CS050AA,New Construction Conversion and Renovation,,B2,Design and Supervision - Site Surveys,244,"1,568.00",5/2/2012,C,NOBLE HEALTH & SAFETY CONSULT.
2012 - MAY,,,Wimbledon Park expansion                ,CS050AA,New Construction Conversion and Renovation,,B6,Site Works - Other Costs,245,"1,800.62",5/24/2012,C,THAMES WATER                  
2012 - MAY,,,Wimbledon Park expansion                ,CS050AA,New Construction Conversion and Renovation,,B6,Site Works - Other Costs,246,"9,018.39",5/23/2012,C,UK POWER NETWORKS (OPERATIONS)
2012 - MAY,,,Youth Centre Buildings                  ,CS062SA,Other Capital Expenditure,,E3,Miscellaneous Capital Expenditure,247,923,1/19/2012,C,CDEC LIMITED                  
2012 - MAY,,,Various schls-asbestos removal          ,CS080SA,New Construction Conversion and Renovation,,B2,Design and Supervision - Site Surveys,248,920,5/30/2012,C,ADAMS ENVIRONMENTAL LTD       
2012 - MAY,,,Breaks-disabled children grant          ,CS085RA,Vehicles Plant Equipment and Machinery,,D4,Specialist Furniture,249,"1,868.00",4/10/2012,C,HILL-ROM LTD                  
2012 - MAY,,,Breaks-disabled children grant          ,CS085RA,Vehicles Plant Equipment and Machinery,,D4,Specialist Furniture,250,"1,868.00",4/10/2012,C,HILL-ROM LTD                  
2012 - MAY,,,Breaks-disabled children grant          ,CS085RA,Vehicles Plant Equipment and Machinery,,D4,Specialist Furniture,251,"1,868.00",4/10/2012,C,HILL-ROM LTD                  
2012 - MAY,,,Breaks-disabled children grant          ,CS085RA,Vehicles Plant Equipment and Machinery,,D4,Specialist Furniture,252,987,3/15/2012,C,COMET GROUP PLC               
2012 - MAY,,,Breaks-disabled children grant          ,CS085RA,Vehicles Plant Equipment and Machinery,,D4,Specialist Furniture,253,579.98,3/15/2012,C,COMET GROUP PLC               
2012 - MAY,,,Breaks-disabled children grant          ,CS085RA,Vehicles Plant Equipment and Machinery,,D4,Specialist Furniture,254,"1,439.92",3/15/2012,C,COMET GROUP PLC               
2012 - MAY,,,Breaks-disabled children grant          ,CS085RA,Vehicles Plant Equipment and Machinery,,D4,Specialist Furniture,255,599.99,3/15/2012,C,COMET GROUP PLC               
2012 - MAY,,,Breaks-disabled children grant          ,CS085RA,Vehicles Plant Equipment and Machinery,,D4,Specialist Furniture,256,"-1,098.23",3/15/2012,C,COMET GROUP PLC               
2012 - MAY,,,Breaks-disabled children grant          ,CS085RA,Vehicles Plant Equipment and Machinery,,D4,Specialist Furniture,257,"2,186.38",5/17/2012,C,SOUTHERN CARE SYSTEMS LTD     
2012 - MAY,,,IT Equipment                            ,CT006EA,New Construction Conversion and Renovation,,B4,Site Works - Contractor,258,"6,021.10",3/30/2012,C,OLM SYSTEMS                   
2012 - MAY,,,IT Equipment                            ,CT006EA,Vehicles Plant Equipment and Machinery,,D3,Equipment,259,"2,695.86",5/2/2012,C,CISILION LTD                  
2012 - MAY,,,IT Equipment                            ,CT006EA,Vehicles Plant Equipment and Machinery,,D3,Equipment,260,"42,795.00",5/11/2012,C,COMPUTERLAND                  
2012 - MAY,,,Office 2007 Upgrade                     ,CT007ER,Vehicles Plant Equipment and Machinery,,D5,Software,261,"2,663.28",5/4/2012,C,CIVICA SERVICES LTD           
2012 - MAY,,,Windows 7 Upgrade                       ,CT007ES,Vehicles Plant Equipment and Machinery,,D3,Equipment,262,"7,478.00",5/8/2012,C,AMTEC COMPUTER CORPORATION LTD
2012 - MAY,,,Windows 7 Upgrade                       ,CT007ES,Vehicles Plant Equipment and Machinery,,D3,Equipment,263,"1,448.00",5/8/2012,C,AMTEC COMPUTER CORPORATION LTD
2012 - MAY,,,Windows 7 Upgrade                       ,CT007ES,Vehicles Plant Equipment and Machinery,,D3,Equipment,264,832,5/8/2012,C,AMTEC COMPUTER CORPORATION LTD
2012 - MAY,,,Windows 7 Upgrade                       ,CT007ES,Other Capital Expenditure,,E3,Miscellaneous Capital Expenditure,265,"3,643.00",5/8/2012,C,AMTEC COMPUTER CORPORATION LTD
2012 - MAY,,,Capital Reporting Project               ,CT012EC,Vehicles Plant Equipment and Machinery,,D5,Software,266,785,4/19/2012,C,UNISERVE CONSULTING LIMITED   
2012 - MAY,,,Stability Networks                      ,CT012ED,Vehicles Plant Equipment and Machinery,,D3,Equipment,267,"55,000.00",4/26/2012,C,COMPUTERLAND                  
2012 - MAY,,,Stability Networks                      ,CT012ED,Vehicles Plant Equipment and Machinery,,D3,Equipment,268,"10,890.00",4/26/2012,C,COMPUTERLAND                  
2012 - MAY,,,Stability Networks                      ,CT012ED,Vehicles Plant Equipment and Machinery,,D5,Software,269,"2,384.00",4/30/2012,C,FORDWAY LTD                   
2012 - MAY,,,Stability Networks                      ,CT012ED,Vehicles Plant Equipment and Machinery,,D5,Software,270,547.2,4/30/2012,C,FORDWAY LTD                   
2012 - MAY,,,Stability Networks                      ,CT012ED,Other Capital Expenditure,,E3,Miscellaneous Capital Expenditure,271,"2,700.00",4/30/2012,C,OLM SYSTEMS                   
2012 - MAY,,,PCIDSS                                  ,CT012EE,Other Capital Expenditure,,E3,Miscellaneous Capital Expenditure,272,"1,176.00",5/28/2012,C,CIVICA UK LIMITED             
2012 - MAY,,,Replacement parking system              ,CT012EF,Vehicles Plant Equipment and Machinery,,D5,Software,273,"1,799.60",4/30/2012,C,IMPERIAL CIVIL ENFORC.SOLUT.  
2012 - MAY,,,Cloud Computing - Cap Ambition          ,CT013EA,Other Capital Expenditure,,E3,Miscellaneous Capital Expenditure,274,950,3/29/2012,C,FORDWAY LTD                   
2012 - MAY,Central Services,Local Tax Collection,Local Taxation Services                 ,E02100,Supplies & Services           ,Prntng Stnry Gen Off Exp      ,DE03,Stationery,275,"2,700.00",2/22/2012,R,OVENDEN PAPERS LTD            
2012 - MAY,Central Services,Local Tax Collection,Local Taxation Services                 ,E02100,Supplies & Services           ,Services                      ,DF03,Consultants,276,"3,500.00",4/1/2012,R,GEMINI CONSULTANTS            
2012 - MAY,Central Services,Local Tax Collection,Local Taxation Services                 ,E02100,Supplies & Services           ,Services                      ,DF11,Counsel's fees,277,610,3/26/2012,R,INCASSO DEBT RECOVERY         
2012 - MAY,Central Services,Local Tax Collection,Local Taxation Services                 ,E02100,Supplies & Services           ,Services                      ,DF11,Counsel's fees,278,835,4/26/2012,R,INCASSO DEBT RECOVERY         
2012 - MAY,Central Services,Local Tax Collection,Local Taxation Services                 ,E02100,Third Party Payments          ,Private Contractors           ,EH01,Miscellaneous Agency Services,279,870.88,4/3/2012,R,COMMERCIAL COLLECTION SERVICES
2012 - MAY,Central Services,Local Tax Collection,Local Taxation Services                 ,E02100,Support Services,Corporate Services,GB16,Legal,280,920,3/16/2012,R,WELBECK LAW LLP               
2012 - MAY,Central Services,Local Tax Collection,Local Taxation Bailiffs                 ,E02101,Supplies & Services           ,Services                      ,DF18,Bailiffs' fees,281,"1,249.61",4/10/2012,R,MARSTON GROUP                 
2012 - MAY,Central Services,Local Tax Collection,Local Taxation Bailiffs                 ,E02101,Supplies & Services           ,Services                      ,DF18,Bailiffs' fees,282,"3,138.61",3/29/2012,R,MARSTON GROUP                 
2012 - MAY,Central Services,Local Tax Collection,Local Taxation Bailiffs                 ,E02101,Supplies & Services           ,Services                      ,DF18,Bailiffs' fees,283,"1,857.67",5/9/2012,R,REDACTED
2012 - MAY,Central Services,Local Tax Collection,Local Taxation Bailiffs                 ,E02101,Supplies & Services           ,Services                      ,DF18,Bailiffs' fees,284,-700,12/12/2011,R,ONESTEP SOLUTIONS PLC         
2012 - MAY,Central Services,Local Tax Collection,Local Taxation Bailiffs                 ,E02101,Supplies & Services           ,Services                      ,DF18,Bailiffs' fees,285,800,12/14/2011,R,ONESTEP SOLUTIONS PLC         
2012 - MAY,Central Services,Local Tax Collection,Local Taxation Bailiffs                 ,E02101,Supplies & Services           ,Services                      ,DF18,Bailiffs' fees,286,570,5/1/2012,R,GREASBY'S AUCTION ROOMS       
2012 - MAY,Central Services,Local Tax Collection,Local Taxation Bailiffs                 ,E02101,Supplies & Services           ,Services                      ,DF18,Bailiffs' fees,287,"1,872.19",5/10/2012,R,MARSTON GROUP                 
2012 - MAY,Central Services,Local Tax Collection,Local Taxation Bailiffs                 ,E02101,Supplies & Services           ,Services                      ,DF18,Bailiffs' fees,288,570,4/12/2012,R,GREASBY'S AUCTION ROOMS       
2012 - MAY,Central Services,Local Tax Collection,Local Taxation Bailiffs                 ,E02101,Supplies & Services           ,Services                      ,DF18,Bailiffs' fees,289,540,5/1/2012,R,GREASBY'S AUCTION ROOMS       
2012 - MAY,Central Services,Local Tax Collection,Local Taxation Bailiffs                 ,E02101,Supplies & Services           ,Services                      ,DF18,Bailiffs' fees,290,690,5/14/2012,R,GREASBY'S AUCTION ROOMS       
2012 - MAY,Central Services,Local Tax Collection,Local Taxation Bailiffs                 ,E02101,Supplies & Services           ,Services                      ,DF18,Bailiffs' fees,291,695,5/14/2012,R,GREASBY'S AUCTION ROOMS       
2012 - MAY,Central Services,Local Tax Collection,Local Taxation Bailiffs                 ,E02101,Supplies & Services           ,Services                      ,DF18,Bailiffs' fees,292,500,5/29/2012,R,REDACTED
2012 - MAY,Central Services,Local Tax Collection,Local Taxation Bailiffs                 ,E02101,Supplies & Services           ,Services                      ,DF18,Bailiffs' fees,293,"1,195.90",4/26/2012,R,MARSTON GROUP                 
2012 - MAY,Central Services,Local Tax Collection,Local Taxation Bailiffs                 ,E02101,Supplies & Services           ,Services                      ,DF18,Bailiffs' fees,294,525,5/15/2012,R,GREASBY'S AUCTION ROOMS       
2012 - MAY,Central Services,Local Tax Collection,Local Taxation Bailiffs                 ,E02101,Supplies & Services           ,Services                      ,DF18,Bailiffs' fees,295,960,5/15/2012,R,GREASBY'S AUCTION ROOMS       
2012 - MAY,Housing Services,Housing Benefit Administration,Benefits Administration                 ,E02120,Supplies & Services           ,Services                      ,DF09,Miscellaneous Fees,296,603.02,5/29/2012,R,MRS M MALIK                   
2012 - MAY,Central Services,Fully rechargeable Overheads,Payroll                                 ,E02140,Supplies & Services           ,Services                      ,DF03,Consultants,297,"2,246.51",3/26/2012,R,ADVANCED BUSINESS SOLUTIONS   
2012 - MAY,Central Services,Fully rechargeable Overheads,Payroll                                 ,E02140,Supplies & Services           ,Services                      ,DF03,Consultants,298,"1,139.78",3/26/2012,R,ADVANCED BUSINESS SOLUTIONS   
2012 - MAY,Central Services,Fully rechargeable Overheads,Civic Centre                            ,E02222,Premises Related Expenditure  ,RepairsAlterations&MtceOfBldgs,BA29,Build Maint Mgt Fees,299,"2,790.00",4/30/2012,R,UNIQUE OFFICE SOLUTIONS LTD   
2012 - MAY,Central Services,Fully rechargeable Overheads,Civic Centre                            ,E02222,Premises Related Expenditure  ,RepairsAlterations&MtceOfBldgs,BA29,Build Maint Mgt Fees,300,579.5,5/8/2012,R,EDE'S (U.K.) LTD              
2012 - MAY,Central Services,Fully rechargeable Overheads,Civic Centre                            ,E02222,Premises Related Expenditure  ,RepairsAlterations&MtceOfBldgs,BA29,Build Maint Mgt Fees,301,"4,256.00",4/30/2012,R,EDE'S (U.K.) LTD              
2012 - MAY,Central Services,Fully rechargeable Overheads,Civic Centre                            ,E02222,Premises Related Expenditure  ,RepairsAlterations&MtceOfBldgs,BA29,Build Maint Mgt Fees,302,997.5,4/30/2012,R,EDE'S (U.K.) LTD              
2012 - MAY,Central Services,Fully rechargeable Overheads,Civic Centre                            ,E02222,Premises Related Expenditure  ,RepairsAlterations&MtceOfBldgs,BA29,Build Maint Mgt Fees,303,682.5,5/21/2012,R,UNIQUE OFFICE SOLUTIONS LTD   
2012 - MAY,Central Services,Fully rechargeable Overheads,Civic Centre                            ,E02222,Premises Related Expenditure  ,RepairsAlterations&MtceOfBldgs,BA29,Build Maint Mgt Fees,304,"6,819.00",5/21/2012,R,RITEC DECORATORS LIMITED      
2012 - MAY,Central Services,Fully rechargeable Overheads,Civic Centre                            ,E02222,Premises Related Expenditure  ,Cleaning and Domestic Supplies,BH02,Window Cleaning,305,552.19,4/29/2012,R,DYNAMIQ CLEANING LIMITED      
2012 - MAY,Central Services,Fully rechargeable Overheads,Civic Centre                            ,E02222,Premises Related Expenditure  ,Cleaning and Domestic Supplies,BH03,Cleaning Services,306,"1,451.44",4/29/2012,R,DYNAMIQ CLEANING LIMITED      
2012 - MAY,Central Services,Fully rechargeable Overheads,Civic Centre                            ,E02222,Premises Related Expenditure  ,Cleaning and Domestic Supplies,BH03,Cleaning Services,307,"9,019.98",4/29/2012,R,DYNAMIQ CLEANING LIMITED      
2012 - MAY,Central Services,Fully rechargeable Overheads,Civic Centre                            ,E02222,Premises Related Expenditure  ,Cleaning and Domestic Supplies,BH03,Cleaning Services,308,"1,461.29",4/29/2012,R,DYNAMIQ CLEANING LIMITED      
2012 - MAY,Central Services,Fully rechargeable Overheads,Gifford House                           ,E02223,Premises Related Expenditure  ,Cleaning and Domestic Supplies,BH03,Cleaning Services,309,841.16,4/29/2012,R,DYNAMIQ CLEANING LIMITED      
2012 - MAY,Central Services,Fully rechargeable Overheads,Worsfold House                          ,E02224,Premises Related Expenditure  ,Cleaning and Domestic Supplies,BH03,Cleaning Services,310,"1,141.15",4/29/2012,R,DYNAMIQ CLEANING LIMITED      
2012 - MAY,Central Services,Fully rechargeable Overheads,Facilities                              ,E02231,Premises Related Expenditure  ,RepairsAlterations&MtceOfBldgs,BA06,Repairs & Maintenance General,311,"4,195.83",3/30/2012,R,CALUMET                       
2012 - MAY,Central Services,Fully rechargeable Overheads,Facilities                              ,E02231,Premises Related Expenditure  ,RepairsAlterations&MtceOfBldgs,BA06,Repairs & Maintenance General,312,"1,505.00",3/30/2012,R,CALUMET                       
2012 - MAY,Central Services,Fully rechargeable Overheads,Facilities                              ,E02231,Premises Related Expenditure  ,RepairsAlterations&MtceOfBldgs,BA06,Repairs & Maintenance General,313,"175,000.00",4/16/2012,R,SALTASH ENTERPRISES LTD       
2012 - MAY,Central Services,Fully rechargeable Overheads,Facilities                              ,E02231,Premises Related Expenditure  ,RepairsAlterations&MtceOfBldgs,BA06,Repairs & Maintenance General,314,"42,605.96",4/5/2012,R,STP SOLUTIONS                 
2012 - MAY,Central Services,Fully rechargeable Overheads,Facilities                              ,E02231,Premises Related Expenditure  ,RepairsAlterations&MtceOfBldgs,BA06,Repairs & Maintenance General,315,"18,300.00",3/30/2012,R,P G MARSHALL & SONS LTD       
2012 - MAY,Central Services,Fully rechargeable Overheads,Facilities                              ,E02231,Premises Related Expenditure  ,RepairsAlterations&MtceOfBldgs,BA29,Build Maint Mgt Fees,316,"3,357.61",4/27/2012,R,COMPLEMENT CONSULTING LIMITED 
2012 - MAY,Central Services,Fully rechargeable Overheads,Facilities                              ,E02231,Premises Related Expenditure  ,RepairsAlterations&MtceOfBldgs,BA29,Build Maint Mgt Fees,317,"3,950.64",4/20/2012,R,COMPLEMENT CONSULTING LIMITED 
2012 - MAY,Central Services,Fully rechargeable Overheads,Facilities                              ,E02231,Premises Related Expenditure  ,RepairsAlterations&MtceOfBldgs,BA29,Build Maint Mgt Fees,318,"2,124.14",5/9/2012,R,COMPLEMENT CONSULTING LIMITED 
2012 - MAY,Central Services,Fully rechargeable Overheads,Facilities                              ,E02231,Third Party Payments          ,Private Contractors           ,EH02,Miscellaneous Hired Services,319,550,4/18/2012,R,HYDRO-X WATER TREATMENT LTD   
2012 - MAY,Central Services,Fully rechargeable Overheads,Facilities                              ,E02231,Third Party Payments          ,Private Contractors           ,EH02,Miscellaneous Hired Services,320,"10,270.00",3/30/2012,R,HYDRO-X WATER TREATMENT LTD   
2012 - MAY,Central Services,Fully rechargeable Overheads,Facilities                              ,E02231,Third Party Payments          ,Private Contractors           ,EH02,Miscellaneous Hired Services,321,595,5/8/2012,R,COFELY LIMITED                
2012 - MAY,Central Services,Fully rechargeable Overheads,Facilities                              ,E02231,Third Party Payments          ,Private Contractors           ,EH02,Miscellaneous Hired Services,322,500,5/8/2012,R,COFELY LIMITED                
2012 - MAY,Central Services,Fully rechargeable Overheads,FM External Fees                        ,E02239,Premises Related Expenditure  ,RepairsAlterations&MtceOfBldgs,BA29,Build Maint Mgt Fees,323,887.11,5/1/2012,R,COMPLEMENT CONSULTING LIMITED 
2012 - MAY,Central Services,Fully rechargeable Overheads,Corporate Services Buildings            ,E02240,Premises Related Expenditure  ,RepairsAlterations&MtceOfBldgs,BA01,DDM - General Building,324,589.2,4/18/2012,R,SYMBIO -(REF 8500)            
2012 - MAY,Central Services,Fully rechargeable Overheads,Corporate Services Buildings            ,E02240,Premises Related Expenditure  ,RepairsAlterations&MtceOfBldgs,BA01,DDM - General Building,325,665,4/25/2012,R,ADT FIRE AND SECURITY PLC     
2012 - MAY,Central Services,Fully rechargeable Overheads,Corporate Services Buildings            ,E02240,Premises Related Expenditure  ,RepairsAlterations&MtceOfBldgs,BA01,DDM - General Building,326,596.22,5/4/2012,R,PJ HARVEY & CO LTD            
2012 - MAY,Central Services,Fully rechargeable Overheads,Corporate Services Buildings            ,E02240,Premises Related Expenditure  ,RepairsAlterations&MtceOfBldgs,BA05,DDM - Electrical,327,503.94,4/1/2012,R,ADT FIRE & SECURITY PLC       
2012 - MAY,Central Services,Fully rechargeable Overheads,Corporate Services Buildings            ,E02240,Premises Related Expenditure  ,RepairsAlterations&MtceOfBldgs,BA05,DDM - Electrical,328,588.23,4/1/2012,R,ADT FIRE & SECURITY PLC       
2012 - MAY,Central Services,Fully rechargeable Overheads,Corporate Services Buildings            ,E02240,Premises Related Expenditure  ,RepairsAlterations&MtceOfBldgs,BA05,DDM - Electrical,329,657.04,4/1/2012,R,CROWN SECURITY SYSTEMS LTD    
2012 - MAY,Central Services,Fully rechargeable Overheads,Corporate Services Buildings            ,E02240,Premises Related Expenditure  ,Energy Costs                  ,BB03,Gas (incl. Butane),330,"25,940.46",4/23/2012,R,KENT COUNTY COUNCIL           
2012 - MAY,Childrens & Education Services,Service Strategy,CSF Buildings                           ,E02256,Premises Related Expenditure  ,RepairsAlterations&MtceOfBldgs,BA05,DDM - Electrical,331,"1,264.66",4/30/2012,R,FIRST CHOICE FACILITIES PLC   
2012 - MAY,Cultural Env Reg&Plan Services,Open Spaces,E & R Buildings                         ,E02344,Premises Related Expenditure  ,RepairsAlterations&MtceOfBldgs,BA05,DDM - Electrical,332,"1,413.26",2/15/2012,R,CHUBB ELECTRONIC SEC. SYSTEMS 
2012 - MAY,Cultural Env Reg&Plan Services,Open Spaces,Leisure Buildings                       ,E02350,Premises Related Expenditure  ,RepairsAlterations&MtceOfBldgs,BA05,DDM - Electrical,333,542.35,4/13/2012,R,COFELY LIMITED                
2012 - MAY,Cultural Env Reg&Plan Services,Open Spaces,Leisure Buildings                       ,E02350,Premises Related Expenditure  ,RepairsAlterations&MtceOfBldgs,BA05,DDM - Electrical,334,"3,332.00",4/30/2012,R,FIRST CHOICE FACILITIES PLC   
2012 - MAY,Cultural Env Reg&Plan Services,Open Spaces,Leisure Buildings                       ,E02350,Premises Related Expenditure  ,RepairsAlterations&MtceOfBldgs,BA05,DDM - Electrical,335,546.97,4/10/2012,R,COFELY LIMITED                
2012 - MAY,Central Services,Fully rechargeable Overheads,BUSINESS PARTNERS                       ,E04059,Employees                     ,Direct Employee Expenses      ,AA17,Agency Staff & Casual Paymts,336,"5,850.00",5/20/2012,R,REDACTED
2012 - MAY,Central Services,Fully rechargeable Overheads,Director of Corporate Services          ,E04060,Employees                     ,Indirect Employee Expenses    ,AB57,External Training Costs,337,"1,235.00",3/28/2012,R,CIPFA                         
2012 - MAY,Central Services,Fully rechargeable Overheads,Director of Corporate Services          ,E04060,Employees                     ,Indirect Employee Expenses    ,AB57,External Training Costs,338,"2,865.00",3/28/2012,R,CIPFA                         
2012 - MAY,Central Services,Fully rechargeable Overheads,Director of Corporate Services          ,E04060,Employees                     ,Indirect Employee Expenses    ,AB57,External Training Costs,339,"2,865.00",3/28/2012,R,CIPFA                         
2012 - MAY,Housing Services,Housing Benefit Administration,Benefits Investigation Section          ,E05103,Supplies & Services           ,Services                      ,DF08,Affiliation Fees,340,"1,370.00",3/20/2012,R,TAMESIDE MBC                  
2012 - MAY,Central Services,Fully rechargeable Overheads,Insurance Premiums & Funding            ,E05161,Supplies & Services           ,Services                      ,DF74,Insurance Premiums,341,"52,492.13",4/13/2012,R,THISTLE INSURANCE SERVICES    
2012 - MAY,Central Services,Fully rechargeable Overheads,Insurance Premiums & Funding            ,E05161,Supplies & Services           ,Services                      ,DF74,Insurance Premiums,342,"65,865.19",4/12/2012,R,ZURICH INSURANCE COMPANY      
2012 - MAY,Central Services,Fully rechargeable Overheads,Insurance Premiums & Funding            ,E05161,Supplies & Services           ,Services                      ,DF74,Insurance Premiums,343,"102,144.00",4/13/2012,R,THISTLE INSURANCE SERVICES    
2012 - MAY,Central Services,Fully rechargeable Overheads,Insurance Premiums & Funding            ,E05161,Supplies & Services           ,Services                      ,DF74,Insurance Premiums,344,"17,661.60",4/13/2012,R,THISTLE INSURANCE SERVICES    
2012 - MAY,Central Services,Fully rechargeable Overheads,Corporate Accountancy                   ,E06209,Supplies & Services           ,Services                      ,DF58,Audit Fee,345,"2,684.00",2/3/2012,R,AUDIT COMMISSION              
2012 - MAY,Central Services,Fully rechargeable Overheads,Corporate Accountancy                   ,E06209,Supplies & Services           ,Services                      ,DF58,Audit Fee,346,"24,635.75",2/3/2012,R,AUDIT COMMISSION              
2012 - MAY,Central Services,Fully rechargeable Overheads,Corporate Accountancy                   ,E06209,Supplies & Services           ,Services                      ,DF58,Audit Fee,347,"24,116.00",4/13/2012,R,AUDIT COMMISSION              
2012 - MAY,Central Services,Fully rechargeable Overheads,Corporate Accountancy                   ,E06209,Supplies & Services           ,Services                      ,DF58,Audit Fee,348,"2,684.00",4/13/2012,R,AUDIT COMMISSION              
2012 - MAY,Central Services,Fully rechargeable Overheads,Corporate Accountancy                   ,E06209,Supplies & Services           ,Services                      ,DF58,Audit Fee,349,"2,684.00",5/4/2012,R,AUDIT COMMISSION              
2012 - MAY,Central Services,Fully rechargeable Overheads,Corporate Accountancy                   ,E06209,Supplies & Services           ,Services                      ,DF58,Audit Fee,350,"12,457.00",5/4/2012,R,AUDIT COMMISSION              
2012 - MAY,Central Services,Fully rechargeable Overheads,Corporate Accountancy                   ,E06209,Supplies & Services           ,Services                      ,DF58,Audit Fee,351,"11,659.00",5/4/2012,R,AUDIT COMMISSION              
2012 - MAY,Central Services,Fully rechargeable Overheads,Corporate Accountancy                   ,E06209,Supplies & Services           ,Grants and Subscriptions      ,DJ04,Subscriptions,352,769.95,6/17/2011,R,WOLTERS KLUWER (UK) LTD       
2012 - MAY,Central Services,Fully rechargeable Overheads,Corporate Accountancy                   ,E06209,Supplies & Services           ,Grants and Subscriptions      ,DJ04,Subscriptions,353,"3,450.00",2/23/2012,R,PRICEWATERHOUSE COOPERS       
2012 - MAY,Central Services,Fully rechargeable Overheads,Corporate Accountancy                   ,E06209,Supplies & Services           ,Grants and Subscriptions      ,DJ04,Subscriptions,354,"5,150.00",2/16/2012,R,CIPFA                         
2012 - MAY,Central Services,Fully rechargeable Overheads,Corporate Accountancy                   ,E06209,Supplies & Services           ,Grants and Subscriptions      ,DJ04,Subscriptions,355,"6,765.00",2/23/2012,R,CIPFA                         
2012 - MAY,Central Services,Fully rechargeable Overheads,Corporate Accountancy                   ,E06209,Supplies & Services           ,Grants and Subscriptions      ,DJ04,Subscriptions,356,"1,500.00",4/25/2012,R,KPMG LLP FEES ACCOUNT         
2012 - MAY,Central Services,Fully rechargeable Overheads,Accounts Payable                        ,E06212,Supplies & Services           ,Services                      ,DF03,Consultants,357,"1,885.91",5/11/2012,R,MERIDIAN COST BENEFIT LTD     
2012 - MAY,Central Services,Fully rechargeable Overheads,Accounts Payable                        ,E06212,Supplies & Services           ,Services                      ,DF03,Consultants,358,"1,336.02",4/20/2012,R,MERIDIAN COST BENEFIT LTD     
2012 - MAY,Central Services,Fully rechargeable Overheads,Accounts Payable                        ,E06212,Supplies & Services           ,Services                      ,DF03,Consultants,359,"2,547.29",4/30/2012,R,MERIDIAN COST BENEFIT LTD     
2012 - MAY,Central Services,Fully rechargeable Overheads,Accounts Payable                        ,E06212,Supplies & Services           ,Services                      ,DF03,Consultants,360,"1,886.88",5/25/2012,R,MERIDIAN COST BENEFIT LTD     
2012 - MAY,Central Services,Fully rechargeable Overheads,Accounts Payable                        ,E06212,Oth Grants Reimbmnts/Contribs ,Cost recharges to other bodies,QC10,Recovery of Costs (X),361,"-1,603.36",12/21/2011,R,XEROX(UK)LTD                  
2012 - MAY,Central Services,Fully rechargeable Overheads,Accounts Payable                        ,E06212,Oth Grants Reimbmnts/Contribs ,Cost recharges to other bodies,QC10,Recovery of Costs (X),362,-834.42,12/21/2011,R,XEROX(UK)LTD                  
2012 - MAY,Central Services,Fully rechargeable Overheads,Accounts Payable                        ,E06212,Oth Grants Reimbmnts/Contribs ,Cost recharges to other bodies,QC10,Recovery of Costs (X),363,"-1,859.66",8/28/2009,R,ADT FIRE AND SECURITY PLC     
2012 - MAY,Central Services,Fully rechargeable Overheads,Accounts Payable                        ,E06212,Oth Grants Reimbmnts/Contribs ,Cost recharges to other bodies,QC10,Recovery of Costs (X),364,"-1,140.00",4/1/2011,R,A.COLEBROOK ARBORICULTURE CON.
2012 - MAY,Central Services,Fully rechargeable Overheads,Business Planning                       ,E06221,Supplies & Services           ,Services                      ,DF09,Miscellaneous Fees,365,"1,916.67",4/16/2012,R,MAPPIN & WEBB                 
2012 - MAY,Central Services,Fully rechargeable Overheads,Treasury & Insurance                    ,E06222,Employees                     ,Direct Employee Expenses      ,AA17,Agency Staff & Casual Paymts,366,"1,100.00",4/26/2012,R,RANDSTAD FIN & PROF LTD.      
2012 - MAY,Central Services,Fully rechargeable Overheads,Treasury & Insurance                    ,E06222,Employees                     ,Direct Employee Expenses      ,AA17,Agency Staff & Casual Paymts,367,"2,350.00",4/26/2012,R,RANDSTAD FIN & PROF LTD.      
2012 - MAY,Central Services,Fully rechargeable Overheads,Treasury & Insurance                    ,E06222,Employees                     ,Direct Employee Expenses      ,AA17,Agency Staff & Casual Paymts,368,"2,350.00",5/4/2012,R,RANDSTAD FIN & PROF LTD.      
2012 - MAY,Central Services,Fully rechargeable Overheads,Treasury & Insurance                    ,E06222,Employees                     ,Direct Employee Expenses      ,AA17,Agency Staff & Casual Paymts,369,"1,100.00",5/4/2012,R,RANDSTAD FIN & PROF LTD.      
2012 - MAY,Central Services,Fully rechargeable Overheads,Treasury & Insurance                    ,E06222,Employees                     ,Direct Employee Expenses      ,AA17,Agency Staff & Casual Paymts,370,"2,350.00",5/11/2012,R,RANDSTAD FIN & PROF LTD.      
2012 - MAY,Central Services,Fully rechargeable Overheads,Treasury & Insurance                    ,E06222,Employees                     ,Direct Employee Expenses      ,AA17,Agency Staff & Casual Paymts,371,"1,100.00",5/11/2012,R,RANDSTAD FIN & PROF LTD.      
2012 - MAY,Central Services,Fully rechargeable Overheads,Treasury & Insurance                    ,E06222,Employees                     ,Direct Employee Expenses      ,AA17,Agency Staff & Casual Paymts,372,880,5/16/2012,R,RANDSTAD FIN & PROF LTD.      
2012 - MAY,Central Services,Fully rechargeable Overheads,Treasury & Insurance                    ,E06222,Employees                     ,Direct Employee Expenses      ,AA17,Agency Staff & Casual Paymts,373,"2,350.00",5/16/2012,R,RANDSTAD FIN & PROF LTD.      
2012 - MAY,Central Services,Fully rechargeable Overheads,Treasury & Insurance                    ,E06222,Employees                     ,Direct Employee Expenses      ,AA17,Agency Staff & Casual Paymts,374,880,5/21/2012,R,RANDSTAD FIN & PROF LTD.      
2012 - MAY,Central Services,Fully rechargeable Overheads,Treasury & Insurance                    ,E06222,Employees                     ,Direct Employee Expenses      ,AA17,Agency Staff & Casual Paymts,375,"2,350.00",5/21/2012,R,RANDSTAD FIN & PROF LTD.      
2012 - MAY,Central Services,Fully rechargeable Overheads,Parking Cash Collect'n Contrct          ,E06225,Third Party Payments          ,Private Contractors           ,EH02,Miscellaneous Hired Services,376,"10,011.20",3/30/2012,R,BANKING AUTOMATION LTD        
2012 - MAY,Central Services,Fully rechargeable Overheads,Parking Cash Collect'n Contrct          ,E06225,Third Party Payments          ,Private Contractors           ,EH02,Miscellaneous Hired Services,377,"9,895.25",4/30/2012,R,BANKING AUTOMATION LTD        
2012 - MAY,Central Services,Fully rechargeable Overheads,Establishments' Cash Collect'n          ,E06226,Third Party Payments          ,Private Contractors           ,EH02,Miscellaneous Hired Services,378,558.35,4/30/2012,R,LOOMIS UK LTD                 
2012 - MAY,Central Services,Fully rechargeable Overheads,Establishments' Cash Collect'n          ,E06226,Third Party Payments          ,Private Contractors           ,EH02,Miscellaneous Hired Services,379,"3,150.80",4/16/2012,R,LOOMIS UK LTD                 
2012 - MAY,Central Services,Fully rechargeable Overheads,Service Accountancy                     ,E06227,Employees                     ,Direct Employee Expenses      ,AA17,Agency Staff & Casual Paymts,380,"3,680.00",4/26/2012,R,RANDSTAD FIN & PROF LTD.      
2012 - MAY,Central Services,Fully rechargeable Overheads,Service Accountancy                     ,E06227,Employees                     ,Direct Employee Expenses      ,AA17,Agency Staff & Casual Paymts,381,"3,300.00",4/26/2012,R,RANDSTAD FIN & PROF LTD.      
2012 - MAY,Central Services,Fully rechargeable Overheads,Service Accountancy                     ,E06227,Employees                     ,Direct Employee Expenses      ,AA17,Agency Staff & Casual Paymts,382,"2,300.00",5/4/2012,R,RANDSTAD FIN & PROF LTD.      
2012 - MAY,Central Services,Fully rechargeable Overheads,Service Accountancy                     ,E06227,Employees                     ,Direct Employee Expenses      ,AA17,Agency Staff & Casual Paymts,383,"1,200.00",5/4/2012,R,RANDSTAD FIN & PROF LTD.      
2012 - MAY,Central Services,Fully rechargeable Overheads,Service Accountancy                     ,E06227,Employees                     ,Direct Employee Expenses      ,AA17,Agency Staff & Casual Paymts,384,"2,300.00",5/11/2012,R,RANDSTAD FIN & PROF LTD.      
2012 - MAY,Central Services,Fully rechargeable Overheads,Service Accountancy                     ,E06227,Employees                     ,Direct Employee Expenses      ,AA17,Agency Staff & Casual Paymts,385,"2,700.00",5/11/2012,R,RANDSTAD FIN & PROF LTD.      
2012 - MAY,Central Services,Fully rechargeable Overheads,Service Accountancy                     ,E06227,Employees                     ,Direct Employee Expenses      ,AA17,Agency Staff & Casual Paymts,386,"1,840.00",5/16/2012,R,RANDSTAD FIN & PROF LTD.      
2012 - MAY,Central Services,Fully rechargeable Overheads,Service Accountancy                     ,E06227,Employees                     ,Direct Employee Expenses      ,AA17,Agency Staff & Casual Paymts,387,600,5/21/2012,R,RANDSTAD FIN & PROF LTD.      
2012 - MAY,Central Services,Fully rechargeable Overheads,Service Accountancy                     ,E06227,Supplies & Services           ,Grants and Subscriptions      ,DJ04,Subscriptions,388,"2,300.00",2/29/2012,R,CIPFA                         
2012 - MAY,Central Services,Fully rechargeable Overheads,Service Accountancy                     ,E06227,Supplies & Services           ,Grants and Subscriptions      ,DJ04,Subscriptions,389,695,5/11/2012,R,CIPFA                         
2012 - MAY,Central Services,Fully rechargeable Overheads,Service Accountancy                     ,E06227,Transfer Payments             ,Housing Benefits              ,FA50,Burial and Cremation,390,"1,052.50",3/28/2012,R,F.W. PAINE                    
2012 - MAY,Central Services,Fully rechargeable Overheads,Service Accountancy                     ,E06227,Transfer Payments             ,Housing Benefits              ,FA50,Burial and Cremation,391,"1,404.50",4/18/2012,R,F.W. PAINE                    
2012 - MAY,Central Services,Fully rechargeable Overheads,AD CORPORATE GOVERNANCE               ,E10279,Supplies & Services           ,Grants and Subscriptions      ,DJ04,Subscriptions,392,528,5/2/2012,R,ACSES                         
2012 - MAY,Central Services,Fully rechargeable Overheads,Legal Services                          ,E10282,Supplies & Services           ,Services                      ,DF28,Court Fees,393,"1,900.00",5/2/2012,R,REDACTED
2012 - MAY,Central Services,Fully rechargeable Overheads,Legal Services                          ,E10282,Supplies & Services           ,Services                      ,DF28,Court Fees,394,"2,225.00",5/10/2012,R,REDACTED
2012 - MAY,Central Services,Fully rechargeable Overheads,Legal Services                          ,E10282,Supplies & Services           ,Services                      ,DF28,Court Fees,395,"2,225.00",5/18/2012,R,REDACTED
2012 - MAY,Central Services,Fully rechargeable Overheads,Legal Services                          ,E10282,Supplies & Services           ,Services                      ,DF28,Court Fees,396,"4,200.00",5/21/2012,R,REDACTED
2012 - MAY,Central Services,Fully rechargeable Overheads,Legal Services                          ,E10282,Supplies & Services           ,Services                      ,DF95,Services from Provider,397,"1,000.00",4/27/2012,R,GOODWIN MALATESTA LEGAL SERVS 
2012 - MAY,Central Services,Fully rechargeable Overheads,Shared Legal Service                    ,E10288,Supplies & Services           ,Grants and Subscriptions      ,DJ04,Subscriptions,398,"2,763.40",4/13/2012,R,SGS                           
2012 - MAY,Central Services,Fully rechargeable Overheads,Richmond Legal                          ,E10289,Supplies & Services           ,Services                      ,DF11,Counsel's fees,399,500,4/12/2012,R,REDACTED
2012 - MAY,Central Services,Fully rechargeable Overheads,Richmond Legal                          ,E10289,Supplies & Services           ,Services                      ,DF11,Counsel's fees,400,640,4/26/2012,R,REDACTED
2012 - MAY,Central Services,Fully rechargeable Overheads,Richmond Legal                          ,E10289,Supplies & Services           ,Services                      ,DF11,Counsel's fees,401,"1,500.00",4/30/2012,R,REDACTED
2012 - MAY,Central Services,Fully rechargeable Overheads,Richmond Legal                          ,E10289,Supplies & Services           ,Services                      ,DF11,Counsel's fees,402,500,3/22/2012,R,REDACTED
2012 - MAY,Central Services,Fully rechargeable Overheads,Richmond Legal                          ,E10289,Supplies & Services           ,Services                      ,DF11,Counsel's fees,403,"2,900.00",4/30/2012,R,REDACTED
2012 - MAY,Central Services,Fully rechargeable Overheads,Richmond Legal                          ,E10289,Supplies & Services           ,Services                      ,DF11,Counsel's fees,404,826.5,5/15/2012,R,REDACTED
2012 - MAY,Central Services,Fully rechargeable Overheads,Richmond Legal                          ,E10289,Supplies & Services           ,Services                      ,DF11,Counsel's fees,405,600,4/23/2012,R,REDACTED
2012 - MAY,Central Services,Fully rechargeable Overheads,Richmond Legal                          ,E10289,Supplies & Services           ,Services                      ,DF11,Counsel's fees,406,655,3/28/2012,R,REDACTED
2012 - MAY,Central Services,Fully rechargeable Overheads,Richmond Legal                          ,E10289,Supplies & Services           ,Services                      ,DF11,Counsel's fees,407,760,4/30/2012,R,REDACTED
2012 - MAY,Central Services,Fully rechargeable Overheads,Richmond Legal                          ,E10289,Supplies & Services           ,Services                      ,DF11,Counsel's fees,408,"1,110.00",5/16/2012,R,REDACTED
2012 - MAY,Central Services,Fully rechargeable Overheads,Richmond Legal                          ,E10289,Supplies & Services           ,Services                      ,DF11,Counsel's fees,409,"1,080.00",5/17/2012,R,REDACTED
2012 - MAY,Central Services,Fully rechargeable Overheads,Richmond Legal                          ,E10289,Supplies & Services           ,Services                      ,DF14,Doctors and other fees,410,866.66,8/8/2011,R,REDACTED
2012 - MAY,Central Services,Fully rechargeable Overheads,Richmond Legal                          ,E10289,Supplies & Services           ,Services                      ,DF95,Services from Provider,411,"1,500.00",4/27/2012,R,SHOOSMITHS SOLICITORS         
2012 - MAY,Central Services,Fully rechargeable Overheads,AD Business Improvement                 ,E14358,Employees                     ,Direct Employee Expenses      ,AA17,Agency Staff & Casual Paymts,412,"3,951.00",4/16/2012,R,PENNA PLC                     
2012 - MAY,Central Services,Fully rechargeable Overheads,AD Business Improvement                 ,E14358,Employees                     ,Direct Employee Expenses      ,AA17,Agency Staff & Casual Paymts,413,"4,390.00",5/2/2012,R,PENNA COMMUNICATIONS (NO 2 A/C
2012 - MAY,Central Services,Fully rechargeable Overheads,AD Business Improvement                 ,E14358,Employees                     ,Direct Employee Expenses      ,AA17,Agency Staff & Casual Paymts,414,"6,000.00",4/30/2012,R,JW MANAGEMENT                 
2012 - MAY,Central Services,Fully rechargeable Overheads,AD Business Improvement                 ,E14358,Employees                     ,Direct Employee Expenses      ,AA17,Agency Staff & Casual Paymts,415,"3,951.00",5/16/2012,R,PENNA COMMUNICATIONS (NO 2 A/C
2012 - MAY,Central Services,Fully rechargeable Overheads,AD Business Improvement                 ,E14358,Employees                     ,Indirect Employee Expenses    ,AB02,Recruitment Adverts,416,"4,667.00",4/17/2012,R,ODGERS RAY & BERNDTSON INTERIM
2012 - MAY,Central Services,Fully rechargeable Overheads,AD Business Improvement                 ,E14358,Employees                     ,Indirect Employee Expenses    ,AB02,Recruitment Adverts,417,"3,200.00",4/30/2012,R,ODGERS RAY & BERNDTSON INTERIM
2012 - MAY,Central Services,Fully rechargeable Overheads,AD Business Improvement                 ,E14358,Employees                     ,Indirect Employee Expenses    ,AB57,External Training Costs,418,"2,000.00",5/4/2012,R,CIVICA SERVICES LTD           
2012 - MAY,Central Services,Fully rechargeable Overheads,AD Business Improvement                 ,E14358,Supplies & Services           ,Comms and Computing           ,DG50,Other IT Expenditure,419,785,4/19/2012,R,UNISERVE CONSULTING LIMITED   
2012 - MAY,Central Services,Fully rechargeable Overheads,AD Business Improvement                 ,E14358,Supplies & Services           ,Comms and Computing           ,DG50,Other IT Expenditure,420,"2,000.00",4/19/2012,R,UNISERVE CONSULTING LIMITED   
2012 - MAY,Central Services,Fully rechargeable Overheads,BI IT Projects                          ,E14360,Supplies & Services           ,Services                      ,DF03,Consultants,421,"1,000.00",4/11/2012,R,CASHFRIDAY                    
2012 - MAY,Central Services,Fully rechargeable Overheads,BI IT Projects                          ,E14360,Supplies & Services           ,Services                      ,DF03,Consultants,422,"1,000.00",4/18/2012,R,CASHFRIDAY                    
2012 - MAY,Central Services,Fully rechargeable Overheads,BI IT Projects                          ,E14360,Supplies & Services           ,Services                      ,DF03,Consultants,423,"1,750.00",4/24/2012,R,TOUCHSTONE LTD                
2012 - MAY,Central Services,Fully rechargeable Overheads,BI IT Projects                          ,E14360,Supplies & Services           ,Services                      ,DF03,Consultants,424,"8,250.00",4/24/2012,R,TOUCHSTONE LTD                
2012 - MAY,Central Services,Fully rechargeable Overheads,BI IT Projects                          ,E14360,Supplies & Services           ,Services                      ,DF03,Consultants,425,"6,500.00",5/1/2012,R,REDACTED
2012 - MAY,Central Services,Fully rechargeable Overheads,BI IT Projects                          ,E14360,Supplies & Services           ,Services                      ,DF03,Consultants,426,"1,250.00",4/25/2012,R,CASHFRIDAY                    
2012 - MAY,Central Services,Fully rechargeable Overheads,BI IT Projects                          ,E14360,Supplies & Services           ,Services                      ,DF03,Consultants,427,"1,250.00",5/2/2012,R,CASHFRIDAY                    
2012 - MAY,Central Services,Fully rechargeable Overheads,BI IT Projects                          ,E14360,Supplies & Services           ,Services                      ,DF03,Consultants,428,"1,250.00",5/9/2012,R,CASHFRIDAY                    
2012 - MAY,Central Services,Fully rechargeable Overheads,BI IT Projects                          ,E14360,Supplies & Services           ,Services                      ,DF03,Consultants,429,"1,250.00",5/16/2012,R,CASHFRIDAY                    
2012 - MAY,Central Services,Fully rechargeable Overheads,BI IT Projects                          ,E14360,Supplies & Services           ,Comms and Computing           ,DG50,Other IT Expenditure,430,"3,859.00",3/30/2012,R,PITNEY BOWES SOFTWARE LTD     
2012 - MAY,Central Services,Fully rechargeable Overheads,AD I&T                                  ,E14363,Employees                     ,Indirect Employee Expenses    ,AB56,Internal Training Costs,431,"1,295.00",5/22/2012,R,SCALABLE COMMUNICATIONS PLC   
2012 - MAY,Central Services,Fully rechargeable Overheads,AD I&T                                  ,E14363,Supplies & Services           ,Comms and Computing           ,DG63,Software Licences - Data,432,528.29,5/17/2012,R,PITNEY BOWES SOFTWARE LTD     
2012 - MAY,Central Services,Fully rechargeable Overheads,Operations & Telecomms                  ,E14367,Supplies & Services           ,Comms and Computing           ,DG15,Network Maintenance,433,"13,326.00",4/30/2012,R,LAN2LAN LIMITED               
2012 - MAY,Central Services,Fully rechargeable Overheads,Operations & Telecomms                  ,E14367,Supplies & Services           ,Comms and Computing           ,DG15,Network Maintenance,434,"1,092.00",4/30/2012,R,LAN2LAN LIMITED               
2012 - MAY,Central Services,Fully rechargeable Overheads,Operations & Telecomms                  ,E14367,Supplies & Services           ,Comms and Computing           ,DG15,Network Maintenance,435,"2,730.00",4/30/2012,R,LAN2LAN LIMITED               
2012 - MAY,Central Services,Fully rechargeable Overheads,Operations & Telecomms                  ,E14367,Supplies & Services           ,Comms and Computing           ,DG15,Network Maintenance,436,633,4/30/2012,R,LAN2LAN LIMITED               
2012 - MAY,Central Services,Fully rechargeable Overheads,Operations & Telecomms                  ,E14367,Supplies & Services           ,Comms and Computing           ,DG15,Network Maintenance,437,"2,320.00",4/30/2012,R,LAN2LAN LIMITED               
2012 - MAY,Central Services,Fully rechargeable Overheads,Operations & Telecomms                  ,E14367,Supplies & Services           ,Comms and Computing           ,DG15,Network Maintenance,438,564,5/8/2012,R,AJP SOLUTIONS                 
2012 - MAY,Central Services,Fully rechargeable Overheads,Operations & Telecomms                  ,E14367,Supplies & Services           ,Comms and Computing           ,DG15,Network Maintenance,439,"3,132.00",5/8/2012,R,AJP SOLUTIONS                 
2012 - MAY,Central Services,Fully rechargeable Overheads,Operations & Telecomms                  ,E14367,Supplies & Services           ,Comms and Computing           ,DG15,Network Maintenance,440,865,5/8/2012,R,AJP SOLUTIONS                 
2012 - MAY,Central Services,Fully rechargeable Overheads,Operations & Telecomms                  ,E14367,Supplies & Services           ,Comms and Computing           ,DG15,Network Maintenance,441,502,5/16/2012,R,NET-CTRL                      
2012 - MAY,Central Services,Fully rechargeable Overheads,Operations & Telecomms                  ,E14367,Supplies & Services           ,Comms and Computing           ,DG54,Corporate Telephones,442,"2,342.14",5/2/2012,R,COLT TELECOMMUNICATIONS       
2012 - MAY,Central Services,Fully rechargeable Overheads,Operations & Telecomms                  ,E14367,Supplies & Services           ,Comms and Computing           ,DG54,Corporate Telephones,443,"12,287.00",4/1/2012,R,VIRGIN MEDIA PAYMENTS LTD     
2012 - MAY,Central Services,Fully rechargeable Overheads,Operations & Telecomms                  ,E14367,Supplies & Services           ,Comms and Computing           ,DG54,Corporate Telephones,444,"2,000.00",4/1/2012,R,VIRGIN MEDIA PAYMENTS LTD     
2012 - MAY,Central Services,Fully rechargeable Overheads,Operations & Telecomms                  ,E14367,Supplies & Services           ,Comms and Computing           ,DG54,Corporate Telephones,445,"5,885.66",5/4/2012,R,T MOBILE (UK)                 
2012 - MAY,Central Services,Fully rechargeable Overheads,Distributed Services                    ,E14368,Supplies & Services           ,Comms and Computing           ,DG63,Software Licences - Data,446,"9,748.04",4/18/2012,R,HORNBILL SERVICE MGMENT LTD   
2012 - MAY,Central Services,Fully rechargeable Overheads,Distributed Services                    ,E14368,Supplies & Services           ,Comms and Computing           ,DG63,Software Licences - Data,447,"16,805.00",4/17/2012,R,WELLDATA LTD                  
2012 - MAY,Central Services,Fully rechargeable Overheads,Distributed Services                    ,E14368,Supplies & Services           ,Comms and Computing           ,DG63,Software Licences - Data,448,"3,982.60",4/13/2012,R,HANDD BUSINESS SOLUTIONS LTD  
2012 - MAY,Central Services,Fully rechargeable Overheads,Distributed Services                    ,E14368,Supplies & Services           ,Comms and Computing           ,DG63,Software Licences - Data,449,785.75,4/13/2012,R,HANDD BUSINESS SOLUTIONS LTD  
2012 - MAY,Central Services,Fully rechargeable Overheads,Distributed Services                    ,E14368,Supplies & Services           ,Comms and Computing           ,DG63,Software Licences - Data,450,"4,739.70",4/18/2012,R,HEWLETT PACKARD LTD           
2012 - MAY,Central Services,Fully rechargeable Overheads,Distributed Services                    ,E14368,Supplies & Services           ,Comms and Computing           ,DG63,Software Licences - Data,451,795,4/7/2012,R,NCC SERVICES LIMITED          
2012 - MAY,Central Services,Fully rechargeable Overheads,Distributed Services                    ,E14368,Supplies & Services           ,Comms and Computing           ,DG63,Software Licences - Data,452,"3,568.00",4/30/2012,R,OPEN OBJECTS SOFTWARE LTD     
2012 - MAY,Central Services,Fully rechargeable Overheads,Distributed Services                    ,E14368,Supplies & Services           ,Comms and Computing           ,DG63,Software Licences - Data,453,"4,998.40",5/21/2012,R,NETWORLD UK                   
2012 - MAY,Central Services,Fully rechargeable Overheads,Distributed Services                    ,E14368,Supplies & Services           ,Comms and Computing           ,DG63,Software Licences - Data,454,"8,007.38",5/17/2012,R,PITNEY BOWES SOFTWARE LTD     
2012 - MAY,Central Services,Fully rechargeable Overheads,Distributed Services                    ,E14368,Supplies & Services           ,Comms and Computing           ,DG63,Software Licences - Data,455,"7,206.21",5/17/2012,R,PITNEY BOWES SOFTWARE LTD     
2012 - MAY,Central Services,Fully rechargeable Overheads,Distributed Services                    ,E14368,Supplies & Services           ,Comms and Computing           ,DG63,Software Licences - Data,456,"2,567.97",5/17/2012,R,PITNEY BOWES SOFTWARE LTD     
2012 - MAY,Central Services,Fully rechargeable Overheads,Distributed Services                    ,E14368,Supplies & Services           ,Comms and Computing           ,DG63,Software Licences - Data,457,"1,618.71",5/17/2012,R,PITNEY BOWES SOFTWARE LTD     
2012 - MAY,Central Services,Fully rechargeable Overheads,Distributed Services                    ,E14368,Supplies & Services           ,Comms and Computing           ,DG63,Software Licences - Data,458,"6,480.03",5/17/2012,R,PITNEY BOWES SOFTWARE LTD     
2012 - MAY,Central Services,Fully rechargeable Overheads,Distributed Services                    ,E14368,Supplies & Services           ,Comms and Computing           ,DG63,Software Licences - Data,459,"48,026.76",5/17/2012,R,PITNEY BOWES SOFTWARE LTD     
2012 - MAY,Central Services,Fully rechargeable Overheads,Distributed Services                    ,E14368,Supplies & Services           ,Comms and Computing           ,DG63,Software Licences - Data,460,"1,641.09",5/17/2012,R,PITNEY BOWES SOFTWARE LTD     
2012 - MAY,Central Services,Fully rechargeable Overheads,Distributed Services                    ,E14368,Supplies & Services           ,Comms and Computing           ,DG63,Software Licences - Data,461,"2,907.79",5/17/2012,R,PITNEY BOWES SOFTWARE LTD     
2012 - MAY,Central Services,Fully rechargeable Overheads,Distributed Services                    ,E14368,Supplies & Services           ,Comms and Computing           ,DG63,Software Licences - Data,462,807.3,5/14/2012,R,CACI LIMITED                  
2012 - MAY,Central Services,Fully rechargeable Overheads,Distributed Services                    ,E14368,Supplies & Services           ,Comms and Computing           ,DG63,Software Licences - Data,463,"1,065.64",5/14/2012,R,CACI LIMITED                  
2012 - MAY,Central Services,Fully rechargeable Overheads,Distributed Services                    ,E14368,Supplies & Services           ,Comms and Computing           ,DG63,Software Licences - Data,464,807.3,5/14/2012,R,CACI LIMITED                  
2012 - MAY,Central Services,Fully rechargeable Overheads,Distributed Services                    ,E14368,Supplies & Services           ,Comms and Computing           ,DG63,Software Licences - Data,465,"3,487.56",5/14/2012,R,CACI LIMITED                  
2012 - MAY,Central Services,Fully rechargeable Overheads,Distributed Services                    ,E14368,Supplies & Services           ,Comms and Computing           ,DG63,Software Licences - Data,466,"1,269.08",5/14/2012,R,CACI LIMITED                  
2012 - MAY,Central Services,Fully rechargeable Overheads,Distributed Services                    ,E14368,Supplies & Services           ,Comms and Computing           ,DG63,Software Licences - Data,467,"1,103.32",5/14/2012,R,CACI LIMITED                  
2012 - MAY,Central Services,Fully rechargeable Overheads,Distributed Services                    ,E14368,Supplies & Services           ,Comms and Computing           ,DG63,Software Licences - Data,468,661.99,5/14/2012,R,CACI LIMITED                  
2012 - MAY,Central Services,Fully rechargeable Overheads,Distributed Services                    ,E14368,Supplies & Services           ,Comms and Computing           ,DG63,Software Licences - Data,469,503.76,5/14/2012,R,CACI LIMITED                  
2012 - MAY,Central Services,Fully rechargeable Overheads,Distributed Services                    ,E14368,Supplies & Services           ,Comms and Computing           ,DG63,Software Licences - Data,470,517.75,5/14/2012,R,CACI LIMITED                  
2012 - MAY,Central Services,Fully rechargeable Overheads,Distributed Services                    ,E14368,Supplies & Services           ,Comms and Computing           ,DG63,Software Licences - Data,471,"2,071.01",5/14/2012,R,CACI LIMITED                  
2012 - MAY,Central Services,Fully rechargeable Overheads,Distributed Services                    ,E14368,Supplies & Services           ,Comms and Computing           ,DG63,Software Licences - Data,472,"1,453.15",5/14/2012,R,CACI LIMITED                  
2012 - MAY,Central Services,Fully rechargeable Overheads,Distributed Services                    ,E14368,Supplies & Services           ,Comms and Computing           ,DG63,Software Licences - Data,473,661.99,5/14/2012,R,CACI LIMITED                  
2012 - MAY,Central Services,Fully rechargeable Overheads,Distributed Services                    ,E14368,Supplies & Services           ,Comms and Computing           ,DG63,Software Licences - Data,474,"9,687.00",5/14/2012,R,CACI LIMITED                  
2012 - MAY,Cultural Env Reg&Plan Services,SMSS (Env),ES Support & Development                ,G00070,Supplies & Services           ,Expenses                      ,DH02,Conferences,475,660,4/23/2012,R,INSTITUTE OF GROUNDSMANSHIP   
2012 - MAY,Cultural Env Reg&Plan Services,SMSS (Env),ES Support & Development                ,G00070,Supplies & Services           ,Expenses                      ,DH02,Conferences,476,"4,000.00",3/9/2012,R,TFL URBAN DESIGN LONDON       
2012 - MAY,Highways & Transport Services,Env Safety&Routine Maintenance,Walk Sheets                             ,G00127,Third Party Payments          ,Private Contractors           ,EH56,Carriageway/Fway Maint,477,"32,371.87",4/30/2012,R,FM CONWAY LTD                 
2012 - MAY,Highways & Transport Services,Env Safety&Routine Maintenance,Walk Sheets                             ,G00127,Third Party Payments          ,Private Contractors           ,EH56,Carriageway/Fway Maint,478,"33,676.94",5/22/2012,R,FM CONWAY LTD                 
2012 - MAY,Highways & Transport Services,Env Safety&Routine Maintenance,Traffic Signs.                          ,G00160,Third Party Payments          ,Private Contractors           ,EH01,Miscellaneous Agency Services,479,"1,413.21",4/24/2012,R,MAY GURNEY LTD T/A CARTLEDGE  
2012 - MAY,Highways & Transport Services,Env Safety&Routine Maintenance,Traffic Signs.                          ,G00160,Third Party Payments          ,Private Contractors           ,EH01,Miscellaneous Agency Services,480,"2,993.04",4/30/2012,R,FM CONWAY LTD                 
2012 - MAY,Highways & Transport Services,Env Safety&Routine Maintenance,Traffic Signs.                          ,G00160,Third Party Payments          ,Private Contractors           ,EH01,Miscellaneous Agency Services,481,870.55,4/27/2012,R,MAY GURNEY LTD T/A CARTLEDGE  
2012 - MAY,Highways & Transport Services,Env Safety&Routine Maintenance,Traffic Signs.                          ,G00160,Third Party Payments          ,Private Contractors           ,EH01,Miscellaneous Agency Services,482,510.98,5/2/2012,R,FM CONWAY LTD                 
2012 - MAY,Highways & Transport Services,Env Safety&Routine Maintenance,Traffic Signs.                          ,G00160,Third Party Payments          ,Private Contractors           ,EH01,Miscellaneous Agency Services,483,"1,408.95",5/22/2012,R,FM CONWAY LTD                 
2012 - MAY,Highways & Transport Services,Env Safety&Routine Maintenance,Traffic Signs.                          ,G00160,Third Party Payments          ,Private Contractors           ,EH01,Miscellaneous Agency Services,484,"1,096.61",5/21/2012,R,MAY GURNEY LTD T/A CARTLEDGE  
2012 - MAY,Highways & Transport Services,Env Safety&Routine Maintenance,Traffic Signs.                          ,G00160,Third Party Payments          ,Private Contractors           ,EH01,Miscellaneous Agency Services,485,"1,060.52",5/22/2012,R,FM CONWAY LTD                 
2012 - MAY,Highways & Transport Services,Env Safety&Routine Maintenance,Traffic Signs.                          ,G00160,Third Party Payments          ,Private Contractors           ,EH01,Miscellaneous Agency Services,486,"1,095.08",5/16/2012,R,SIGNWAY SUPPLIES              
2012 - MAY,Highways & Transport Services,Env Safety&Routine Maintenance,Traffic Signs.                          ,G00160,Third Party Payments          ,Private Contractors           ,EH02,Miscellaneous Hired Services,487,"1,002.08",4/30/2012,R,FM CONWAY LTD                 
2012 - MAY,Highways & Transport Services,Traffic Mgt & Road Safety,Tr Man & Accid Sch                      ,G00220,Third Party Payments          ,Other Agencies                ,EJ52,London Boroughs Transport Sche,488,"8,044.74",4/25/2012,R,LONDON COUNCILS               
2012 - MAY,Highways & Transport Services,Street Lights(Inc Energy Cost),Street Lighting .                       ,G00260,Third Party Payments          ,Private Contractors           ,EH01,Miscellaneous Agency Services,489,"2,455.40",4/24/2012,R,MAY GURNEY LTD T/A CARTLEDGE  
2012 - MAY,Highways & Transport Services,Street Lights(Inc Energy Cost),Street Lighting .                       ,G00260,Third Party Payments          ,Private Contractors           ,EH01,Miscellaneous Agency Services,490,536.6,4/24/2012,R,MAY GURNEY LTD T/A CARTLEDGE  
2012 - MAY,Highways & Transport Services,Street Lights(Inc Energy Cost),Street Lighting .                       ,G00260,Third Party Payments          ,Private Contractors           ,EH01,Miscellaneous Agency Services,491,"2,634.86",4/27/2012,R,MAY GURNEY LTD T/A CARTLEDGE  
2012 - MAY,Highways & Transport Services,Street Lights(Inc Energy Cost),Street Lighting .                       ,G00260,Third Party Payments          ,Private Contractors           ,EH01,Miscellaneous Agency Services,492,644,5/9/2012,R,UK POWER NETWORKS (OPERATIONS)
2012 - MAY,Highways & Transport Services,Street Lights(Inc Energy Cost),Street Lighting .                       ,G00260,Third Party Payments          ,Private Contractors           ,EH01,Miscellaneous Agency Services,493,661,5/8/2012,R,UK POWER NETWORKS (OPERATIONS)
2012 - MAY,Highways & Transport Services,Street Lights(Inc Energy Cost),Street Lighting .                       ,G00260,Third Party Payments          ,Private Contractors           ,EH01,Miscellaneous Agency Services,494,661,5/8/2012,R,UK POWER NETWORKS (OPERATIONS)
2012 - MAY,Highways & Transport Services,Street Lights(Inc Energy Cost),Street Lighting .                       ,G00260,Third Party Payments          ,Private Contractors           ,EH01,Miscellaneous Agency Services,495,554.75,4/20/2012,R,UK POWER NETWORKS (OPERATIONS)
2012 - MAY,Highways & Transport Services,Street Lights(Inc Energy Cost),Street Lighting .                       ,G00260,Third Party Payments          ,Private Contractors           ,EH01,Miscellaneous Agency Services,496,"5,279.86",5/21/2012,R,MAY GURNEY LTD T/A CARTLEDGE  
2012 - MAY,Highways & Transport Services,Street Lights(Inc Energy Cost),Street Lighting .                       ,G00260,Third Party Payments          ,Private Contractors           ,EH01,Miscellaneous Agency Services,497,661,5/17/2012,R,UK POWER NETWORKS (OPERATIONS)
2012 - MAY,Highways & Transport Services,Parking Services,York Close CP                           ,G00298,Premises Related Expenditure  ,Energy Costs                  ,BB02,Electricity,498,569.23,5/11/2012,R,EDF ENERGY 1 LIMITED          
2012 - MAY,Highways & Transport Services,Parking Services,St. Georges Car Park WEST M/S           ,G00302,Premises Related Expenditure  ,Energy Costs                  ,BB02,Electricity,499,"1,383.28",5/2/2012,R,KENT COUNTY COUNCIL           
2012 - MAY,Highways & Transport Services,Parking Services,Peel Hse C P - Upper                    ,G00303,Premises Related Expenditure  ,RepairsAlterations&MtceOfBldgs,BA06,Repairs & Maintenance General,500,"2,938.00",5/15/2012,R,R.J.H.WELDING                 
2012 - MAY,Highways & Transport Services,Parking Services,"St. Mks Rd, Multi Sty                   ",G00308,Premises Related Expenditure  ,Energy Costs                  ,BB02,Electricity,501,"2,664.41",5/4/2012,R,EDF ENERGY 1 LIMITED          
2012 - MAY,Highways & Transport Services,Traffic Mgt & Road Safety,SMILES Project                          ,G00325,Supplies & Services           ,Services                      ,DF30,Activities Programme,502,"6,000.00",11/23/2011,R,LIVING STREETS SERVICES LTD   
2012 - MAY,Highways & Transport Services,Parking Services,Civil Enforcement Officers              ,G00330,Supplies & Services           ,Comms and Computing           ,DG14,Telephones - Mobile,503,734.03,4/21/2012,R,VODAFONE CORPORATE LTD        
2012 - MAY,Highways & Transport Services,Parking Services,Operational Running Costs               ,G00331,Supplies & Services           ,Prntng Stnry Gen Off Exp      ,DE01,External Printing,504,700,4/19/2012,R,ORION SECURITY PRINT LIMITED  
2012 - MAY,Highways & Transport Services,Parking Services,Operational Running Costs               ,G00331,Supplies & Services           ,Prntng Stnry Gen Off Exp      ,DE01,External Printing,505,"1,315.80",4/25/2012,R,NAGELS UK LTD                 
2012 - MAY,Highways & Transport Services,Parking Services,Operational Running Costs               ,G00331,Supplies & Services           ,Comms and Computing           ,DG61,Computer Servs Special,506,"5,200.00",3/30/2012,R,IMPERIAL CIVIL ENFORC.SOLUT.  
2012 - MAY,Highways & Transport Services,Parking Services,Operational Running Costs               ,G00331,Supplies & Services           ,Comms and Computing           ,DG61,Computer Servs Special,507,682.5,4/30/2012,R,IMPERIAL CIVIL ENFORC.SOLUT.  
2012 - MAY,Highways & Transport Services,Parking Services,Operational Running Costs               ,G00331,Supplies & Services           ,Comms and Computing           ,DG61,Computer Servs Special,508,"1,750.00",4/30/2012,R,IMPERIAL CIVIL ENFORC.SOLUT.  
2012 - MAY,Highways & Transport Services,Parking Services,Operational Running Costs               ,G00331,Supplies & Services           ,Comms and Computing           ,DG61,Computer Servs Special,509,"1,267.50",5/1/2012,R,IMPERIAL CIVIL ENFORC.SOLUT.  
2012 - MAY,Highways & Transport Services,Parking Services,Operational Running Costs               ,G00331,Supplies & Services           ,Comms and Computing           ,DG61,Computer Servs Special,510,750,5/16/2012,R,IMPERIAL CIVIL ENFORC.SOLUT.  
2012 - MAY,Highways & Transport Services,Parking Services,Operational Running Costs               ,G00331,Third Party Payments          ,Other Agencies                ,EJ58,Parking Cttee for London,511,"1,500.00",4/19/2012,R,LONDON COUNCILS               
2012 - MAY,Highways & Transport Services,Parking Services,Operational Running Costs               ,G00331,Third Party Payments          ,Other Agencies                ,EJ58,Parking Cttee for London,512,"10,000.00",5/17/2012,R,HMCTS                         
2012 - MAY,Highways & Transport Services,Env Safety&Routine Maintenance,Flood Risk Management                   ,G00350,Supplies & Services           ,Services                      ,DF03,Consultants,513,"2,496.60",5/3/2012,R,URS INFRASTRUCTURE & ENV UK LT
2012 - MAY,Highways & Transport Services,Structural Maintenance,Footpath Crossings.                     ,G00390,Third Party Payments          ,Private Contractors           ,EH56,Carriageway/Fway Maint,514,"7,069.29",4/30/2012,R,FM CONWAY LTD                 
2012 - MAY,Highways & Transport Services,Structural Maintenance,Footpath Crossings.                     ,G00390,Third Party Payments          ,Private Contractors           ,EH56,Carriageway/Fway Maint,515,"7,930.71",5/22/2012,R,FM CONWAY LTD                 
2012 - MAY,Highways & Transport Services,Structural Maintenance,Footpath Crossings.                     ,G00390,Third Party Payments          ,Private Contractors           ,EH56,Carriageway/Fway Maint,516,"1,323.11",5/22/2012,R,FM CONWAY LTD                 
2012 - MAY,Highways & Transport Services,Structural Maintenance,Footpath Crossings.                     ,G00390,Third Party Payments          ,Private Contractors           ,EH56,Carriageway/Fway Maint,517,"5,162.59",5/30/2012,R,FM CONWAY LTD                 
2012 - MAY,Cultural Env Reg&Plan Services,Street Cleaning - Not highways,Street Cleansing (Inc. Gully)           ,G00492,Supplies & Services           ,Equip Furniture/Materials     ,DA01,Equipment - R & M,518,626.6,4/30/2012,R,N A BROWN LTD                 
2012 - MAY,Cultural Env Reg&Plan Services,Street Cleaning - Not highways,Street Cleansing (Inc. Gully)           ,G00492,Supplies & Services           ,Equip Furniture/Materials     ,DA08,Tools-Purchase,519,690.85,4/26/2012,R,BELL BRUSH                    
2012 - MAY,Cultural Env Reg&Plan Services,Street Cleaning - Not highways,Street Cleansing (Inc. Gully)           ,G00492,Supplies & Services           ,Equip Furniture/Materials     ,DA08,Tools-Purchase,520,"1,449.00",5/11/2012,R,BELL BRUSH                    
2012 - MAY,Cultural Env Reg&Plan Services,Street Cleaning - Not highways,Street Cleansing (Inc. Gully)           ,G00492,Supplies & Services           ,Equip Furniture/Materials     ,DA31,Waste Sacks & Bags,521,"1,852.20",4/5/2012,R,POLARIS PLASTICS LTD          
2012 - MAY,Cultural Env Reg&Plan Services,Street Cleaning - Not highways,Street Cleansing (Inc. Gully)           ,G00492,Supplies & Services           ,Clothing Unfrms Laundry       ,DC02,Clothing & Uniforms,522,"1,433.18",4/27/2012,R,SAFETY MANAGEMENT             
2012 - MAY,Cultural Env Reg&Plan Services,Street Cleaning - Not highways,Street Cleansing (Inc. Gully)           ,G00492,Third Party Payments          ,Private Contractors           ,EH74,Weed Spraying Contract,523,"11,517.98",3/21/2012,R,COMPLETE WEED CONTROL         
2012 - MAY,Cultural Env Reg&Plan Services,Waste Disposal,Waste Disposal .                        ,G00550,Third Party Payments          ,Private Contractors           ,EH02,Miscellaneous Hired Services,524,"9,236.80",4/25/2012,R,ENVIRONMENTAL WASTE CONTROL LT
2012 - MAY,Cultural Env Reg&Plan Services,Waste Disposal,Waste Disposal .                        ,G00550,Third Party Payments          ,Private Contractors           ,EH66,Clinical Waste Disposal,525,728.94,4/30/2012,R,S.GRUNDON (WASTE) LTD.        
2012 - MAY,Cultural Env Reg&Plan Services,Waste Disposal,Waste Disposal .                        ,G00550,Third Party Payments          ,Private Contractors           ,EH68,Management Contract,526,"50,179.00",5/10/2012,R,LONDON BOROUGH OF SUTTON      
2012 - MAY,Cultural Env Reg&Plan Services,Waste Disposal,Waste Disposal .                        ,G00550,Third Party Payments          ,Private Contractors           ,EH91,Disposal of Asbestos,527,929.61,4/25/2012,R,CITY OF LONDON CORPORATION    
2012 - MAY,Cultural Env Reg&Plan Services,Waste Disposal,Waste Disposal .                        ,G00550,Third Party Payments          ,Private Contractors           ,EH96,Hardcore Disposal - Country Waste,528,"1,105.50",4/30/2012,R,CORY ENVIRONMENTAL LIMITED    
2012 - MAY,Highways & Transport Services,Structural Maintenance,Grass Cut/Tr Mtce                       ,G00600,Premises Related Expenditure  ,Ground Maintenance Costs      ,BL03,Maintenance of Grounds,529,"4,689.34",4/27/2012,R,VEOLIA ES (UK) LIMITED        
2012 - MAY,Highways & Transport Services,Structural Maintenance,Grass Cut/Tr Mtce                       ,G00600,Premises Related Expenditure  ,Ground Maintenance Costs      ,BL03,Maintenance of Grounds,530,"13,490.38",4/27/2012,R,VEOLIA ES (UK) LIMITED        
2012 - MAY,Highways & Transport Services,Structural Maintenance,Grass Cut/Tr Mtce                       ,G00600,Premises Related Expenditure  ,Ground Maintenance Costs      ,BL03,Maintenance of Grounds,531,572.98,5/21/2012,R,VEOLIA ES (UK) LIMITED        
2012 - MAY,Highways & Transport Services,Structural Maintenance,Grass Cut/Tr Mtce                       ,G00600,Premises Related Expenditure  ,Ground Maintenance Costs      ,BL03,Maintenance of Grounds,532,598.56,5/21/2012,R,VEOLIA ES (UK) LIMITED        
2012 - MAY,Highways & Transport Services,Structural Maintenance,Grass Cut/Tr Mtce                       ,G00600,Premises Related Expenditure  ,Ground Maintenance Costs      ,BL03,Maintenance of Grounds,533,"4,689.34",5/23/2012,R,VEOLIA ES (UK) LIMITED        
2012 - MAY,Cultural Env Reg&Plan Services,Environmental Health,Dog Control.                            ,G00620,Third Party Payments          ,Private Contractors           ,EH02,Miscellaneous Hired Services,534,610,3/31/2012,R,WOODLANDS ANIMAL CARE LTD     
2012 - MAY,Cultural Env Reg&Plan Services,Environmental Health,Dog Control.                            ,G00620,Third Party Payments          ,Private Contractors           ,EH02,Miscellaneous Hired Services,535,"1,125.00",2/29/2012,R,WOODLANDS ANIMAL CARE LTD     
2012 - MAY,Cultural Env Reg&Plan Services,Waste Collection,Recycling Activities                    ,G00640,Supplies & Services           ,Equip Furniture/Materials     ,DA09,Equip-Purchases,536,964,4/18/2012,R,PJ HARVEY & CO LTD            
2012 - MAY,Cultural Env Reg&Plan Services,Waste Collection,Recycling Activities                    ,G00640,Supplies & Services           ,Equip Furniture/Materials     ,DA09,Equip-Purchases,537,964,4/27/2012,R,PJ HARVEY & CO LTD            
2012 - MAY,Cultural Env Reg&Plan Services,Waste Collection,Recycling Activities                    ,G00640,Supplies & Services           ,Equip Furniture/Materials     ,DA32,Wheeled Bins,538,"29,390.40",5/24/2012,R,STRAIGHT PLC                  
2012 - MAY,Cultural Env Reg&Plan Services,Waste Collection,Recycling Activities                    ,G00640,Supplies & Services           ,Equip Furniture/Materials     ,DA32,Wheeled Bins,539,"14,695.20",5/24/2012,R,STRAIGHT PLC                  
2012 - MAY,Cultural Env Reg&Plan Services,Waste Collection,Recycling Activities                    ,G00640,Third Party Payments          ,Private Contractors           ,EH61,Green Waste Disposal,540,"8,613.45",4/30/2012,R,VIRIDOR WASTE KENT LTD        
2012 - MAY,Cultural Env Reg&Plan Services,Waste Collection,Recycling Activities                    ,G00640,Third Party Payments          ,Private Contractors           ,EH61,Green Waste Disposal,541,558.12,4/30/2012,R,ENVIRONMENTAL WASTE CONTROL LT
2012 - MAY,Cultural Env Reg&Plan Services,Waste Collection,Recycling Collection                    ,G00645,Supplies & Services           ,Clothing Unfrms Laundry       ,DC02,Clothing & Uniforms,542,716.4,4/27/2012,R,SAFETY MANAGEMENT             
2012 - MAY,Cultural Env Reg&Plan Services,Waste Collection,Refuse Collection (Operations)          ,G00661,Transport Related Expenditure ,Direct Transport Costs        ,CA52,Reps Vehicles Ins Claims,543,750,4/17/2012,R,S.E.T.S SERVICES              
2012 - MAY,Cultural Env Reg&Plan Services,Waste Collection,Refuse Collection (Operations)          ,G00661,Transport Related Expenditure ,Direct Transport Costs        ,CA52,Reps Vehicles Ins Claims,544,750,3/8/2012,R,S.E.T.S SERVICES              
2012 - MAY,Cultural Env Reg&Plan Services,Waste Collection,Refuse Collection (Operations)          ,G00661,Supplies & Services           ,Equip Furniture/Materials     ,DA32,Wheeled Bins,545,950,3/21/2012,R,SPIDER UK LTD                 
2012 - MAY,Cultural Env Reg&Plan Services,Waste Collection,Refuse Collection (Operations)          ,G00661,Supplies & Services           ,Equip Furniture/Materials     ,DA32,Wheeled Bins,546,"1,850.00",3/21/2012,R,SPIDER UK LTD                 
2012 - MAY,Cultural Env Reg&Plan Services,Waste Collection,Refuse Collection (Operations)          ,G00661,Supplies & Services           ,Equip Furniture/Materials     ,DA32,Wheeled Bins,547,"3,094.00",3/30/2012,R,SPIDER UK LTD                 
2012 - MAY,Cultural Env Reg&Plan Services,Waste Collection,Refuse Collection (Operations)          ,G00661,Supplies & Services           ,Clothing Unfrms Laundry       ,DC02,Clothing & Uniforms,548,"1,433.18",4/27/2012,R,SAFETY MANAGEMENT             
2012 - MAY,Cultural Env Reg&Plan Services,Waste Collection,Commercial Waste                        ,G00663,Employees                     ,Indirect Employee Expenses    ,AB57,External Training Costs,549,687.5,4/19/2012,R,FAVERSHAM HOUSE GROUP         
2012 - MAY,Cultural Env Reg&Plan Services,Consumer Protection,Trading Standards                       ,G00690,Employees                     ,Indirect Employee Expenses    ,AB02,Recruitment Adverts,550,837.6,4/30/2012,R,PENNA PLC                     
2012 - MAY,Cultural Env Reg&Plan Services,Consumer Protection,Trading Standards                       ,G00690,Supplies & Services           ,Services                      ,DF11,Counsel's fees,551,510,4/20/2012,R,REDACTED
2012 - MAY,Cultural Env Reg&Plan Services,Environmental Health,Health & Safety                         ,G00697,Third Party Payments          ,Private Contractors           ,EH10,Contract Payments,552,825,4/30/2012,R,PUBLIC ANALYST SCIENTIFIC SER.
2012 - MAY,Cultural Env Reg&Plan Services,Environmental Health,Pest Control                            ,G00724,Supplies & Services           ,Equip Furniture/Materials     ,DA09,Equip-Purchases,553,"1,008.02",4/25/2012,R,KILLGERM CHEMICALS LIMITED    
2012 - MAY,Cultural Env Reg&Plan Services,Environmental Health,Housing/Env                             ,G00730,Employees                     ,Direct Employee Expenses      ,AA17,Agency Staff & Casual Paymts,554,893.55,4/25/2012,R,REDACTED
2012 - MAY,Cultural Env Reg&Plan Services,Environmental Health,Housing/Env                             ,G00730,Employees                     ,Direct Employee Expenses      ,AA17,Agency Staff & Casual Paymts,555,563.5,4/18/2012,R,REDACTED
2012 - MAY,Cultural Env Reg&Plan Services,Environmental Health,Housing/Env                             ,G00730,Employees                     ,Direct Employee Expenses      ,AA17,Agency Staff & Casual Paymts,556,595.7,3/28/2012,R,REDACTED
2012 - MAY,Cultural Env Reg&Plan Services,Environmental Health,Housing/Env                             ,G00730,Employees                     ,Direct Employee Expenses      ,AA17,Agency Staff & Casual Paymts,557,917.7,3/21/2012,R,REDACTED
2012 - MAY,Cultural Env Reg&Plan Services,Environmental Health,AIR QUALITY GRANT (DEFRA) MB            ,G00732,Supplies & Services           ,Equip Furniture/Materials     ,DA02,Op. Leasing Equipment,558,"2,640.00",4/26/2012,R,AECOM LTD                     
2012 - MAY,Cultural Env Reg&Plan Services,SMSS (Env),Waste Management                        ,G00900,Premises Related Expenditure  ,Energy Costs                  ,BB02,Electricity,559,835.64,5/3/2012,R,EDF ENERGY                    
2012 - MAY,Central Services,Gen Grants Bequest & Donations,Vestry Hall                             ,G40314,Employees                     ,Direct Employee Expenses      ,AA17,Agency Staff & Casual Paymts,560,"4,486.95",5/10/2012,R,PCL SECURITY LTD              
2012 - MAY,Central Services,Gen Grants Bequest & Donations,Vestry Hall                             ,G40314,Premises Related Expenditure  ,RepairsAlterations&MtceOfBldgs,BA01,DDM - General Building,561,610,4/26/2012,R,DAPPA MRP FLOORING            
2012 - MAY,Central Services,Gen Grants Bequest & Donations,Vestry Hall                             ,G40314,Premises Related Expenditure  ,Energy Costs                  ,BB02,Electricity,562,"2,903.12",5/1/2012,R,EDF ENERGY                    
2012 - MAY,Central Services,Gen Grants Bequest & Donations,Vestry Hall                             ,G40314,Premises Related Expenditure  ,Energy Costs                  ,BB03,Gas (incl. Butane),563,579.48,4/23/2012,R,KENT COUNTY COUNCIL           
2012 - MAY,Central Services,Gen Grants Bequest & Donations,Vestry Hall                             ,G40314,Third Party Payments          ,Private Contractors           ,EH02,Miscellaneous Hired Services,564,"1,408.47",4/29/2012,R,DYNAMIQ CLEANING LIMITED      
2012 - MAY,Cultural Env Reg&Plan Services,Development Control,Development Control                     ,H01130,Premises Related Expenditure  ,RepairsAlterations&MtceOfBldgs,BA06,Repairs & Maintenance General,565,"1,439.00",5/2/2012,R,REPROTEC LTD                  
2012 - MAY,Cultural Env Reg&Plan Services,Development Control,Development Control                     ,H01130,Premises Related Expenditure  ,RepairsAlterations&MtceOfBldgs,BA06,Repairs & Maintenance General,566,627,5/2/2012,R,REPROTEC LTD                  
2012 - MAY,Cultural Env Reg&Plan Services,Development Control,Development Control                     ,H01130,Supplies & Services           ,Services                      ,DF03,Consultants,567,792,5/4/2012,R,THE HOME REFIT SERVICE        
2012 - MAY,Cultural Env Reg&Plan Services,Development Control,Development Control                     ,H01130,Supplies & Services           ,Services                      ,DF11,Counsel's fees,568,"1,250.00",4/20/2012,R,REDACTED
2012 - MAY,Cultural Env Reg&Plan Services,Development Control,Development Control                     ,H01130,Supplies & Services           ,Services                      ,DF11,Counsel's fees,569,885,4/11/2012,R,REDACTED
2012 - MAY,Cultural Env Reg&Plan Services,Development Control,Development Control                     ,H01130,Supplies & Services           ,Comms and Computing           ,DG09,Computer Purchases - Misc,570,850,5/14/2012,R,NORTHGATE  INFORMATION SOLUT. 
2012 - MAY,Cultural Env Reg&Plan Services,Planning Policy,Spatial Policy                          ,H01173,Supplies & Services           ,Prntng Stnry Gen Off Exp      ,DE01,External Printing,571,"2,514.00",5/14/2012,R,RICHPRINT COLOUR & COM.PRINTER
2012 - MAY,Cultural Env Reg&Plan Services,Planning Policy,Spatial Policy                          ,H01173,Third Party Payments          ,Private Contractors           ,EH10,Contract Payments,572,"5,000.00",4/27/2012,R,GVA GRIMLEY LTD               
2012 - MAY,Cultural Env Reg&Plan Services,Planning Policy,REGENERATION & INVESTMENT              ,H01174,Supplies & Services           ,Services                      ,DF03,Consultants,573,"10,000.00",4/24/2012,R,WILLOW LANE BID               
2012 - MAY,Cultural Env Reg&Plan Services,Planning Policy,REGENERATION & INVESTMENT              ,H01174,Supplies & Services           ,Services                      ,DF03,Consultants,574,"3,400.00",5/18/2012,R,LONDON SUSTAINABILITY EXCHANGE
2012 - MAY,Cultural Env Reg&Plan Services,Planning Policy,REGENERATION & INVESTMENT              ,H01174,Supplies & Services           ,Grants and Subscriptions      ,DJ04,Subscriptions,575,"5,500.00",4/23/2012,R,SOUTH LONDON BUSINESS         
2012 - MAY,Cultural Env Reg&Plan Services,Planning Policy,HPDG - Physical Regeneration            ,H01178,Supplies & Services           ,Services                      ,DF35,Graphic Design,576,"9,000.00",5/18/2012,R,STUDIO ELEVEN LTD             
2012 - MAY,Cultural Env Reg&Plan Services,Economic Development,(LABGI)-BUSINESS SUPPORT                ,H01210,Supplies & Services           ,Services                      ,DF03,Consultants,577,"25,000.00",5/9/2012,R,TOOTING & MITCHAM SPORTS/LEISU
2012 - MAY,CS -Oth Operating Inc & Expend,Trading A/c Surpluses/Deficits,Transport-Contract Hire                 ,J01374,Premises Related Expenditure  ,Energy Costs                  ,BB02,Electricity,578,"1,252.78",5/9/2012,R,EDF ENERGY                    
2012 - MAY,CS -Oth Operating Inc & Expend,Trading A/c Surpluses/Deficits,Transport-Contract Hire                 ,J01374,Premises Related Expenditure  ,Energy Costs                  ,BB03,Gas (incl. Butane),579,647.96,4/23/2012,R,KENT COUNTY COUNCIL           
2012 - MAY,CS -Oth Operating Inc & Expend,Trading A/c Surpluses/Deficits,Transport-Contract Hire                 ,J01374,Transport Related Expenditure ,Direct Transport Costs        ,CA01,Petrol Derv & Oil,580,"40,717.85",4/12/2012,R,EMO OILS LTD                  
2012 - MAY,CS -Oth Operating Inc & Expend,Trading A/c Surpluses/Deficits,Transport-Contract Hire                 ,J01374,Transport Related Expenditure ,Direct Transport Costs        ,CA01,Petrol Derv & Oil,581,"40,057.70",4/23/2012,R,EMO OILS LTD                  
2012 - MAY,CS -Oth Operating Inc & Expend,Trading A/c Surpluses/Deficits,Transport-Contract Hire                 ,J01374,Transport Related Expenditure ,Direct Transport Costs        ,CA01,Petrol Derv & Oil,582,"-8,011.31",4/25/2012,R,EMO OILS LTD                  
2012 - MAY,CS -Oth Operating Inc & Expend,Trading A/c Surpluses/Deficits,Transport-Contract Hire                 ,J01374,Transport Related Expenditure ,Direct Transport Costs        ,CA01,Petrol Derv & Oil,583,"31,828.65",5/10/2012,R,EMO OILS LTD                  
2012 - MAY,CS -Oth Operating Inc & Expend,Trading A/c Surpluses/Deficits,Transport-Contract Hire                 ,J01374,Transport Related Expenditure ,Direct Transport Costs        ,CA52,Reps Vehicles Ins Claims,584,500,4/20/2012,R,FLEETSPEED COACHWORKS LTD.    
2012 - MAY,CS -Oth Operating Inc & Expend,Trading A/c Surpluses/Deficits,Transport-Contract Hire                 ,J01374,Transport Related Expenditure ,Contract Hire and Op Leasing  ,CC53,Plant Hire for MRCS,585,650,4/13/2012,R,GO PLANT                      
2012 - MAY,CS -Oth Operating Inc & Expend,Trading A/c Surpluses/Deficits,Transport-Contract Hire                 ,J01374,Transport Related Expenditure ,Contract Hire and Op Leasing  ,CC53,Plant Hire for MRCS,586,650,4/20/2012,R,GO PLANT                      
2012 - MAY,CS -Oth Operating Inc & Expend,Trading A/c Surpluses/Deficits,Transport-Contract Hire                 ,J01374,Transport Related Expenditure ,Contract Hire and Op Leasing  ,CC53,Plant Hire for MRCS,587,693,4/27/2012,R,GVS HIRE LTD                  
2012 - MAY,CS -Oth Operating Inc & Expend,Trading A/c Surpluses/Deficits,Transport-Contract Hire                 ,J01374,Transport Related Expenditure ,Contract Hire and Op Leasing  ,CC53,Plant Hire for MRCS,588,"1,113.00",4/27/2012,R,GVS HIRE LTD                  
2012 - MAY,CS -Oth Operating Inc & Expend,Trading A/c Surpluses/Deficits,Transport-Contract Hire                 ,J01374,Transport Related Expenditure ,Contract Hire and Op Leasing  ,CC53,Plant Hire for MRCS,589,535,4/30/2012,R,PHOENIX VEHICLE HIRE LTD      
2012 - MAY,CS -Oth Operating Inc & Expend,Trading A/c Surpluses/Deficits,Transport-Contract Hire                 ,J01374,Transport Related Expenditure ,Contract Hire and Op Leasing  ,CC53,Plant Hire for MRCS,590,"1,197.00",4/27/2012,R,GVS HIRE LTD                  
2012 - MAY,CS -Oth Operating Inc & Expend,Trading A/c Surpluses/Deficits,Transport-Contract Hire                 ,J01374,Transport Related Expenditure ,Contract Hire and Op Leasing  ,CC53,Plant Hire for MRCS,591,"2,352.00",4/27/2012,R,GVS HIRE LTD                  
2012 - MAY,CS -Oth Operating Inc & Expend,Trading A/c Surpluses/Deficits,Transport-Contract Hire                 ,J01374,Transport Related Expenditure ,Contract Hire and Op Leasing  ,CC53,Plant Hire for MRCS,592,535,4/23/2012,R,PHOENIX VEHICLE HIRE LTD      
2012 - MAY,CS -Oth Operating Inc & Expend,Trading A/c Surpluses/Deficits,Transport-Contract Hire                 ,J01374,Transport Related Expenditure ,Contract Hire and Op Leasing  ,CC53,Plant Hire for MRCS,593,777,4/30/2012,R,SHB HIRE LTD                  
2012 - MAY,CS -Oth Operating Inc & Expend,Trading A/c Surpluses/Deficits,Transport-Contract Hire                 ,J01374,Transport Related Expenditure ,Contract Hire and Op Leasing  ,CC53,Plant Hire for MRCS,594,650,4/27/2012,R,GO PLANT                      
2012 - MAY,CS -Oth Operating Inc & Expend,Trading A/c Surpluses/Deficits,Transport-Contract Hire                 ,J01374,Transport Related Expenditure ,Contract Hire and Op Leasing  ,CC53,Plant Hire for MRCS,595,"2,000.00",4/27/2012,R,NOBLET MUNICIPAL SERVICES LTD 
2012 - MAY,CS -Oth Operating Inc & Expend,Trading A/c Surpluses/Deficits,Transport-Contract Hire                 ,J01374,Transport Related Expenditure ,Contract Hire and Op Leasing  ,CC53,Plant Hire for MRCS,596,"1,407.00",4/30/2012,R,SHB HIRE LTD                  
2012 - MAY,CS -Oth Operating Inc & Expend,Trading A/c Surpluses/Deficits,Transport-Contract Hire                 ,J01374,Transport Related Expenditure ,Contract Hire and Op Leasing  ,CC53,Plant Hire for MRCS,597,777,4/30/2012,R,SHB HIRE LTD                  
2012 - MAY,CS -Oth Operating Inc & Expend,Trading A/c Surpluses/Deficits,Transport-Contract Hire                 ,J01374,Transport Related Expenditure ,Contract Hire and Op Leasing  ,CC53,Plant Hire for MRCS,598,777,4/30/2012,R,SHB HIRE LTD                  
2012 - MAY,CS -Oth Operating Inc & Expend,Trading A/c Surpluses/Deficits,Transport-Contract Hire                 ,J01374,Transport Related Expenditure ,Contract Hire and Op Leasing  ,CC53,Plant Hire for MRCS,599,"1,740.00",5/8/2012,R,FARID MUNICIPAL VEHICLES LTD  
2012 - MAY,CS -Oth Operating Inc & Expend,Trading A/c Surpluses/Deficits,Transport-Contract Hire                 ,J01374,Transport Related Expenditure ,Contract Hire and Op Leasing  ,CC53,Plant Hire for MRCS,600,650,5/4/2012,R,GO PLANT                      
2012 - MAY,CS -Oth Operating Inc & Expend,Trading A/c Surpluses/Deficits,Transport-Contract Hire                 ,J01374,Transport Related Expenditure ,Contract Hire and Op Leasing  ,CC53,Plant Hire for MRCS,601,535,5/8/2012,R,PHOENIX VEHICLE HIRE LTD      
2012 - MAY,CS -Oth Operating Inc & Expend,Trading A/c Surpluses/Deficits,Transport-Contract Hire                 ,J01374,Transport Related Expenditure ,Contract Hire and Op Leasing  ,CC53,Plant Hire for MRCS,602,535,5/21/2012,R,PHOENIX VEHICLE HIRE LTD      
2012 - MAY,CS -Oth Operating Inc & Expend,Trading A/c Surpluses/Deficits,Transport-Contract Hire                 ,J01374,Transport Related Expenditure ,Contract Hire and Op Leasing  ,CC53,Plant Hire for MRCS,603,840,5/8/2012,R,GULLIVER'S TRUCK HIRE LTD.    
2012 - MAY,CS -Oth Operating Inc & Expend,Trading A/c Surpluses/Deficits,Transport-Contract Hire                 ,J01374,Transport Related Expenditure ,Contract Hire and Op Leasing  ,CC53,Plant Hire for MRCS,604,535,5/21/2012,R,PHOENIX VEHICLE HIRE LTD      
2012 - MAY,CS -Oth Operating Inc & Expend,Trading A/c Surpluses/Deficits,Transport-Contract Hire                 ,J01374,Transport Related Expenditure ,Contract Hire and Op Leasing  ,CC53,Plant Hire for MRCS,605,650,5/11/2012,R,GO PLANT                      
2012 - MAY,CS -Oth Operating Inc & Expend,Trading A/c Surpluses/Deficits,Transport-Contract Hire                 ,J01374,Transport Related Expenditure ,Contract Hire and Op Leasing  ,CC53,Plant Hire for MRCS,606,535,5/14/2012,R,PHOENIX VEHICLE HIRE LTD      
2012 - MAY,CS -Oth Operating Inc & Expend,Trading A/c Surpluses/Deficits,Transport-Contract Hire                 ,J01374,Transport Related Expenditure ,Contract Hire and Op Leasing  ,CC53,Plant Hire for MRCS,607,840,5/14/2012,R,GULLIVER'S TRUCK HIRE LTD.    
2012 - MAY,CS -Oth Operating Inc & Expend,Trading A/c Surpluses/Deficits,Transport-Contract Hire                 ,J01374,Transport Related Expenditure ,Contract Hire and Op Leasing  ,CC53,Plant Hire for MRCS,608,840,5/21/2012,R,GULLIVER'S TRUCK HIRE LTD.    
2012 - MAY,CS -Oth Operating Inc & Expend,Trading A/c Surpluses/Deficits,Transport-Contract Hire                 ,J01374,Transport Related Expenditure ,Contract Hire and Op Leasing  ,CC57,Plant Hire for Housing,609,702,4/22/2012,R,KENT COUNTY COUNCIL           
2012 - MAY,CS -Oth Operating Inc & Expend,Trading A/c Surpluses/Deficits,Transport-Contract Hire                 ,J01374,Transport Related Expenditure ,Contract Hire and Op Leasing  ,CC57,Plant Hire for Housing,610,940,4/30/2012,R,REDACTED
2012 - MAY,CS -Oth Operating Inc & Expend,Trading A/c Surpluses/Deficits,Transport-Contract Hire                 ,J01374,Transport Related Expenditure ,Contract Hire and Op Leasing  ,CC58,Plant Hire - Ad Hoc,611,"2,068.43",5/4/2012,R,DAWSON RENTALS BUS AND COACH  
2012 - MAY,CS -Oth Operating Inc & Expend,Trading A/c Surpluses/Deficits,Transport-Contract Hire                 ,J01374,Transport Related Expenditure ,Contract Hire and Op Leasing  ,CC58,Plant Hire - Ad Hoc,612,"1,458.62",5/4/2012,R,DAWSON RENTALS BUS AND COACH  
2012 - MAY,CS -Oth Operating Inc & Expend,Trading A/c Surpluses/Deficits,Transport-Contract Hire                 ,J01374,Transport Related Expenditure ,Contract Hire and Op Leasing  ,CC58,Plant Hire - Ad Hoc,613,"1,458.62",5/4/2012,R,DAWSON RENTALS BUS AND COACH  
2012 - MAY,CS -Oth Operating Inc & Expend,Trading A/c Surpluses/Deficits,Transport-Contract Hire                 ,J01374,Transport Related Expenditure ,Contract Hire and Op Leasing  ,CC64,Mini Cab Hire for Education,614,"7,863.70",4/29/2012,R,KINGSTON ACCESSIBILITY TRAN LT
2012 - MAY,CS -Oth Operating Inc & Expend,Trading A/c Surpluses/Deficits,Transport-Contract Hire                 ,J01374,Transport Related Expenditure ,Contract Hire and Op Leasing  ,CC64,Mini Cab Hire for Education,615,"1,460.00",3/31/2012,R,NVCAR HIRE LTD                
2012 - MAY,CS -Oth Operating Inc & Expend,Trading A/c Surpluses/Deficits,Transport-Contract Hire                 ,J01374,Transport Related Expenditure ,Contract Hire and Op Leasing  ,CC64,Mini Cab Hire for Education,616,"1,017.40",4/1/2012,R,SHERWOOD TRANSPORT GROUP      
2012 - MAY,CS -Oth Operating Inc & Expend,Trading A/c Surpluses/Deficits,Transport-Contract Hire                 ,J01374,Transport Related Expenditure ,Contract Hire and Op Leasing  ,CC64,Mini Cab Hire for Education,617,532,4/1/2012,R,SHERWOOD TRANSPORT GROUP      
2012 - MAY,CS -Oth Operating Inc & Expend,Trading A/c Surpluses/Deficits,Transport-Contract Hire                 ,J01374,Transport Related Expenditure ,Contract Hire and Op Leasing  ,CC64,Mini Cab Hire for Education,618,"1,279.00",3/31/2012,R,CAPITAL CARS                  
2012 - MAY,CS -Oth Operating Inc & Expend,Trading A/c Surpluses/Deficits,Transport-Contract Hire                 ,J01374,Transport Related Expenditure ,Contract Hire and Op Leasing  ,CC64,Mini Cab Hire for Education,619,520,4/30/2012,R,BARCLAYS ASSET & SALES FINANCE
2012 - MAY,CS -Oth Operating Inc & Expend,Trading A/c Surpluses/Deficits,Transport-Contract Hire                 ,J01374,Transport Related Expenditure ,Contract Hire and Op Leasing  ,CC64,Mini Cab Hire for Education,620,748,4/30/2012,R,BRUNSWICK CARS LTD            
2012 - MAY,CS -Oth Operating Inc & Expend,Trading A/c Surpluses/Deficits,Transport-Contract Hire                 ,J01374,Transport Related Expenditure ,Contract Hire and Op Leasing  ,CC64,Mini Cab Hire for Education,621,649,4/30/2012,R,SHERWOOD TRANSPORT GROUP      
2012 - MAY,CS -Oth Operating Inc & Expend,Trading A/c Surpluses/Deficits,Transport-Contract Hire                 ,J01374,Transport Related Expenditure ,Contract Hire and Op Leasing  ,CC64,Mini Cab Hire for Education,622,"1,870.00",4/30/2012,R,BARCLAYS ASSET & SALES FINANCE
2012 - MAY,CS -Oth Operating Inc & Expend,Trading A/c Surpluses/Deficits,Transport-Contract Hire                 ,J01374,Transport Related Expenditure ,Contract Hire and Op Leasing  ,CC64,Mini Cab Hire for Education,623,532,4/30/2012,R,BARCLAYS ASSET & SALES FINANCE
2012 - MAY,CS -Oth Operating Inc & Expend,Trading A/c Surpluses/Deficits,Transport-Contract Hire                 ,J01374,Transport Related Expenditure ,Contract Hire and Op Leasing  ,CC64,Mini Cab Hire for Education,624,804.5,4/30/2012,R,BARCLAYS ASSET & SALES FINANCE
2012 - MAY,CS -Oth Operating Inc & Expend,Trading A/c Surpluses/Deficits,Transport-Contract Hire                 ,J01374,Transport Related Expenditure ,Contract Hire and Op Leasing  ,CC64,Mini Cab Hire for Education,625,525,4/30/2012,R,BARCLAYS ASSET & SALES FINANCE
2012 - MAY,CS -Oth Operating Inc & Expend,Trading A/c Surpluses/Deficits,Transport-Contract Hire                 ,J01374,Transport Related Expenditure ,Contract Hire and Op Leasing  ,CC64,Mini Cab Hire for Education,626,713.9,4/30/2012,R,SHERWOOD TRANSPORT GROUP      
2012 - MAY,CS -Oth Operating Inc & Expend,Trading A/c Surpluses/Deficits,Transport-Contract Hire                 ,J01374,Transport Related Expenditure ,Contract Hire and Op Leasing  ,CC64,Mini Cab Hire for Education,627,"1,090.60",4/30/2012,R,SHERWOOD TRANSPORT GROUP      
2012 - MAY,CS -Oth Operating Inc & Expend,Trading A/c Surpluses/Deficits,Transport-Contract Hire                 ,J01374,Transport Related Expenditure ,Contract Hire and Op Leasing  ,CC64,Mini Cab Hire for Education,628,"1,400.00",4/30/2012,R,BARCLAYS ASSET & SALES FINANCE
2012 - MAY,CS -Oth Operating Inc & Expend,Trading A/c Surpluses/Deficits,Transport-Contract Hire                 ,J01374,Transport Related Expenditure ,Contract Hire and Op Leasing  ,CC64,Mini Cab Hire for Education,629,804,4/30/2012,R,BARCLAYS ASSET & SALES FINANCE
2012 - MAY,CS -Oth Operating Inc & Expend,Trading A/c Surpluses/Deficits,Transport-Contract Hire                 ,J01374,Transport Related Expenditure ,Contract Hire and Op Leasing  ,CC64,Mini Cab Hire for Education,630,"1,160.00",4/30/2012,R,BARCLAYS ASSET & SALES FINANCE
2012 - MAY,CS -Oth Operating Inc & Expend,Trading A/c Surpluses/Deficits,Transport-Contract Hire                 ,J01374,Transport Related Expenditure ,Contract Hire and Op Leasing  ,CC64,Mini Cab Hire for Education,631,"1,760.00",4/30/2012,R,BARCLAYS ASSET & SALES FINANCE
2012 - MAY,CS -Oth Operating Inc & Expend,Trading A/c Surpluses/Deficits,Transport-Contract Hire                 ,J01374,Transport Related Expenditure ,Contract Hire and Op Leasing  ,CC64,Mini Cab Hire for Education,632,836,4/30/2012,R,BARCLAYS ASSET & SALES FINANCE
2012 - MAY,CS -Oth Operating Inc & Expend,Trading A/c Surpluses/Deficits,Transport-Contract Hire                 ,J01374,Transport Related Expenditure ,Contract Hire and Op Leasing  ,CC64,Mini Cab Hire for Education,633,"1,023.00",4/30/2012,R,BARCLAYS ASSET & SALES FINANCE
2012 - MAY,CS -Oth Operating Inc & Expend,Trading A/c Surpluses/Deficits,Transport-Contract Hire                 ,J01374,Transport Related Expenditure ,Contract Hire and Op Leasing  ,CC64,Mini Cab Hire for Education,634,836,4/30/2012,R,BARCLAYS ASSET & SALES FINANCE
2012 - MAY,CS -Oth Operating Inc & Expend,Trading A/c Surpluses/Deficits,Transport-Contract Hire                 ,J01374,Transport Related Expenditure ,Contract Hire and Op Leasing  ,CC64,Mini Cab Hire for Education,635,990,4/30/2012,R,BARCLAYS ASSET & SALES FINANCE
2012 - MAY,CS -Oth Operating Inc & Expend,Trading A/c Surpluses/Deficits,Transport-Contract Hire                 ,J01374,Transport Related Expenditure ,Contract Hire and Op Leasing  ,CC64,Mini Cab Hire for Education,636,"1,012.00",4/30/2012,R,BARCLAYS ASSET & SALES FINANCE
2012 - MAY,CS -Oth Operating Inc & Expend,Trading A/c Surpluses/Deficits,Transport-Contract Hire                 ,J01374,Transport Related Expenditure ,Contract Hire and Op Leasing  ,CC64,Mini Cab Hire for Education,637,"1,694.00",4/30/2012,R,BARCLAYS ASSET & SALES FINANCE
2012 - MAY,CS -Oth Operating Inc & Expend,Trading A/c Surpluses/Deficits,Transport-Contract Hire                 ,J01374,Transport Related Expenditure ,Contract Hire and Op Leasing  ,CC64,Mini Cab Hire for Education,638,"1,240.00",4/30/2012,R,BARCLAYS ASSET & SALES FINANCE
2012 - MAY,CS -Oth Operating Inc & Expend,Trading A/c Surpluses/Deficits,Transport-Contract Hire                 ,J01374,Transport Related Expenditure ,Contract Hire and Op Leasing  ,CC64,Mini Cab Hire for Education,639,550,4/30/2012,R,SHERWOOD TRANSPORT GROUP      
2012 - MAY,CS -Oth Operating Inc & Expend,Trading A/c Surpluses/Deficits,Transport-Contract Hire                 ,J01374,Transport Related Expenditure ,Contract Hire and Op Leasing  ,CC64,Mini Cab Hire for Education,640,"1,408.00",4/30/2012,R,BARCLAYS ASSET & SALES FINANCE
2012 - MAY,CS -Oth Operating Inc & Expend,Trading A/c Surpluses/Deficits,Transport-Contract Hire                 ,J01374,Transport Related Expenditure ,Contract Hire and Op Leasing  ,CC64,Mini Cab Hire for Education,641,"1,562.00",4/30/2012,R,BARCLAYS ASSET & SALES FINANCE
2012 - MAY,CS -Oth Operating Inc & Expend,Trading A/c Surpluses/Deficits,Transport-Contract Hire                 ,J01374,Transport Related Expenditure ,Contract Hire and Op Leasing  ,CC64,Mini Cab Hire for Education,642,960,4/30/2012,R,BARCLAYS ASSET & SALES FINANCE
2012 - MAY,CS -Oth Operating Inc & Expend,Trading A/c Surpluses/Deficits,Transport-Contract Hire                 ,J01374,Transport Related Expenditure ,Contract Hire and Op Leasing  ,CC64,Mini Cab Hire for Education,643,777,4/30/2012,R,BARCLAYS ASSET & SALES FINANCE
2012 - MAY,CS -Oth Operating Inc & Expend,Trading A/c Surpluses/Deficits,Transport-Contract Hire                 ,J01374,Transport Related Expenditure ,Contract Hire and Op Leasing  ,CC64,Mini Cab Hire for Education,644,500,4/30/2012,R,BARCLAYS ASSET & SALES FINANCE
2012 - MAY,CS -Oth Operating Inc & Expend,Trading A/c Surpluses/Deficits,Transport-Contract Hire                 ,J01374,Transport Related Expenditure ,Contract Hire and Op Leasing  ,CC64,Mini Cab Hire for Education,645,640,4/30/2012,R,BARCLAYS ASSET & SALES FINANCE
2012 - MAY,CS -Oth Operating Inc & Expend,Trading A/c Surpluses/Deficits,Transport-Contract Hire                 ,J01374,Transport Related Expenditure ,Contract Hire and Op Leasing  ,CC64,Mini Cab Hire for Education,646,936,4/30/2012,R,BARCLAYS ASSET & SALES FINANCE
2012 - MAY,CS -Oth Operating Inc & Expend,Trading A/c Surpluses/Deficits,Transport-Contract Hire                 ,J01374,Transport Related Expenditure ,Contract Hire and Op Leasing  ,CC64,Mini Cab Hire for Education,647,770,4/30/2012,R,SHERWOOD TRANSPORT GROUP      
2012 - MAY,CS -Oth Operating Inc & Expend,Trading A/c Surpluses/Deficits,Transport-Contract Hire                 ,J01374,Transport Related Expenditure ,Contract Hire and Op Leasing  ,CC64,Mini Cab Hire for Education,648,"1,669.50",4/30/2012,R,SHERWOOD TRANSPORT GROUP      
2012 - MAY,CS -Oth Operating Inc & Expend,Trading A/c Surpluses/Deficits,Transport-Contract Hire                 ,J01374,Transport Related Expenditure ,Contract Hire and Op Leasing  ,CC64,Mini Cab Hire for Education,649,"2,799.00",4/30/2012,R,BARCLAYS ASSET & SALES FINANCE
2012 - MAY,CS -Oth Operating Inc & Expend,Trading A/c Surpluses/Deficits,Transport-Contract Hire                 ,J01374,Transport Related Expenditure ,Contract Hire and Op Leasing  ,CC64,Mini Cab Hire for Education,650,"1,320.00",4/30/2012,R,BARCLAYS ASSET & SALES FINANCE
2012 - MAY,CS -Oth Operating Inc & Expend,Trading A/c Surpluses/Deficits,Transport-Contract Hire                 ,J01374,Transport Related Expenditure ,Contract Hire and Op Leasing  ,CC64,Mini Cab Hire for Education,651,"7,443.70",5/6/2012,R,KINGSTON ACCESSIBILITY TRAN LT
2012 - MAY,CS -Oth Operating Inc & Expend,Trading A/c Surpluses/Deficits,Transport-Contract Hire                 ,J01374,Transport Related Expenditure ,Contract Hire and Op Leasing  ,CC64,Mini Cab Hire for Education,652,949,5/1/2012,R,NVCAR HIRE LTD                
2012 - MAY,CS -Oth Operating Inc & Expend,Trading A/c Surpluses/Deficits,Transport-Contract Hire                 ,J01374,Transport Related Expenditure ,Contract Hire and Op Leasing  ,CC64,Mini Cab Hire for Education,653,"8,283.30",5/13/2012,R,KINGSTON ACCESSIBILITY TRAN LT
2012 - MAY,CS -Oth Operating Inc & Expend,Trading A/c Surpluses/Deficits,Transport-Contract Hire                 ,J01374,Transport Related Expenditure ,Contract Hire and Op Leasing  ,CC64,Mini Cab Hire for Education,654,672,5/1/2012,R,NVCAR HIRE LTD                
2012 - MAY,CS -Oth Operating Inc & Expend,Trading A/c Surpluses/Deficits,Transport-Contract Hire                 ,J01374,Transport Related Expenditure ,Contract Hire and Op Leasing  ,CC64,Mini Cab Hire for Education,655,784,3/30/2012,R,SILVERBURN FINANCE (UK) LTD   
2012 - MAY,CS -Oth Operating Inc & Expend,Trading A/c Surpluses/Deficits,Transport-Contract Hire                 ,J01374,Transport Related Expenditure ,Contract Hire and Op Leasing  ,CC64,Mini Cab Hire for Education,656,528,4/30/2012,R,SILVERBURN FINANCE (UK) LTD   
2012 - MAY,CS -Oth Operating Inc & Expend,Trading A/c Surpluses/Deficits,Transport-Contract Hire                 ,J01374,Transport Related Expenditure ,Contract Hire and Op Leasing  ,CC64,Mini Cab Hire for Education,657,616,4/30/2012,R,SILVERBURN FINANCE (UK) LTD   
2012 - MAY,CS -Oth Operating Inc & Expend,Trading A/c Surpluses/Deficits,Transport-Contract Hire                 ,J01374,Transport Related Expenditure ,Contract Hire and Op Leasing  ,CC64,Mini Cab Hire for Education,658,616,4/30/2012,R,SILVERBURN FINANCE (UK) LTD   
2012 - MAY,CS -Oth Operating Inc & Expend,Trading A/c Surpluses/Deficits,Transport-Contract Hire                 ,J01374,Transport Related Expenditure ,Contract Hire and Op Leasing  ,CC64,Mini Cab Hire for Education,659,768,4/30/2012,R,SILVERBURN FINANCE (UK) LTD   
2012 - MAY,CS -Oth Operating Inc & Expend,Trading A/c Surpluses/Deficits,Transport-Contract Hire                 ,J01374,Transport Related Expenditure ,Contract Hire and Op Leasing  ,CC64,Mini Cab Hire for Education,660,920.85,4/30/2012,R,SILVERBURN FINANCE (UK) LTD   
2012 - MAY,CS -Oth Operating Inc & Expend,Trading A/c Surpluses/Deficits,Transport-Contract Hire                 ,J01374,Transport Related Expenditure ,Contract Hire and Op Leasing  ,CC64,Mini Cab Hire for Education,661,792,4/30/2012,R,SILVERBURN FINANCE (UK) LTD   
2012 - MAY,CS -Oth Operating Inc & Expend,Trading A/c Surpluses/Deficits,Transport-Contract Hire                 ,J01374,Transport Related Expenditure ,Contract Hire and Op Leasing  ,CC64,Mini Cab Hire for Education,662,"1,430.00",4/30/2012,R,CAPITAL CARS                  
2012 - MAY,CS -Oth Operating Inc & Expend,Trading A/c Surpluses/Deficits,Transport-Contract Hire                 ,J01374,Transport Related Expenditure ,Contract Hire and Op Leasing  ,CC64,Mini Cab Hire for Education,663,"1,954.00",4/30/2012,R,SILVERBURN FINANCE (UK) LTD   
2012 - MAY,CS -Oth Operating Inc & Expend,Trading A/c Surpluses/Deficits,Transport-Contract Hire                 ,J01374,Transport Related Expenditure ,Contract Hire and Op Leasing  ,CC64,Mini Cab Hire for Education,664,924,4/30/2012,R,SILVERBURN FINANCE (UK) LTD   
2012 - MAY,CS -Oth Operating Inc & Expend,Trading A/c Surpluses/Deficits,Transport-Contract Hire                 ,J01374,Transport Related Expenditure ,Contract Hire and Op Leasing  ,CC64,Mini Cab Hire for Education,665,"1,533.84",4/30/2012,R,SILVERBURN FINANCE (UK) LTD   
2012 - MAY,CS -Oth Operating Inc & Expend,Trading A/c Surpluses/Deficits,Transport-Contract Hire                 ,J01374,Transport Related Expenditure ,Contract Hire and Op Leasing  ,CC64,Mini Cab Hire for Education,666,660,4/30/2012,R,SILVERBURN FINANCE (UK) LTD   
2012 - MAY,CS -Oth Operating Inc & Expend,Trading A/c Surpluses/Deficits,Transport-Contract Hire                 ,J01374,Transport Related Expenditure ,Contract Hire and Op Leasing  ,CC64,Mini Cab Hire for Education,667,786.5,4/30/2012,R,SILVERBURN FINANCE (UK) LTD   
2012 - MAY,CS -Oth Operating Inc & Expend,Trading A/c Surpluses/Deficits,Transport-Contract Hire                 ,J01374,Transport Related Expenditure ,Contract Hire and Op Leasing  ,CC64,Mini Cab Hire for Education,668,804,4/30/2012,R,SILVERBURN FINANCE (UK) LTD   
2012 - MAY,CS -Oth Operating Inc & Expend,Trading A/c Surpluses/Deficits,Transport-Contract Hire                 ,J01374,Transport Related Expenditure ,Contract Hire and Op Leasing  ,CC64,Mini Cab Hire for Education,669,726,4/30/2012,R,SILVERBURN FINANCE (UK) LTD   
2012 - MAY,CS -Oth Operating Inc & Expend,Trading A/c Surpluses/Deficits,Transport-Contract Hire                 ,J01374,Transport Related Expenditure ,Contract Hire and Op Leasing  ,CC64,Mini Cab Hire for Education,670,"1,126.40",4/30/2012,R,SILVERBURN FINANCE (UK) LTD   
2012 - MAY,CS -Oth Operating Inc & Expend,Trading A/c Surpluses/Deficits,Transport-Contract Hire                 ,J01374,Transport Related Expenditure ,Contract Hire and Op Leasing  ,CC64,Mini Cab Hire for Education,671,550,4/30/2012,R,CAPITAL CARS                  
2012 - MAY,CS -Oth Operating Inc & Expend,Trading A/c Surpluses/Deficits,Transport-Contract Hire                 ,J01374,Transport Related Expenditure ,Contract Hire and Op Leasing  ,CC64,Mini Cab Hire for Education,672,"8,313.30",5/20/2012,R,KINGSTON ACCESSIBILITY TRAN LT
2012 - MAY,CS -Oth Operating Inc & Expend,Trading A/c Surpluses/Deficits,Transport-Contract Hire                 ,J01374,Transport Related Expenditure ,Contract Hire and Op Leasing  ,CC64,Mini Cab Hire for Education,673,982.5,2/27/2012,R,CALVERTON FACTORS LTD         
2012 - MAY,CS -Oth Operating Inc & Expend,Trading A/c Surpluses/Deficits,Transport-Contract Hire                 ,J01374,Transport Related Expenditure ,Contract Hire and Op Leasing  ,CC64,Mini Cab Hire for Education,674,660,4/30/2012,R,CHEAM STATION CARS            
2012 - MAY,CS -Oth Operating Inc & Expend,Trading A/c Surpluses/Deficits,Transport-Contract Hire                 ,J01374,Transport Related Expenditure ,Contract Hire and Op Leasing  ,CC64,Mini Cab Hire for Education,675,839.5,4/30/2012,R,CAPITAL CARS                  
2012 - MAY,CS -Oth Operating Inc & Expend,Trading A/c Surpluses/Deficits,Transport-Contract Hire                 ,J01374,Transport Related Expenditure ,Contract Hire and Op Leasing  ,CC64,Mini Cab Hire for Education,676,594,4/30/2012,R,CAPITAL CARS                  
2012 - MAY,CS -Oth Operating Inc & Expend,Trading A/c Surpluses/Deficits,Transport-Contract Hire                 ,J01374,Transport Related Expenditure ,Contract Hire and Op Leasing  ,CC64,Mini Cab Hire for Education,677,735,4/30/2012,R,CHEAM STATION CARS            
2012 - MAY,CS -Oth Operating Inc & Expend,Trading A/c Surpluses/Deficits,Transport-Contract Hire                 ,J01374,Transport Related Expenditure ,Contract Hire and Op Leasing  ,CC64,Mini Cab Hire for Education,678,"1,430.00",4/30/2012,R,BARCLAYS ASSET & SALES FINANCE
2012 - MAY,CS -Oth Operating Inc & Expend,Trading A/c Surpluses/Deficits,Transport-Contract Hire                 ,J01374,Transport Related Expenditure ,Contract Hire and Op Leasing  ,CC64,Mini Cab Hire for Education,679,"1,430.00",4/29/2012,R,CALVERTON FACTORS LTD         
2012 - MAY,CS -Oth Operating Inc & Expend,Trading A/c Surpluses/Deficits,Transport-Contract Hire                 ,J01374,Transport Related Expenditure ,Contract Hire and Op Leasing  ,CC64,Mini Cab Hire for Education,680,690,5/6/2012,R,CHARIOT EXECUTIVE CAR HIRE LTD
2012 - MAY,CS -Oth Operating Inc & Expend,Trading A/c Surpluses/Deficits,Transport-Contract Hire                 ,J01374,Transport Related Expenditure ,Contract Hire and Op Leasing  ,CC64,Mini Cab Hire for Education,681,"7,743.50",5/27/2012,R,KINGSTON ACCESSIBILITY TRAN LT
2012 - MAY,CS -Oth Operating Inc & Expend,Trading A/c Surpluses/Deficits,Transport-Contract Hire                 ,J01374,Transport Related Expenditure ,Contract Hire and Op Leasing  ,CC65,Vehicle Hire for Education,682,"1,407.00",4/30/2012,R,BURNT TREE VEHICLE RENTAL     
2012 - MAY,CS -Oth Operating Inc & Expend,Trading A/c Surpluses/Deficits,Transport-Contract Hire                 ,J01374,Transport Related Expenditure ,Contract Hire and Op Leasing  ,CC65,Vehicle Hire for Education,683,"1,407.00",4/30/2012,R,BURNT TREE VEHICLE RENTAL     
2012 - MAY,CS -Oth Operating Inc & Expend,Trading A/c Surpluses/Deficits,Transport-Contract Hire                 ,J01374,Transport Related Expenditure ,Contract Hire and Op Leasing  ,CC65,Vehicle Hire for Education,684,"1,407.00",4/30/2012,R,BURNT TREE VEHICLE RENTAL     
2012 - MAY,CS -Oth Operating Inc & Expend,Trading A/c Surpluses/Deficits,Transport-Contract Hire                 ,J01374,Transport Related Expenditure ,Contract Hire and Op Leasing  ,CC66,Mini Cab Hire -Soc Serv -Child,685,"1,527.90",4/29/2012,R,KINGSTON ACCESSIBILITY TRAN LT
2012 - MAY,CS -Oth Operating Inc & Expend,Trading A/c Surpluses/Deficits,Transport-Contract Hire                 ,J01374,Transport Related Expenditure ,Contract Hire and Op Leasing  ,CC66,Mini Cab Hire -Soc Serv -Child,686,"1,692.89",5/6/2012,R,KINGSTON ACCESSIBILITY TRAN LT
2012 - MAY,CS -Oth Operating Inc & Expend,Trading A/c Surpluses/Deficits,Transport-Contract Hire                 ,J01374,Transport Related Expenditure ,Contract Hire and Op Leasing  ,CC66,Mini Cab Hire -Soc Serv -Child,687,"1,527.90",5/13/2012,R,KINGSTON ACCESSIBILITY TRAN LT
2012 - MAY,CS -Oth Operating Inc & Expend,Trading A/c Surpluses/Deficits,Transport-Contract Hire                 ,J01374,Transport Related Expenditure ,Contract Hire and Op Leasing  ,CC66,Mini Cab Hire -Soc Serv -Child,688,672,4/30/2012,R,BARCLAYS ASSET & SALES FINANCE
2012 - MAY,CS -Oth Operating Inc & Expend,Trading A/c Surpluses/Deficits,Transport-Contract Hire                 ,J01374,Transport Related Expenditure ,Contract Hire and Op Leasing  ,CC66,Mini Cab Hire -Soc Serv -Child,689,"1,812.90",5/20/2012,R,KINGSTON ACCESSIBILITY TRAN LT
2012 - MAY,CS -Oth Operating Inc & Expend,Trading A/c Surpluses/Deficits,Transport-Contract Hire                 ,J01374,Transport Related Expenditure ,Contract Hire and Op Leasing  ,CC66,Mini Cab Hire -Soc Serv -Child,690,550,4/30/2012,R,CHEAM STATION CARS            
2012 - MAY,CS -Oth Operating Inc & Expend,Trading A/c Surpluses/Deficits,Transport-Contract Hire                 ,J01374,Transport Related Expenditure ,Contract Hire and Op Leasing  ,CC66,Mini Cab Hire -Soc Serv -Child,691,637,4/29/2012,R,CALVERTON FACTORS LTD         
2012 - MAY,CS -Oth Operating Inc & Expend,Trading A/c Surpluses/Deficits,Transport-Contract Hire                 ,J01374,Transport Related Expenditure ,Contract Hire and Op Leasing  ,CC66,Mini Cab Hire -Soc Serv -Child,692,"1,967.70",5/27/2012,R,KINGSTON ACCESSIBILITY TRAN LT
2012 - MAY,CS -Oth Operating Inc & Expend,Trading A/c Surpluses/Deficits,Transport-Contract Hire                 ,J01374,Transport Related Expenditure ,Contract Hire and Op Leasing  ,CC67,Mini Cab Hire -Soc Serv -Adult,693,"1,516.00",4/29/2012,R,KINGSTON ACCESSIBILITY TRAN LT
2012 - MAY,CS -Oth Operating Inc & Expend,Trading A/c Surpluses/Deficits,Transport-Contract Hire                 ,J01374,Transport Related Expenditure ,Contract Hire and Op Leasing  ,CC67,Mini Cab Hire -Soc Serv -Adult,694,"1,366.00",5/6/2012,R,KINGSTON ACCESSIBILITY TRAN LT
2012 - MAY,CS -Oth Operating Inc & Expend,Trading A/c Surpluses/Deficits,Transport-Contract Hire                 ,J01374,Transport Related Expenditure ,Contract Hire and Op Leasing  ,CC67,Mini Cab Hire -Soc Serv -Adult,695,"1,078.00",5/1/2012,R,NVCAR HIRE LTD                
2012 - MAY,CS -Oth Operating Inc & Expend,Trading A/c Surpluses/Deficits,Transport-Contract Hire                 ,J01374,Transport Related Expenditure ,Contract Hire and Op Leasing  ,CC67,Mini Cab Hire -Soc Serv -Adult,696,"1,316.00",5/13/2012,R,KINGSTON ACCESSIBILITY TRAN LT
2012 - MAY,CS -Oth Operating Inc & Expend,Trading A/c Surpluses/Deficits,Transport-Contract Hire                 ,J01374,Transport Related Expenditure ,Contract Hire and Op Leasing  ,CC67,Mini Cab Hire -Soc Serv -Adult,697,760,4/30/2012,R,AERIAL CAR SERVICES LTD       
2012 - MAY,CS -Oth Operating Inc & Expend,Trading A/c Surpluses/Deficits,Transport-Contract Hire                 ,J01374,Transport Related Expenditure ,Contract Hire and Op Leasing  ,CC67,Mini Cab Hire -Soc Serv -Adult,698,784,4/30/2012,R,CAPITAL CARS                  
2012 - MAY,CS -Oth Operating Inc & Expend,Trading A/c Surpluses/Deficits,Transport-Contract Hire                 ,J01374,Transport Related Expenditure ,Contract Hire and Op Leasing  ,CC67,Mini Cab Hire -Soc Serv -Adult,699,678.36,4/30/2012,R,SILVERBURN FINANCE (UK) LTD   
2012 - MAY,CS -Oth Operating Inc & Expend,Trading A/c Surpluses/Deficits,Transport-Contract Hire                 ,J01374,Transport Related Expenditure ,Contract Hire and Op Leasing  ,CC67,Mini Cab Hire -Soc Serv -Adult,700,814,4/30/2012,R,AERIAL CAR SERVICES LTD       
2012 - MAY,CS -Oth Operating Inc & Expend,Trading A/c Surpluses/Deficits,Transport-Contract Hire                 ,J01374,Transport Related Expenditure ,Contract Hire and Op Leasing  ,CC67,Mini Cab Hire -Soc Serv -Adult,701,704,4/30/2012,R,CAPITAL CARS                  
2012 - MAY,CS -Oth Operating Inc & Expend,Trading A/c Surpluses/Deficits,Transport-Contract Hire                 ,J01374,Transport Related Expenditure ,Contract Hire and Op Leasing  ,CC67,Mini Cab Hire -Soc Serv -Adult,702,608,4/30/2012,R,BARCLAYS ASSET & SALES FINANCE
2012 - MAY,CS -Oth Operating Inc & Expend,Trading A/c Surpluses/Deficits,Transport-Contract Hire                 ,J01374,Transport Related Expenditure ,Contract Hire and Op Leasing  ,CC67,Mini Cab Hire -Soc Serv -Adult,703,522,4/30/2012,R,BARCLAYS ASSET & SALES FINANCE
2012 - MAY,CS -Oth Operating Inc & Expend,Trading A/c Surpluses/Deficits,Transport-Contract Hire                 ,J01374,Transport Related Expenditure ,Contract Hire and Op Leasing  ,CC67,Mini Cab Hire -Soc Serv -Adult,704,916,4/30/2012,R,BARCLAYS ASSET & SALES FINANCE
2012 - MAY,CS -Oth Operating Inc & Expend,Trading A/c Surpluses/Deficits,Transport-Contract Hire                 ,J01374,Transport Related Expenditure ,Contract Hire and Op Leasing  ,CC67,Mini Cab Hire -Soc Serv -Adult,705,624,4/30/2012,R,BARCLAYS ASSET & SALES FINANCE
2012 - MAY,CS -Oth Operating Inc & Expend,Trading A/c Surpluses/Deficits,Transport-Contract Hire                 ,J01374,Transport Related Expenditure ,Contract Hire and Op Leasing  ,CC67,Mini Cab Hire -Soc Serv -Adult,706,756,4/30/2012,R,BARCLAYS ASSET & SALES FINANCE
2012 - MAY,CS -Oth Operating Inc & Expend,Trading A/c Surpluses/Deficits,Transport-Contract Hire                 ,J01374,Transport Related Expenditure ,Contract Hire and Op Leasing  ,CC67,Mini Cab Hire -Soc Serv -Adult,707,928,4/30/2012,R,BARCLAYS ASSET & SALES FINANCE
2012 - MAY,CS -Oth Operating Inc & Expend,Trading A/c Surpluses/Deficits,Transport-Contract Hire                 ,J01374,Transport Related Expenditure ,Contract Hire and Op Leasing  ,CC67,Mini Cab Hire -Soc Serv -Adult,708,528,4/30/2012,R,BARCLAYS ASSET & SALES FINANCE
2012 - MAY,CS -Oth Operating Inc & Expend,Trading A/c Surpluses/Deficits,Transport-Contract Hire                 ,J01374,Transport Related Expenditure ,Contract Hire and Op Leasing  ,CC67,Mini Cab Hire -Soc Serv -Adult,709,688,4/30/2012,R,BARCLAYS ASSET & SALES FINANCE
2012 - MAY,CS -Oth Operating Inc & Expend,Trading A/c Surpluses/Deficits,Transport-Contract Hire                 ,J01374,Transport Related Expenditure ,Contract Hire and Op Leasing  ,CC67,Mini Cab Hire -Soc Serv -Adult,710,936,4/30/2012,R,BARCLAYS ASSET & SALES FINANCE
2012 - MAY,CS -Oth Operating Inc & Expend,Trading A/c Surpluses/Deficits,Transport-Contract Hire                 ,J01374,Transport Related Expenditure ,Contract Hire and Op Leasing  ,CC67,Mini Cab Hire -Soc Serv -Adult,711,"1,316.00",5/20/2012,R,KINGSTON ACCESSIBILITY TRAN LT
2012 - MAY,CS -Oth Operating Inc & Expend,Trading A/c Surpluses/Deficits,Transport-Contract Hire                 ,J01374,Transport Related Expenditure ,Contract Hire and Op Leasing  ,CC67,Mini Cab Hire -Soc Serv -Adult,712,"1,291.00",5/27/2012,R,KINGSTON ACCESSIBILITY TRAN LT
2012 - MAY,CS -Oth Operating Inc & Expend,Trading A/c Surpluses/Deficits,Transport-Contract Hire                 ,J01374,Transport Related Expenditure ,Contract Hire and Op Leasing  ,CC68,Vehicle Hire Special Projects,713,"1,788.00",4/29/2012,R,KINGSTON ACCESSIBILITY TRAN LT
2012 - MAY,CS -Oth Operating Inc & Expend,Trading A/c Surpluses/Deficits,Transport-Contract Hire                 ,J01374,Transport Related Expenditure ,Contract Hire and Op Leasing  ,CC68,Vehicle Hire Special Projects,714,570,4/30/2012,R,BARCLAYS ASSET & SALES FINANCE
2012 - MAY,CS -Oth Operating Inc & Expend,Trading A/c Surpluses/Deficits,Transport-Contract Hire                 ,J01374,Transport Related Expenditure ,Contract Hire and Op Leasing  ,CC68,Vehicle Hire Special Projects,715,960,4/30/2012,R,BARCLAYS ASSET & SALES FINANCE
2012 - MAY,CS -Oth Operating Inc & Expend,Trading A/c Surpluses/Deficits,Transport-Contract Hire                 ,J01374,Transport Related Expenditure ,Contract Hire and Op Leasing  ,CC68,Vehicle Hire Special Projects,716,567,4/30/2012,R,BARCLAYS ASSET & SALES FINANCE
2012 - MAY,CS -Oth Operating Inc & Expend,Trading A/c Surpluses/Deficits,Transport-Contract Hire                 ,J01374,Transport Related Expenditure ,Contract Hire and Op Leasing  ,CC68,Vehicle Hire Special Projects,717,"1,260.00",4/30/2012,R,BARCLAYS ASSET & SALES FINANCE
2012 - MAY,CS -Oth Operating Inc & Expend,Trading A/c Surpluses/Deficits,Transport-Contract Hire                 ,J01374,Transport Related Expenditure ,Contract Hire and Op Leasing  ,CC68,Vehicle Hire Special Projects,718,"1,360.00",4/30/2012,R,BARCLAYS ASSET & SALES FINANCE
2012 - MAY,CS -Oth Operating Inc & Expend,Trading A/c Surpluses/Deficits,Transport-Contract Hire                 ,J01374,Transport Related Expenditure ,Contract Hire and Op Leasing  ,CC68,Vehicle Hire Special Projects,719,924,4/30/2012,R,BARCLAYS ASSET & SALES FINANCE
2012 - MAY,CS -Oth Operating Inc & Expend,Trading A/c Surpluses/Deficits,Transport-Contract Hire                 ,J01374,Transport Related Expenditure ,Contract Hire and Op Leasing  ,CC68,Vehicle Hire Special Projects,720,704,4/30/2012,R,BARCLAYS ASSET & SALES FINANCE
2012 - MAY,CS -Oth Operating Inc & Expend,Trading A/c Surpluses/Deficits,Transport-Contract Hire                 ,J01374,Transport Related Expenditure ,Contract Hire and Op Leasing  ,CC68,Vehicle Hire Special Projects,721,"1,788.00",5/6/2012,R,KINGSTON ACCESSIBILITY TRAN LT
2012 - MAY,CS -Oth Operating Inc & Expend,Trading A/c Surpluses/Deficits,Transport-Contract Hire                 ,J01374,Transport Related Expenditure ,Contract Hire and Op Leasing  ,CC68,Vehicle Hire Special Projects,722,"1,788.00",5/13/2012,R,KINGSTON ACCESSIBILITY TRAN LT
2012 - MAY,CS -Oth Operating Inc & Expend,Trading A/c Surpluses/Deficits,Transport-Contract Hire                 ,J01374,Transport Related Expenditure ,Contract Hire and Op Leasing  ,CC68,Vehicle Hire Special Projects,723,748,4/30/2012,R,SILVERBURN FINANCE (UK) LTD   
2012 - MAY,CS -Oth Operating Inc & Expend,Trading A/c Surpluses/Deficits,Transport-Contract Hire                 ,J01374,Transport Related Expenditure ,Contract Hire and Op Leasing  ,CC68,Vehicle Hire Special Projects,724,912,4/30/2012,R,BARCLAYS ASSET & SALES FINANCE
2012 - MAY,CS -Oth Operating Inc & Expend,Trading A/c Surpluses/Deficits,Transport-Contract Hire                 ,J01374,Transport Related Expenditure ,Contract Hire and Op Leasing  ,CC68,Vehicle Hire Special Projects,725,"1,788.00",5/20/2012,R,KINGSTON ACCESSIBILITY TRAN LT
2012 - MAY,CS -Oth Operating Inc & Expend,Trading A/c Surpluses/Deficits,Transport-Contract Hire                 ,J01374,Transport Related Expenditure ,Contract Hire and Op Leasing  ,CC68,Vehicle Hire Special Projects,726,528,4/30/2012,R,GALPINS SERVICE               
2012 - MAY,CS -Oth Operating Inc & Expend,Trading A/c Surpluses/Deficits,Transport-Contract Hire                 ,J01374,Transport Related Expenditure ,Contract Hire and Op Leasing  ,CC68,Vehicle Hire Special Projects,727,"1,788.00",5/27/2012,R,KINGSTON ACCESSIBILITY TRAN LT
2012 - MAY,CS -Oth Operating Inc & Expend,Trading A/c Surpluses/Deficits,Transport-Workshop                      ,J01376,Employees                     ,Indirect Employee Expenses    ,AB57,External Training Costs,728,"1,035.00",3/13/2012,R,RIDGEWAY HOUSE TRAINING       
2012 - MAY,CS -Oth Operating Inc & Expend,Trading A/c Surpluses/Deficits,Transport-Workshop                      ,J01376,Premises Related Expenditure  ,RepairsAlterations&MtceOfBldgs,BA03,DDM - Mechanical,729,501.37,3/29/2012,R,COFELY LIMITED                
2012 - MAY,CS -Oth Operating Inc & Expend,Trading A/c Surpluses/Deficits,Transport-Workshop                      ,J01376,Premises Related Expenditure  ,Energy Costs                  ,BB02,Electricity,730,"1,252.78",5/9/2012,R,EDF ENERGY                    
2012 - MAY,CS -Oth Operating Inc & Expend,Trading A/c Surpluses/Deficits,Transport-Workshop                      ,J01376,Premises Related Expenditure  ,Energy Costs                  ,BB03,Gas (incl. Butane),731,647.97,4/23/2012,R,KENT COUNTY COUNCIL           
2012 - MAY,CS -Oth Operating Inc & Expend,Trading A/c Surpluses/Deficits,Transport-Workshop                      ,J01376,Transport Related Expenditure ,Direct Transport Costs        ,CA02,Tyres,732,530,5/2/2012,R,MORDEN TYRE SERVICES LTD      
2012 - MAY,CS -Oth Operating Inc & Expend,Trading A/c Surpluses/Deficits,Transport-Workshop                      ,J01376,Transport Related Expenditure ,Direct Transport Costs        ,CA02,Tyres,733,505,5/1/2012,R,MORDEN TYRE SERVICES LTD      
2012 - MAY,CS -Oth Operating Inc & Expend,Trading A/c Surpluses/Deficits,Transport-Workshop                      ,J01376,Transport Related Expenditure ,Direct Transport Costs        ,CA02,Tyres,734,785,5/3/2012,R,MORDEN TYRE SERVICES LTD      
2012 - MAY,CS -Oth Operating Inc & Expend,Trading A/c Surpluses/Deficits,Transport-Workshop                      ,J01376,Transport Related Expenditure ,Direct Transport Costs        ,CA02,Tyres,735,640,5/4/2012,R,MORDEN TYRE SERVICES LTD      
2012 - MAY,CS -Oth Operating Inc & Expend,Trading A/c Surpluses/Deficits,Transport-Workshop                      ,J01376,Transport Related Expenditure ,Direct Transport Costs        ,CA02,Tyres,736,"1,075.00",5/8/2012,R,MORDEN TYRE SERVICES LTD      
2012 - MAY,CS -Oth Operating Inc & Expend,Trading A/c Surpluses/Deficits,Transport-Workshop                      ,J01376,Transport Related Expenditure ,Direct Transport Costs        ,CA02,Tyres,737,765,5/9/2012,R,MORDEN TYRE SERVICES LTD      
2012 - MAY,CS -Oth Operating Inc & Expend,Trading A/c Surpluses/Deficits,Transport-Workshop                      ,J01376,Transport Related Expenditure ,Direct Transport Costs        ,CA05,Vehicle MOTs,738,"1,500.00",5/25/2012,R,V.O.S.A                       
2012 - MAY,CS -Oth Operating Inc & Expend,Trading A/c Surpluses/Deficits,Transport-Workshop                      ,J01376,Transport Related Expenditure ,Direct Transport Costs        ,CA55,Specialist Maint. (Off Site),739,"1,076.42",5/4/2012,R,REDACTED
2012 - MAY,CS -Oth Operating Inc & Expend,Trading A/c Surpluses/Deficits,Transport-Workshop                      ,J01376,Transport Related Expenditure ,Direct Transport Costs        ,CA55,Specialist Maint. (Off Site),740,"1,580.32",5/18/2012,R,FLEETSPEED COACHWORKS LTD.    
2012 - MAY,CS -Oth Operating Inc & Expend,Trading A/c Surpluses/Deficits,Transport-Workshop                      ,J01376,Transport Related Expenditure ,Direct Transport Costs        ,CA56,Specialist Maint. (On Site),741,835.5,5/1/2012,R,GREEN MACHINES                
2012 - MAY,CS -Oth Operating Inc & Expend,Trading A/c Surpluses/Deficits,Transport-Workshop                      ,J01376,Transport Related Expenditure ,Direct Transport Costs        ,CA56,Specialist Maint. (On Site),742,835.5,5/1/2012,R,GREEN MACHINES                
2012 - MAY,CS -Oth Operating Inc & Expend,Trading A/c Surpluses/Deficits,Transport-Workshop                      ,J01376,Transport Related Expenditure ,Direct Transport Costs        ,CA56,Specialist Maint. (On Site),743,"2,224.78",5/11/2012,R,T H WHITE LTD                 
2012 - MAY,CS -Oth Operating Inc & Expend,Trading A/c Surpluses/Deficits,Transport-Workshop                      ,J01376,Transport Related Expenditure ,Direct Transport Costs        ,CA56,Specialist Maint. (On Site),744,712.58,2/27/2012,R,FITZ AIR                      
2012 - MAY,CS -Oth Operating Inc & Expend,Trading A/c Surpluses/Deficits,Transport-Workshop                      ,J01376,Transport Related Expenditure ,Direct Transport Costs        ,CA56,Specialist Maint. (On Site),745,649.1,5/15/2012,R,NOBLET MUNICIPAL SERVICES LTD 
2012 - MAY,CS -Oth Operating Inc & Expend,Trading A/c Surpluses/Deficits,Transport-Workshop                      ,J01376,Transport Related Expenditure ,Direct Transport Costs        ,CA72,Vehicle Parts,746,770.81,5/8/2012,R,COMMERCIAL & PLANT LTD        
2012 - MAY,CS -Oth Operating Inc & Expend,Trading A/c Surpluses/Deficits,Transport-Workshop                      ,J01376,Transport Related Expenditure ,Direct Transport Costs        ,CA72,Vehicle Parts,747,"1,637.49",5/14/2012,R,FARID MUNICIPAL VEHICLES LTD  
2012 - MAY,CS -Oth Operating Inc & Expend,Trading A/c Surpluses/Deficits,Transport-Workshop                      ,J01376,Transport Related Expenditure ,Contract Hire and Op Leasing  ,CC53,Plant Hire for MRCS,748,650,5/18/2012,R,GO PLANT                      
2012 - MAY,CS -Oth Operating Inc & Expend,Trading A/c Surpluses/Deficits,Transport-Workshop                      ,J01376,Transport Related Expenditure ,Contract Hire and Op Leasing  ,CC60,Vehicle Hire for LB Sutton,749,"1,309.00",4/30/2012,R,BARCLAYS ASSET & SALES FINANCE
2012 - MAY,CS -Oth Operating Inc & Expend,Trading A/c Surpluses/Deficits,Transport-Workshop                      ,J01376,Transport Related Expenditure ,Contract Hire and Op Leasing  ,CC60,Vehicle Hire for LB Sutton,750,"1,540.00",4/30/2012,R,BRUNSWICK CARS LTD            
2012 - MAY,CS -Oth Operating Inc & Expend,Trading A/c Surpluses/Deficits,Transport-Workshop                      ,J01376,Transport Related Expenditure ,Contract Hire and Op Leasing  ,CC60,Vehicle Hire for LB Sutton,751,"1,309.00",4/30/2012,R,BRUNSWICK CARS LTD            
2012 - MAY,CS -Oth Operating Inc & Expend,Trading A/c Surpluses/Deficits,Transport-Workshop                      ,J01376,Transport Related Expenditure ,Contract Hire and Op Leasing  ,CC60,Vehicle Hire for LB Sutton,752,"1,133.00",4/30/2012,R,BRUNSWICK CARS LTD            
2012 - MAY,CS -Oth Operating Inc & Expend,Trading A/c Surpluses/Deficits,Transport-Workshop                      ,J01376,Transport Related Expenditure ,Contract Hire and Op Leasing  ,CC60,Vehicle Hire for LB Sutton,753,675,4/30/2012,R,BARCLAYS ASSET & SALES FINANCE
2012 - MAY,CS -Oth Operating Inc & Expend,Trading A/c Surpluses/Deficits,Transport-Workshop                      ,J01376,Transport Related Expenditure ,Contract Hire and Op Leasing  ,CC60,Vehicle Hire for LB Sutton,754,"1,650.00",3/31/2012,R,BARCLAYS ASSET & SALES FINANCE
2012 - MAY,CS -Oth Operating Inc & Expend,Trading A/c Surpluses/Deficits,Transport-Workshop                      ,J01376,Transport Related Expenditure ,Contract Hire and Op Leasing  ,CC60,Vehicle Hire for LB Sutton,755,860,4/30/2012,R,BARCLAYS ASSET & SALES FINANCE
2012 - MAY,CS -Oth Operating Inc & Expend,Trading A/c Surpluses/Deficits,Transport-Workshop                      ,J01376,Transport Related Expenditure ,Contract Hire and Op Leasing  ,CC60,Vehicle Hire for LB Sutton,756,600,4/30/2012,R,BARCLAYS ASSET & SALES FINANCE
2012 - MAY,CS -Oth Operating Inc & Expend,Trading A/c Surpluses/Deficits,Transport-Workshop                      ,J01376,Transport Related Expenditure ,Contract Hire and Op Leasing  ,CC60,Vehicle Hire for LB Sutton,757,"2,652.00",4/30/2012,R,BARCLAYS ASSET & SALES FINANCE
2012 - MAY,CS -Oth Operating Inc & Expend,Trading A/c Surpluses/Deficits,Transport-Workshop                      ,J01376,Transport Related Expenditure ,Contract Hire and Op Leasing  ,CC60,Vehicle Hire for LB Sutton,758,607.5,2/27/2012,R,CALVERTON FACTORS LTD         
2012 - MAY,CS -Oth Operating Inc & Expend,Trading A/c Surpluses/Deficits,Transport-Workshop                      ,J01376,Transport Related Expenditure ,Contract Hire and Op Leasing  ,CC60,Vehicle Hire for LB Sutton,759,810,4/29/2012,R,CALVERTON FACTORS LTD         
2012 - MAY,CS -Oth Operating Inc & Expend,Trading A/c Surpluses/Deficits,Transport-Workshop                      ,J01376,Transport Related Expenditure ,Contract Hire and Op Leasing  ,CC60,Vehicle Hire for LB Sutton,760,836,4/29/2012,R,CALVERTON FACTORS LTD         
2012 - MAY,CS -Oth Operating Inc & Expend,Trading A/c Surpluses/Deficits,Transport-Workshop                      ,J01376,Transport Related Expenditure ,Contract Hire and Op Leasing  ,CC60,Vehicle Hire for LB Sutton,761,600,4/29/2012,R,CALVERTON FACTORS LTD         
2012 - MAY,CS -Oth Operating Inc & Expend,Trading A/c Surpluses/Deficits,Transport-Workshop                      ,J01376,Transport Related Expenditure ,Contract Hire and Op Leasing  ,CC60,Vehicle Hire for LB Sutton,762,"1,110.00",4/29/2012,R,CALVERTON FACTORS LTD         
2012 - MAY,CS -Oth Operating Inc & Expend,Trading A/c Surpluses/Deficits,Transport-Workshop                      ,J01376,Transport Related Expenditure ,Contract Hire and Op Leasing  ,CC65,Vehicle Hire for Education,763,"1,176.00",4/30/2012,R,BARCLAYS ASSET & SALES FINANCE
2012 - MAY,CS -Oth Operating Inc & Expend,Trading A/c Surpluses/Deficits,Transport-Workshop                      ,J01376,Transport Related Expenditure ,Contract Hire and Op Leasing  ,CC65,Vehicle Hire for Education,764,500,4/30/2012,R,BARCLAYS ASSET & SALES FINANCE
2012 - MAY,CS -Oth Operating Inc & Expend,Trading A/c Surpluses/Deficits,Transport-Workshop                      ,J01376,Transport Related Expenditure ,Contract Hire and Op Leasing  ,CC65,Vehicle Hire for Education,765,"9,168.00",4/26/2012,R,KENT COUNTY COUNCIL           
2012 - MAY,CS -Oth Operating Inc & Expend,Trading A/c Surpluses/Deficits,Transport-Workshop                      ,J01376,Transport Related Expenditure ,Contract Hire and Op Leasing  ,CC65,Vehicle Hire for Education,766,"1,785.00",4/30/2012,R,REDACTED
2012 - MAY,CS -Oth Operating Inc & Expend,Trading A/c Surpluses/Deficits,Transport-Workshop                      ,J01376,Transport Related Expenditure ,Contract Hire and Op Leasing  ,CC65,Vehicle Hire for Education,767,768,4/30/2012,R,CROYDON COACHES               
2012 - MAY,CS -Oth Operating Inc & Expend,Trading A/c Surpluses/Deficits,Transport-Workshop                      ,J01376,Transport Related Expenditure ,Contract Hire and Op Leasing  ,CC65,Vehicle Hire for Education,768,"1,300.00",5/18/2012,R,MAYDAY TRAVEL LTD             
2012 - MAY,CS -Oth Operating Inc & Expend,Trading A/c Surpluses/Deficits,Transport-Workshop                      ,J01376,Supplies & Services           ,Equip Furniture/Materials     ,DA01,Equipment - R & M,769,621.4,4/28/2012,R,SUNLIGHT SERVICE GROUP LTD    
2012 - MAY,Cultural Env Reg&Plan Services,SMSS (Env),Estates Mgt                             ,J01420,Supplies & Services           ,Services                      ,DF03,Consultants,770,"2,250.00",4/10/2012,R,QUINTON SCOTT                 
2012 - MAY,Cultural Env Reg&Plan Services,SMSS (Env),Estates Mgt                             ,J01420,Supplies & Services           ,Grants and Subscriptions      ,DJ04,Subscriptions,771,645,4/13/2012,R,RICS                          
2012 - MAY,CS -Oth Operating Inc & Expend,INVESTMENT PROPERTIES,Other Misc Props Budget                 ,J01526,Premises Related Expenditure  ,Energy Costs                  ,BB03,Gas (incl. Butane),772,947.05,4/13/2012,R,SOUTHERN ELECTRIC             
2012 - MAY,CS -Oth Operating Inc & Expend,INVESTMENT PROPERTIES,Durnsford Rd Budget                     ,J01580,Premises Related Expenditure  ,RepairsAlterations&MtceOfBldgs,BA79,Security of Premises,773,936,4/30/2012,R,OM METROPOLITAN TOTAL SEC.LTD 
2012 - MAY,CS -Oth Operating Inc & Expend,INVESTMENT PROPERTIES,Durnsford Rd Budget                     ,J01580,Premises Related Expenditure  ,Energy Costs                  ,BB02,Electricity,774,718.23,3/22/2012,R,OPUS ENERGY LIMITED           
2012 - MAY,Childrens & Education Services,Schools Strategic Management,Senior Mngt & Support Services          ,K01005,Supplies & Services           ,Services                      ,DF03,Consultants,775,"10,999.95",4/30/2012,R,ODGERS RAY & BERNDTSON INTERIM
2012 - MAY,Childrens & Education Services,Schools Strategic Management,Senior Mngt & Support Services          ,K01005,Supplies & Services           ,Services                      ,DF11,Counsel's fees,776,"7,500.00",4/2/2012,R,WARD HADAWAY                  
2012 - MAY,Childrens & Education Services,Schools Strategic Management,Senior Mngt & Support Services          ,K01005,Supplies & Services           ,Services                      ,DF11,Counsel's fees,777,"6,760.15",1/24/2012,R,"HODGE, JONES & ALLEN LLP      "
2012 - MAY,Childrens & Education Services,Schools Strategic Management,Central Administration                  ,K01008,Supplies & Services           ,Expenses                      ,DH02,Conferences,778,780,5/10/2012,R,ADCS                          
2012 - MAY,Childrens & Education Services,Schools Strategic Management,Schools IT Support                      ,K02008,Supplies & Services           ,Comms and Computing           ,DG50,Other IT Expenditure,779,624.33,4/27/2012,R,ATOMWIDE LTD                  
2012 - MAY,Childrens & Education Services,Schools Strategic Management,Schools IT Support                      ,K02008,Supplies & Services           ,Comms and Computing           ,DG50,Other IT Expenditure,780,965.32,4/26/2012,R,ATOMWIDE LTD                  
2012 - MAY,Childrens & Education Services,Schools Strategic Management,Research and Statistics                 ,K03016,Supplies & Services           ,Comms and Computing           ,DG07,Computer Software,781,"2,632.58",4/27/2012,R,NCER CIC                      
2012 - MAY,Childrens & Education Services,Assuring Access To Schools,PFI Unitary Charges                     ,K03023,Supplies & Services           ,Services                      ,DF11,Counsel's fees,782,"1,673.50",3/30/2012,R,NABARRO                       
2012 - MAY,Childrens & Education Services,Assuring Access To Schools,PFI Unitary Charges                     ,K03023,Third Party Payments          ,Private Contractors           ,EH02,Miscellaneous Hired Services,783,"1,417.00",10/6/2011,R,NEWSCHOOLS (MERTON) LIMITED   
2012 - MAY,Childrens & Education Services,Assuring Access To Schools,PFI Unitary Charges                     ,K03023,Third Party Payments          ,Private Contractors           ,EH02,Miscellaneous Hired Services,784,"6,665.79",2/29/2012,R,NEWSCHOOLS (MERTON) LIMITED   
2012 - MAY,Childrens & Education Services,Assuring Access To Schools,PFI Unitary Charges                     ,K03023,Third Party Payments          ,Private Contractors           ,EH02,Miscellaneous Hired Services,785,"9,259.05",2/27/2012,R,NEWSCHOOLS (MERTON) LIMITED   
2012 - MAY,Childrens & Education Services,Assuring Access To Schools,PFI Unitary Charges                     ,K03023,Third Party Payments          ,Private Contractors           ,EH02,Miscellaneous Hired Services,786,898.48,10/6/2011,R,NEWSCHOOLS (MERTON) LIMITED   
2012 - MAY,Childrens & Education Services,Assuring Access To Schools,PFI Unitary Charges                     ,K03023,Third Party Payments          ,Private Contractors           ,EH02,Miscellaneous Hired Services,787,"4,133.39",2/7/2012,R,NEWSCHOOLS (MERTON) LIMITED   
2012 - MAY,Childrens & Education Services,Assuring Access To Schools,PFI Unitary Charges                     ,K03023,Third Party Payments          ,Private Contractors           ,EH02,Miscellaneous Hired Services,788,"3,351.01",9/30/2011,R,NEWSCHOOLS (MERTON) LIMITED   
2012 - MAY,Childrens & Education Services,Assuring Access To Schools,PFI Unitary Charges                     ,K03023,Third Party Payments          ,Private Contractors           ,EH02,Miscellaneous Hired Services,789,"1,274.41",10/6/2011,R,NEWSCHOOLS (MERTON) LIMITED   
2012 - MAY,Childrens & Education Services,Assuring Access To Schools,PFI Unitary Charges                     ,K03023,Third Party Payments          ,Private Contractors           ,EH02,Miscellaneous Hired Services,790,"3,160.36",10/6/2011,R,NEWSCHOOLS (MERTON) LIMITED   
2012 - MAY,Childrens & Education Services,Assuring Access To Schools,PFI Unitary Charges                     ,K03023,Third Party Payments          ,Private Contractors           ,EH02,Miscellaneous Hired Services,791,"1,513.02",10/6/2011,R,NEWSCHOOLS (MERTON) LIMITED   
2012 - MAY,Childrens & Education Services,Assuring Access To Schools,PFI Unitary Charges                     ,K03023,Third Party Payments          ,Private Contractors           ,EH02,Miscellaneous Hired Services,792,"1,457.88",10/10/2011,R,NEWSCHOOLS (MERTON) LIMITED   
2012 - MAY,Childrens & Education Services,Assuring Access To Schools,PFI Unitary Charges                     ,K03023,Third Party Payments          ,Private Contractors           ,EH02,Miscellaneous Hired Services,793,"1,610.15",3/13/2012,R,NEWSCHOOLS (MERTON) LIMITED   
2012 - MAY,Childrens & Education Services,Assuring Access To Schools,PFI Unitary Charges                     ,K03023,Third Party Payments          ,Private Contractors           ,EH02,Miscellaneous Hired Services,794,"21,387.17",2/28/2012,R,NEWSCHOOLS (MERTON) LIMITED   
2012 - MAY,Childrens & Education Services,Assuring Access To Schools,PFI Unitary Charges                     ,K03023,Third Party Payments          ,Private Contractors           ,EH02,Miscellaneous Hired Services,795,"23,091.93",1/23/2012,R,NEWSCHOOLS (MERTON) LIMITED   
2012 - MAY,Childrens & Education Services,Assuring Access To Schools,PFI Unitary Charges                     ,K03023,Third Party Payments          ,Private Contractors           ,EH02,Miscellaneous Hired Services,796,"2,000.00",3/29/2012,R,NEWSCHOOLS (MERTON) LIMITED   
2012 - MAY,Childrens & Education Services,Assuring Access To Schools,PFI Unitary Charges                     ,K03023,Third Party Payments          ,Private Contractors           ,EH02,Miscellaneous Hired Services,797,728.02,2/29/2012,R,NEWSCHOOLS (MERTON) LIMITED   
2012 - MAY,Childrens & Education Services,Assuring Access To Schools,PFI Unitary Charges                     ,K03023,Third Party Payments          ,Private Contractors           ,EH02,Miscellaneous Hired Services,798,504.88,2/29/2012,R,NEWSCHOOLS (MERTON) LIMITED   
2012 - MAY,Childrens & Education Services,Supporting SEN,Education Psychology.                   ,K04018,Employees                     ,Direct Employee Expenses      ,AA17,Agency Staff & Casual Paymts,799,562.5,4/3/2012,R,REDACTED
2012 - MAY,Childrens & Education Services,Supporting SEN,Education Psychology.                   ,K04018,Employees                     ,Direct Employee Expenses      ,AA17,Agency Staff & Casual Paymts,800,"1,875.00",4/30/2012,R,REDACTED
2012 - MAY,Childrens & Education Services,Supporting SEN,Statement Support Team                  ,K04034,Employees                     ,Direct Employee Expenses      ,AA17,Agency Staff & Casual Paymts,801,900,4/14/2012,R,PERMANENT FUTURES             
2012 - MAY,Childrens & Education Services,Supporting SEN,Statement Support Team                  ,K04034,Employees                     ,Direct Employee Expenses      ,AA17,Agency Staff & Casual Paymts,802,900,4/14/2012,R,PERMANENT FUTURES             
2012 - MAY,Childrens & Education Services,Supporting SEN,Statement Support Team                  ,K04034,Employees                     ,Direct Employee Expenses      ,AA17,Agency Staff & Casual Paymts,803,"1,120.00",4/14/2012,R,PERMANENT FUTURES             
2012 - MAY,Childrens & Education Services,Supporting SEN,Statement Support Team                  ,K04034,Employees                     ,Direct Employee Expenses      ,AA17,Agency Staff & Casual Paymts,804,"1,200.00",4/21/2012,R,PERMANENT FUTURES             
2012 - MAY,Childrens & Education Services,Supporting SEN,Statement Support Team                  ,K04034,Employees                     ,Direct Employee Expenses      ,AA17,Agency Staff & Casual Paymts,805,"1,200.00",4/21/2012,R,PERMANENT FUTURES             
2012 - MAY,Childrens & Education Services,Supporting SEN,Statement Support Team                  ,K04034,Employees                     ,Direct Employee Expenses      ,AA17,Agency Staff & Casual Paymts,806,"1,400.00",4/21/2012,R,PERMANENT FUTURES             
2012 - MAY,Childrens & Education Services,Supporting SEN,Statement Support Team                  ,K04034,Employees                     ,Direct Employee Expenses      ,AA17,Agency Staff & Casual Paymts,807,"1,200.00",5/5/2012,R,PERMANENT FUTURES             
2012 - MAY,Childrens & Education Services,Supporting SEN,Statement Support Team                  ,K04034,Employees                     ,Direct Employee Expenses      ,AA17,Agency Staff & Casual Paymts,808,"1,500.00",4/28/2012,R,PERMANENT FUTURES             
2012 - MAY,Childrens & Education Services,Supporting SEN,Statement Support Team                  ,K04034,Employees                     ,Direct Employee Expenses      ,AA17,Agency Staff & Casual Paymts,809,"1,400.00",5/5/2012,R,PERMANENT FUTURES             
2012 - MAY,Childrens & Education Services,Supporting SEN,Statement Support Team                  ,K04034,Employees                     ,Direct Employee Expenses      ,AA17,Agency Staff & Casual Paymts,810,"1,200.00",4/28/2012,R,PERMANENT FUTURES             
2012 - MAY,Childrens & Education Services,Supporting SEN,Statement Support Team                  ,K04034,Employees                     ,Direct Employee Expenses      ,AA17,Agency Staff & Casual Paymts,811,"1,400.00",4/28/2012,R,PERMANENT FUTURES             
2012 - MAY,Childrens & Education Services,Supporting SEN,Expanded Pupil Referral Unit            ,K05099,Third Party Payments          ,Private Contractors           ,EH01,Miscellaneous Agency Services,812,"5,313.18",3/28/2012,R,SW LONDON ST GEORGES NHS TRUST
2012 - MAY,Childrens & Education Services,Supporting SEN,Expanded Pupil Referral Unit            ,K05099,Third Party Payments          ,Private Contractors           ,EH01,Miscellaneous Agency Services,813,"5,445.70",5/1/2012,R,SW LONDON ST GEORGES NHS TRUST
2012 - MAY,Childrens & Education Services,Pre-School Ed (inc Nursery),GSSG Workforce Development              ,K05111,Employees                     ,Indirect Employee Expenses    ,AB56,Internal Training Costs,814,880,5/22/2012,R,ACTUAL FIRST AID LTD          
2012 - MAY,Childrens & Education Services,Pre-School Ed (inc Nursery),Children's centres                      ,K05137,Supplies & Services           ,Comms and Computing           ,DG05,Telephones - Gen-Creditors,815,"2,880.00",4/1/2012,R,VIRGIN MEDIA PAYMENTS LTD     
2012 - MAY,Childrens & Education Services,Pre-School Ed (inc Nursery),Children's centres                      ,K05137,Supplies & Services           ,Grants and Subscriptions      ,DJ01,Grants,816,"3,054.00",3/5/2012,R,MERTON PRE-SCH LEARN ALLIANCE 
2012 - MAY,Childrens & Education Services,Pre-School Ed (inc Nursery),GSSG Central Administration             ,K05400,Employees                     ,Indirect Employee Expenses    ,AB57,External Training Costs,817,"1,125.00",5/19/2012,R,REDACTED
2012 - MAY,Childrens & Education Services,Pre-School Ed (inc Nursery),Nursery Grant payment-2 yr old          ,K05408,Supplies & Services           ,Grants and Subscriptions      ,DJ01,Grants,818,"1,152.00",5/8/2012,R,ARK AT SHERWOOD LTD           
2012 - MAY,Childrens & Education Services,Pre-School Ed (inc Nursery),Nursery Grant payment-2 yr old          ,K05408,Supplies & Services           ,Grants and Subscriptions      ,DJ01,Grants,819,"1,080.00",5/4/2012,R,REDACTED
2012 - MAY,Childrens & Education Services,Pre-School Ed (inc Nursery),Nursery Grant payment-2 yr old          ,K05408,Supplies & Services           ,Grants and Subscriptions      ,DJ01,Grants,820,"1,260.00",5/4/2012,R,REDACTED
2012 - MAY,Childrens & Education Services,Pre-School Ed (inc Nursery),Nursery Grant payment-2 yr old          ,K05408,Supplies & Services           ,Grants and Subscriptions      ,DJ01,Grants,821,"1,134.00",5/4/2012,R,COLLIERS WOOD VILLAGE DAY NUR.
2012 - MAY,Childrens & Education Services,Pre-School Ed (inc Nursery),Nursery Grant payment-2 yr old          ,K05408,Supplies & Services           ,Grants and Subscriptions      ,DJ01,Grants,822,990,5/8/2012,R,ARK AT SHERWOOD LTD           
2012 - MAY,Childrens & Education Services,Pre-School Ed (inc Nursery),Nursery Grant payment-2 yr old          ,K05408,Supplies & Services           ,Grants and Subscriptions      ,DJ01,Grants,823,"1,134.00",5/4/2012,R,THE GRANGE DAY NURSERY        
2012 - MAY,Childrens & Education Services,Pre-School Ed (inc Nursery),Nursery Grant payment-2 yr old          ,K05408,Supplies & Services           ,Grants and Subscriptions      ,DJ01,Grants,824,"1,036.80",5/8/2012,R,HASLEMERE HOUSE DAY NURSERY   
2012 - MAY,Childrens & Education Services,Pre-School Ed (inc Nursery),Nursery Grant payment-2 yr old          ,K05408,Supplies & Services           ,Grants and Subscriptions      ,DJ01,Grants,825,"1,152.00",5/8/2012,R,ARK AT SHERWOOD LTD           
2012 - MAY,Childrens & Education Services,Pre-School Ed (inc Nursery),Nursery Grant payment-2 yr old          ,K05408,Supplies & Services           ,Grants and Subscriptions      ,DJ01,Grants,826,735,5/10/2012,R,ST SAVIOUR'S PRE SCHOOL       
2012 - MAY,Childrens & Education Services,Pre-School Ed (inc Nursery),Nursery Grant payment-2 yr old          ,K05408,Supplies & Services           ,Grants and Subscriptions      ,DJ01,Grants,827,"1,080.00",5/17/2012,R,LA PETITE FLEUR PRE-SCHOOL    
2012 - MAY,Childrens & Education Services,Pre-School Ed (inc Nursery),Nursery Grant payment-2 yr old          ,K05408,Supplies & Services           ,Grants and Subscriptions      ,DJ01,Grants,828,990,5/24/2012,R,MINI TREASURES NURSERY LTD    
2012 - MAY,Childrens & Education Services,Pre-School Ed (inc Nursery),Nursery Grant payment-2 yr old          ,K05408,Supplies & Services           ,Grants and Subscriptions      ,DJ01,Grants,829,756,5/24/2012,R,ARK AT SHERWOOD LTD           
2012 - MAY,Childrens & Education Services,Pre-School Ed (inc Nursery),Nursery Grant payment-2 yr old          ,K05408,Supplies & Services           ,Grants and Subscriptions      ,DJ01,Grants,830,"1,044.00",5/25/2012,R,IVY GARDENS CHILDREN' S CENTRE
